Workbook

Sheet 4 вариант 15.02 (hidden)
A1: IV. Реестр многоквартирных домов, которые подлежат капитальному ремонту в 2018 году, с учетом мер государственной поддержки
A2: № п\п | B2: Адрес МКД | C2: Стоимость капитального ремонта ВСЕГО | D2: Виды работ
D3: Ремонт внутридомовых инженерных систем | J3: Ремонт или замена лифтового оборудования | L3: Ремонт крыши | N3: Ремонт подвальных помещений | P3: Ремонт фасада | R3: Ремонт фундамента | T3: Ремонт подъездов | V3: Утепление фасадов | X3: Установка коллектив-ных (общедо-мовых) ПУ и УУ | Y3: Проект-ные работы | Z3: Работы по предпроектной подготовке
D4: Всего работ по инженерным системам | E4: в том числе
E5: Ремонт сетей электроснабжения | F5: Ремонт сетей теплоснабжения | G5: Ремонт сетей холодного водоснабжения | H5: Ремонт сетей горячего водоснабжения | I5: Ремонт систем водоотведения
C6: руб. | D6: руб. | E6: руб. | F6: руб. | G6: руб. | H6: руб. | I6: руб. | J6: ед. | K6: руб. | L6: кв.м. | M6: руб. | N6: кв.м. | O6: руб. | P6: кв.м. | Q6: руб. | R6: куб.м. | S6: руб. | T6: куб.м. | U6: руб. | V6: кв.м. | W6: руб. | X6: руб. | Y6: руб. | Z6: руб.
A7: 1 | B7: 2 | C7: 3 | D7: 4 | E7: 5 | F7: 6 | G7: 7 | H7: 8 | I7: 9 | J7: 10 | K7: 11 | L7: 12 | M7: 13 | N7: 14 | O7: 15 | P7: 16 | Q7: 17 | R7: 18 | S7: 19 | T7: 20 | U7: 21 | V7: 22 | W7: 23 | X7: 24 | Y7: 25 | Z7: 24
A8: Объекты культурного наследия по г. Выборгу
A9: Муниципальное образование "Город Выборг"
A10: 1 | B10: г. Выборг, просп. Ленина, д. 6 | C10: =M10+Q10 -> 49775695.93 | D10: =E10+F10+G10+H10+I10 -> 0 | L10: 998 | M10: 10968656.84 | P10: 3425 | Q10: 38807039.09
A11: =A10+1 -> 2 | B11: г. Выборг, ул. Железнодорожная, д. 2 | C11: =M11+Q11 -> 71246479.39 | D11: 0 | L11: 2373 | M11: 27524999 | P11: 5336 | Q11: 43721480.39
A12: =A11+1 -> 3 | B12: г. Выборг, ул. Железнодорожная, д. 4 | C12: 32678707.01 | D12: 0 | L12: 872 | M12: 11984761.14 | P12: 2144 | Q12: 20693945.87
A13: 4 | B13: г. Выборг, ул. Крепостная, д. 37 | C13: 35893316.08 | D13: 0 | P13: 3816 | Q13: 35893316.08
A14: 5 | B14: г. Выборг, просп. Ленина, д. 20 | C14: 41972672.83 | D14: 0 | L14: 1343 | M14: 15061442.03 | P14: 3979 | Q14: 26911230.8
A15: 6 | B15: г. Выборг, просп. Ленина, д. 18 | C15: 59578132.51 | D15: 0 | L15: 2045 | M15: 24228789.09 | P15: 6152 | Q15: 35349343.42
A16: 7 | B16: г. Выборг, просп. Суворова, д. 25 | C16: 45928527.66 | D16: 0 | L16: 844 | M16: 10966897.22 | P16: 2501 | Q16: 34961630.44
A17: 8 | B17: г. Выборг, ул. Северная, д. 8 | C17: 51170285.81 | D17: 0 | P17: 6460 | Q17: 51170285.81
A18: 9 | B18: г. Выборг, ул. Северная, д. 10 | C18: 60495179.12 | D18: 0 | P18: 4160 | Q18: 60495179.12
A19: 10 | B19: г. Выборг, Ленинградский пр., д. 14 | C19: 26008913.35 | D19: 0 | L19: 540 | M19: 7099248.06 | P19: 2623 | Q19: 18909665.29
A20: 11 | B20: г. Выборг, Ленинградский пр., д. 16 | C20: 26073352.2 | D20: 0 | L20: 760 | M20: 8877863.95 | P20: 1116 | Q20: 17195488.25
A21: 12 | B21: г. Выборг, Ленинградский пр., д. 31 | C21: 64195351.77 | D21: 0 | L21: 1598 | M21: 15544550 | P21: 5534 | Q21: 48650801.77
A22: 13 | B22: г. Выборг, Ленинградское ш., д. 1 | C22: 96318597.45 | D22: 0 | L22: 2280 | M22: 22581195.35 | P22: 6423 | Q22: 73737402.1
A23: Итого по муниципальному образованию | C23: =SUM(C10:C22) -> 661335211.1 | D23: =SUM(D10:D22) -> 0 | E23: 0 | F23: 0 | G23: 0 | H23: 0 | I23: 0 | J23: 0 | K23: 0 | L23: 13653 | M23: =SUM(M10:M22) -> 154838402.7 | N23: 0 | O23: 0 | P23: 53669 | Q23: 506496808.4 | R23: 0 | S23: 0 | T23: 0 | U23: 0 | V23: 0 | W23: 0 | X23: 0 | Y23: 0
A24: ИТОГО по Ленинградской области | C24: =C23 -> 661335211.1 | D24: =D23 -> 0 | E24: 0 | F24: 0 | G24: 0 | H24: 0 | I24: 0 | J24: 0 | K24: 0 | L24: 13653 | M24: 154838402.7 | N24: 0 | O24: 0 | P24: 53669 | Q24: 506496808.4 | R24: 0 | S24: 0 | T24: 0 | U24: 0 | V24: 0 | W24: 0 | X24: 0 | Y24: 0
A25: Осуществление строительного контроля | C25: =C24*0.0214 -> 14152573.52
A26: Итого по Ленинградской области со строительным контролем | C26: =C24+C25 -> 675487784.6
Z42: =SUM(Z24:Z41) -> 0
Z47: =SUM(Z44:Z46) -> 0
Z48: =Z42+#REF!+Z47+#REF! -> 
Z100: =SUM(Z87:Z99) -> 0
Z123: =SUM(Z105:Z122) -> 0
Z134: =SUM(Z128:Z133) -> 0
Z142: =SUM(Z136:Z141) -> 0
Z148: =SUM(Z144:Z146) -> 0
Z149: =Z100+Z123+Z134+Z148+Z142+Z126 -> 0
Z156: =SUM(Z152:Z155) -> 0
Z220: =SUM(Z161:Z219) -> 0
Z227: =SUM(Z226) -> 0
Z234: =Z156+Z220+Z227 -> 0
Z249: =SUM(Z237:Z248) -> 0
Z254: =SUM(Z251:Z253) -> 0
Z255: =Z249+Z254 -> 0
Z285: =SUM(Z258:Z284) -> 0
Z290: =SUM(Z287:Z289) -> 0
Z294: =SUM(Z292:Z293) -> 0
Z295: =Z285+Z294+Z290 -> 0
Z322: =SUM(Z298:Z321) -> 0
Z339: =SUM(Z324:Z338) -> 0
Z346: =SUM(Z341:Z345) -> 0
Z349: =SUM(Z348:Z348) -> 0
Z357: =SUM(Z351:Z356) -> 0
Z365: =SUM(Z359:Z364) -> 0
Z366: =E366+F366+G366+H366+I366+K366+M366+O366+Q366+S366+U366+V366+W366+X366 -> 0
Z367: =E367+F367+G367+H367+I367+K367+M367+O367+Q367+S367+U367+V367+W367+X367 -> 0
Z368: =E368+F368+G368+H368+I368+K368+M368+O368+Q368+S368+U368+V368+W368+X368 -> 0
Z369: =E369+F369+G369+H369+I369+K369+M369+O369+Q369+S369+U369+V369+W369+X369 -> 0
Z370: =E370+F370+G370+H370+I370+K370+M370+O370+Q370+S370+U370+V370+W370+X370 -> 0
Z396: =SUM(Z372:Z395) -> 0
Z397: =SUM(Z396+Z365+Z357+Z349+Z346+Z339+Z322) -> 0
Z433: =SUM(Z400:Z432) -> 0
Z434: =Z433 -> 0
Z443: =SUM(Z437:Z440) -> 0
Z446: =SUM(Z445:Z445) -> 0
Z451: =SUM(Z448:Z450) -> 0
Z457: =SUM(Z453:Z456) -> 0
Z463: =SUM(Z459:Z462) -> 0
Z467: =SUM(Z465:Z466) -> 0
Z473: =SUM(Z469:Z472) -> 0
Z474: =Z451+Z443+Z446+Z473+Z467+Z457+Z463 -> 0
Z479: =SUM(Z477:Z478) -> 0
Z502: =SUM(Z493:Z501) -> 0
Z506: =SUM(Z504:Z505) -> 0
Z509: =SUM(Z508:Z508) -> 0
Z518: =SUM(Z511:Z517) -> 0
Z526: =SUM(Z520:Z525) -> 0
Z529: =SUM(Z528:Z528) -> 0
Z532: =SUM(Z531) -> 0
Z539: =Z479+Z502+Z506+Z509+Z518+Z526+Z529+Z532+Z538 -> 0
Z550: =SUM(Z542:Z549) -> 0
Z551: =Z550 -> 0
Z559: =SUM(Z554:Z558) -> 0
Z565: =SUM(Z561:Z564) -> 0
Z570: =SUM(Z567:Z569) -> 0
Z576: =SUM(Z572:Z575) -> 0
Z580: =SUM(Z578:Z579) -> 0
Z588: =Z586+Z587 -> 0
Z589: =Z559+Z565+Z570+Z576+Z580 -> 0
Z593: =SUM(Z592:Z592) -> 0
Z596: =SUM(Z595) -> 0
Z634: =SUM(Z598:Z633) -> 0
Z635: =Z634+Z596+Z593 -> 0
Z756: =SUM(Z637:Z755) -> 0
Z868: =SUM(Z764:Z867) -> 0
Z888: =SUM(Z870:Z887) -> 0
Z889: =Z868+Z888 -> 0
Z893: =SUM(Z892:Z892) -> 0
Z901: =SUM(Z895:Z900) -> 0
Z904: =SUM(Z903:Z903) -> 0
Z924: =SUM(Z906:Z923) -> 0
Z927: =SUM(Z926:Z926) -> 0
Z930: =SUM(Z929) -> 0
Z931: =Z901+Z904+Z927+Z924+Z893+Z930 -> 0
Y933: =#REF!-#REF! -> 
Y934: =#REF!-Y933 -> 
Y936: 80325165.22
Y937: =Y933-Y936 -> 

Sheet Раздел I
Q1: УТВЕРЖДЕН
Q2: постановлением Правительства
Q3: Ленинградской области
Q4: от 23 июля 2019 года N 345
Q5: (в редакции постановления
Q6: Правительства Ленинградской области
Q7: от 26 октября 2020 года N 690
Q8: (приложение 2)
A9: Краткосрочный план реализации в 2020-2022 годах Региональной программы капитального ремонта общего имущества в многоквартирных домах, расположенных на территории Ленинградской области
A10: Раздел I. Перечень многоквартирных домов, в которых будет проводиться капитальный ремонт лифтового оборудования в период 2020-2022, за счет средств собственников
A11: № п\п | B11: Адрес МКД | C11: Год | E11: Материал стен | F11: Количество этажей | G11: Количество лифтов | H11: Количество подъездов | I11: общая площадь МКД, всего | J11: Площадь помещений МКД: | L11: Количество жителей, зарегистрированных в МКД | M11: Стоимость капитального ремонта | Q11: Стоимость капитального ремонта за счет средств собственников помещений в МКД | R11: Плановая дата завершения работ | S11: способ формирования фонда капитального ремонта
C12: ввода в эксплуатацию | D12: завершение последнего капитального ремонта | J12: всего: | K12: в том числе жилых помещений, находящихся в собственности граждан | M12: всего: | N12: федеральный бюджет | O12: областной бюджет | P12: за счет средств местного бюджета
I14: кв.м | J14: кв.м | K14: кв.м | L14: чел. | M14: руб. | P14: руб.
A15: 1 | B15: 2 | C15: 3 | D15: 4 | E15: 5 | F15: 6 | G15: 7 | H15: 8 | I15: 9 | J15: 10 | K15: 11 | L15: 12 | M15: 13 | N15: 14 | O15: 15 | P15: 16 | Q15: 13 | R15: 14 | S15: 15 | T15: 20 | U15: 21 | V15: 22 | W15: 23 | X15: 24 | Y15: 25
A16: Волховский муниципальный район
A17: Муниципальное образование Город Волхов
A18: 1 | B18: Г. Волхов, просп. Волховский, д. 57 | C18: 1994 | E18: кирпич | F18: 9 | G18: 1 | H18: 1 | I18: 3238.7 | J18: 2407 | K18: 2047 | L18: 111 | M18: =Q18 -> 2735709.46 | N18: 0 | O18: 0 | P18: 0 | Q18: =SUMIF('Раздел 2'!B:B,B18,'Раздел 2'!C:C)+SUMIF('Раздел 3'!B:B,B18,'Раздел 3'!C:C)+SUMIF('Раздел 4'!B:B,B18,'Раздел 4'!C:C) -> 2735709.46 | R18: 2022-12-30 | S18: РО
A19: Итого по муниципальному образованию | C19: х | D19: х | E19: х | F19: х | G19: =SUM(G18) -> 1 | H19: х | I19: =SUM(I18) -> 3238.7 | J19: =SUM(J18) -> 2407 | K19: 2047 | L19: 111 | M19: =M18 -> 2735709.46 | N19: =N18 -> 0 | O19: 0 | P19: 0 | Q19: 2735709.46 | R19: х | S19: х
A20: Итого по Волховскому муниципальному району | C20: х | D20: х | E20: х | F20: х | G20: =SUM(G19) -> 1 | H20: х | I20: =SUM(I19) -> 3238.7 | J20: 2407 | K20: 2047 | L20: 111 | M20: =M19 -> 2735709.46 | N20: 0 | O20: 0 | P20: 0 | Q20: 2735709.46 | R20: х | S20: х | T20: =Q20-'Раздел 3'!C9-'Раздел 4'!C10 -> 0
A21: Всеволожский муниципальный район
A22: Муниципальное образование Город Всеволожск
A23: =A18+1 -> 2 | B23: Г. Всеволожск, ул. Александровская, д. 81, корп. 3 | C23: 1996 | F23: 8 | G23: 2 | H23: 2 | I23: 4215.1 | J23: 4215.1 | K23: 2782 | L23: 170 | M23: =Q23 -> 5276630.92 | N23: 0 | O23: 0 | P23: 0 | Q23: =SUMIF('Раздел 2'!B:B,B23,'Раздел 2'!C:C)+SUMIF('Раздел 3'!B:B,B23,'Раздел 3'!C:C)+SUMIF('Раздел 4'!B:B,B23,'Раздел 4'!C:C) -> 5276630.92 | R23: 2022-12-30 | S23: РО
A24: =A23+1 -> 3 | B24: Г. Всеволожск, ул. Балашова, д. 8/3 | C24: 1995 | F24: 9 | G24: 2 | H24: 2 | I24: 4768.2 | J24: 4768.2 | K24: 2407 | L24: 154 | M24: 5276630.92 | N24: 0 | O24: 0 | P24: 0 | Q24: =SUMIF('Раздел 2'!B:B,B24,'Раздел 2'!C:C)+SUMIF('Раздел 3'!B:B,B24,'Раздел 3'!C:C)+SUMIF('Раздел 4'!B:B,B24,'Раздел 4'!C:C) -> 5276630.92 | R24: 2022-12-30 | S24: РО
A25: =A24+1 -> 4 | B25: Г. Всеволожск, ул. Василеозерская, д. 5 | C25: 1995 | F25: 10 | G25: 2 | H25: 2 | I25: 5400.9 | J25: 5400.9 | K25: 2392 | L25: 141 | M25: 5276630.92 | N25: 0 | O25: 0 | P25: 0 | Q25: =SUMIF('Раздел 2'!B:B,B25,'Раздел 2'!C:C)+SUMIF('Раздел 3'!B:B,B25,'Раздел 3'!C:C)+SUMIF('Раздел 4'!B:B,B25,'Раздел 4'!C:C) -> 5276630.92 | R25: 2022-12-30 | S25: РО
A26: =A25+1 -> 5 | B26: Г. Всеволожск, ул. Василеозерская, д. 7 | C26: 1996 | F26: 10 | G26: 2 | H26: 2 | I26: 5786.9 | J26: 5786.9 | K26: 3645 | L26: 205 | M26: 5471418.92 | N26: 0 | O26: 0 | P26: 0 | Q26: =SUMIF('Раздел 2'!B:B,B26,'Раздел 2'!C:C)+SUMIF('Раздел 3'!B:B,B26,'Раздел 3'!C:C)+SUMIF('Раздел 4'!B:B,B26,'Раздел 4'!C:C) -> 5471418.92 | R26: 2022-12-30 | S26: РО
A27: 6 | B27: Г. Всеволожск, ул. Вокка, д. 3 | C27: 1991 | F27: 9 | G27: 2 | H27: 2 | I27: 4954.1 | J27: 4954.1 | K27: 3450 | L27: 190.5 | M27: 5471418.92 | N27: 0 | O27: 0 | P27: 0 | Q27: =SUMIF('Раздел 2'!B:B,B27,'Раздел 2'!C:C)+SUMIF('Раздел 3'!B:B,B27,'Раздел 3'!C:C)+SUMIF('Раздел 4'!B:B,B27,'Раздел 4'!C:C) -> 5471418.92 | R27: 2022-12-30 | S27: РО
A28: 7 | B28: Г. Всеволожск, ул. Ленинградская, д. 24/84 | C28: 1994 | F28: 10 | G28: 5 | H28: 5 | I28: 13448.5 | J28: 13448.5 | K28: 3707.4 | L28: 199.7 | M28: 27136455.22 | N28: 0 | O28: 0 | P28: 0 | Q28: =SUMIF('Раздел 2'!B:B,B28,'Раздел 2'!C:C)+SUMIF('Раздел 3'!B:B,B28,'Раздел 3'!C:C)+SUMIF('Раздел 4'!B:B,B28,'Раздел 4'!C:C) -> 27136455.22 | R28: 2022-12-30 | S28: РО
A29: 8 | B29: Г. Всеволожск, ул. Ленинградская, д. 30, корп. 1 | C29: 1993 | F29: 9 | G29: 1 | H29: 3 | I29: 6885.1 | J29: 6885.1 | K29: 3964.8 | L29: 208.9 | M29: 2735709.46 | N29: 0 | O29: 0 | P29: 0 | Q29: =SUMIF('Раздел 2'!B:B,B29,'Раздел 2'!C:C)+SUMIF('Раздел 3'!B:B,B29,'Раздел 3'!C:C)+SUMIF('Раздел 4'!B:B,B29,'Раздел 4'!C:C) -> 2735709.46 | R29: 2022-12-30 | S29: РО
A30: Итого по муниципальному образованию | C30: x | D30: x | E30: x | F30: x | G30: =SUM(G23:G29) -> 16 | H30: x | I30: =SUM(I23:I29) -> 45458.8 | J30: 45458.8 | K30: 22348.2 | L30: 1269.1 | M30: 56644895.28 | N30: 0 | O30: 0 | P30: 0 | Q30: =SUM(Q23:Q29) -> 56644895.28 | R30: x | S30: x | T30: =Q30-'Раздел 2'!C11-'Раздел 3'!C19-'Раздел 4'!C16 -> 0 | U30: =M30-'Раздел 2'!C11-'Раздел 3'!C19-'Раздел 4'!C16 -> 0
A31: Муниципальное образование Муринское городское поселение
A32: =A29+1 -> 9 | B32: Пос. Мурино, ул. Оборонная, д. 12 | C32: 1992 | E32: кирпич | F32: 9 | G32: 2 | H32: 2 | I32: 5334 | J32: 4507 | K32: 2782 | L32: 170 | M32: =Q32 -> 5276630.92 | N32: 0 | O32: 0 | P32: 0 | Q32: =SUMIF('Раздел 2'!B:B,B32,'Раздел 2'!C:C)+SUMIF('Раздел 3'!B:B,B32,'Раздел 3'!C:C)+SUMIF('Раздел 4'!B:B,B32,'Раздел 4'!C:C) -> 5276630.92 | R32: 2022-12-30 | S32: РО
A33: =A32+1 -> 10 | B33: Пос. Мурино, ул. Оборонная, д. 22 | C33: 1993 | E33: Ж/б панели | F33: 10 | G33: 1 | H33: 2 | I33: 5436 | J33: 4484 | K33: 2392 | L33: 141 | M33: =Q33 -> 2638315.46 | N33: 0 | O33: 0 | P33: 0 | Q33: =SUMIF('Раздел 2'!B:B,B33,'Раздел 2'!C:C)+SUMIF('Раздел 3'!B:B,B33,'Раздел 3'!C:C)+SUMIF('Раздел 4'!B:B,B33,'Раздел 4'!C:C) -> 2638315.46 | R33: 2022-12-30 | S33: РО | U33: =M35-'Раздел 2'!C16-'Раздел 3'!C24 -> 0
A34: =A33+1 -> 11 | B34: Пос. Мурино, ул. Оборонная, д. 24 | C34: 1994 | E34: Ж/б панели | F34: 10 | G34: 3 | H34: 3 | I34: 8215 | J34: 6784 | K34: 3645 | L34: 205 | M34: =Q34 -> 7914946.38 | N34: 0 | O34: 0 | P34: 0 | Q34: =SUMIF('Раздел 2'!B:B,B34,'Раздел 2'!C:C)+SUMIF('Раздел 3'!B:B,B34,'Раздел 3'!C:C)+SUMIF('Раздел 4'!B:B,B34,'Раздел 4'!C:C) -> 7914946.38 | R34: 2022-12-30 | S34: РО
A35: Итого по муниципальному образованию | C35: x | D35: x | E35: x | F35: x | G35: =SUM(G32:G34) -> 6 | H35: x | I35: =SUM(I32:I34) -> 18985 | J35: 15775 | K35: 8819 | L35: 516 | M35: 15829892.76 | N35: 0 | O35: 0 | P35: 0 | Q35: =SUM(Q32:Q34) -> 15829892.76 | R35: x | S35: x | T35: =Q35-'Раздел 2'!C16-'Раздел 3'!C24 -> 0
A36: Муниципальное образование Свердловское городское поселение
A37: =A34+1 -> 12 | B37: Пос. им. Свердлова, микрорайон 1, д. 8 | C37: 1994 | E37: Ж/б панели | F37: 9 | G37: 4 | H37: 4 | I37: 8231.7 | J37: 8202.3 | K37: 8132.9 | L37: 273 | M37: =Q37 -> 10553261.84 | N37: 0 | O37: 0 | P37: 0 | Q37: =SUMIF('Раздел 2'!B:B,B37,'Раздел 2'!C:C)+SUMIF('Раздел 3'!B:B,B37,'Раздел 3'!C:C)+SUMIF('Раздел 4'!B:B,B37,'Раздел 4'!C:C) -> 10553261.84 | R37: 2022-12-30 | S37: РО
A38: Итого по муниципальному образованию | C38: x | D38: x | E38: x | F38: x | G38: =G37 -> 4 | H38: =SUM(H37) -> 4 | I38: =SUM(I37) -> 8231.7 | J38: =SUM(J37) -> 8202.3 | K38: 8132.9 | L38: 273 | M38: =M37 -> 10553261.84 | N38: =N37 -> 0 | O38: 0 | P38: 0 | Q38: =Q37 -> 10553261.84 | R38: x | S38: x
A39: Муниципальное образование Сертолово
A40: =A37+1 -> 13 | B40: Г. Сертолово, микрорайон Сертолово-1, ул. Молодежная, д. 8, корп. 2 | C40: 1993 | E40: панельный | F40: 10 | G40: 3 | H40: 3 | I40: 7982.3 | J40: 7092.3 | K40: 7092.3 | L40: 286 | M40: =Q40 -> 7914946.38 | N40: 0 | O40: 0 | P40: 0 | Q40: =SUMIF('Раздел 2'!B:B,B40,'Раздел 2'!C:C)+SUMIF('Раздел 3'!B:B,B40,'Раздел 3'!C:C)+SUMIF('Раздел 4'!B:B,B40,'Раздел 4'!C:C) -> 7914946.38 | R40: 2022-12-30 | S40: РО
A41: =A40+1 -> 14 | B41: Г. Сертолово, микрорайон Сертолово-1, ул. Центральная, д. 6, корп. 1 | C41: 1994 | E41: панельный | F41: 10 | G41: 3 | H41: 3 | I41: 7572 | J41: 6727 | K41: 6727 | L41: 339 | M41: =Q41 -> 8667924.47 | N41: 0 | O41: 0 | P41: 0 | Q41: =SUMIF('Раздел 2'!B:B,B41,'Раздел 2'!C:C)+SUMIF('Раздел 3'!B:B,B41,'Раздел 3'!C:C)+SUMIF('Раздел 4'!B:B,B41,'Раздел 4'!C:C) -> 8667924.47 | R41: 2022-12-30 | S41: РО
A42: =A41+1 -> 15 | B42: Г. Сертолово, микрорайон Сертолово-1, ул. Центральная, д. 7, корп. 1 | C42: 1993 | E42: панельный | F42: 10 | G42: 3 | H42: 3 | I42: 7654 | J42: 6803.8 | K42: 6803.8 | L42: 296 | M42: =Q42 -> 8680076.04 | N42: 0 | O42: 0 | P42: 0 | Q42: =SUMIF('Раздел 2'!B:B,B42,'Раздел 2'!C:C)+SUMIF('Раздел 3'!B:B,B42,'Раздел 3'!C:C)+SUMIF('Раздел 4'!B:B,B42,'Раздел 4'!C:C) -> 8680076.04 | R42: 2022-12-30 | S42: РО
A43: Итого по муниципальному образованию | C43: x | D43: x | E43: x | F43: x | G43: =SUM(G40:G42) -> 9 | H43: x | I43: 23208.3 | J43: 20623.1 | K43: 20623.1 | L43: 921 | M43: =SUM(M40:M42) -> 25262946.89 | N43: =SUM(N40:N42) -> 0 | O43: 0 | P43: 0 | Q43: =SUM(Q40:Q42) -> 25262946.89 | R43: x | S43: x
A44: Итого по Всеволожскому муниципальному району | C44: x | D44: x | E44: x | F44: x | G44: =G43+G38+G35+G30 -> 35 | H44: х | I44: =I43+I38+I35+I30 -> 95883.8 | J44: =J43+J38+J35+J30 -> 90059.2 | K44: 59923.2 | L44: 2979.1 | M44: 108290996.8 | N44: 0 | O44: 0 | P44: 0 | Q44: 108290996.8 | R44: x | S44: x | T44: =Q44-'Раздел 2'!C25-'Раздел 3'!C31-'Раздел 4'!C17 -> 0 | U44: =M44-'Раздел 2'!C25-'Раздел 3'!C31-'Раздел 4'!C17 -> 0
A45: Выборгский район
A46: Муниципальное образование Город Выборг
A47: =A42+1 -> 16 | B47: Г. Выборг, бул. Кутузова, д. 33 | C47: 1940 | E47: кирпич | F47: 6 | G47: 1 | H47: 3 | I47: 2910.22 | J47: 2910.22 | K47: 2630.54 | L47: 80 | M47: =Q47 -> 2540171.372 | N47: 0 | O47: 0 | P47: 0 | Q47: =SUMIF('Раздел 2'!B:B,B47,'Раздел 2'!C:C)+SUMIF('Раздел 3'!B:B,B47,'Раздел 3'!C:C)+SUMIF('Раздел 4'!B:B,B47,'Раздел 4'!C:C) -> 2540171.372 | R47: 2022-12-30 | S47: РО
A48: =A47+1 -> 17 | B48: Г. Выборг, просп. Победы, д. 12 | C48: 1996 | E48: Кер.бет. | F48: 9 | G48: 4 | H48: 4 | I48: 7257.77 | J48: 7257.77 | K48: 6766.67 | L48: 297 | M48: 10553261.84 | N48: 0 | O48: 0 | P48: 0 | Q48: =SUMIF('Раздел 2'!B:B,B48,'Раздел 2'!C:C)+SUMIF('Раздел 3'!B:B,B48,'Раздел 3'!C:C)+SUMIF('Раздел 4'!B:B,B48,'Раздел 4'!C:C) -> 10553261.84 | R48: 2022-12-30 | S48: РО
A49: 18 | B49: Г. Выборг, пр. Победы, д. 8 | C49: 1991 | E49: Кер.бет. | F49: 9 | G49: 1 | H49: 1 | I49: 2003.5 | J49: 2003.5 | K49: 2003.5 | L49: 88 | M49: 2438131.623 | N49: 0 | O49: 0 | P49: 0 | Q49: =SUMIF('Раздел 2'!B:B,B49,'Раздел 2'!C:C)+SUMIF('Раздел 3'!B:B,B49,'Раздел 3'!C:C)+SUMIF('Раздел 4'!B:B,B49,'Раздел 4'!C:C) -> 2438131.623 | R49: 2022-12-30 | S49: РО
A50: 19 | B50: Г. Выборг, ул. Гагарина, д. 29 | C50: 1983 | E50: Кер.бет. | F50: 9 | G50: 3 | H50: 3 | I50: 6092.3 | J50: 6092.3 | K50: 5241.8 | L50: 286 | M50: 11629909.38 | N50: 0 | O50: 0 | P50: 0 | Q50: =SUMIF('Раздел 2'!B:B,B50,'Раздел 2'!C:C)+SUMIF('Раздел 3'!B:B,B50,'Раздел 3'!C:C)+SUMIF('Раздел 4'!B:B,B50,'Раздел 4'!C:C) -> 11629909.38 | R50: 2022-12-30 | S50: РО
A51: 20 | B51: Г. Выборг, ул. Гагарина, д. 65 | C51: 1993 | E51: панель | F51: 9 | G51: 1 | H51: 1 | I51: 1989.5 | J51: 1989.5 | K51: 1836.8 | L51: 82 | M51: 2438059.641 | N51: 0 | O51: 0 | P51: 0 | Q51: =SUMIF('Раздел 2'!B:B,B51,'Раздел 2'!C:C)+SUMIF('Раздел 3'!B:B,B51,'Раздел 3'!C:C)+SUMIF('Раздел 4'!B:B,B51,'Раздел 4'!C:C) -> 2438059.641 | R51: 2022-12-30 | S51: РО
A52: 21 | B52: Г. Выборг, ул. Гагарина, д. 69 | C52: 1994 | E52: панель | F52: 9 | G52: 2 | H52: 2 | I52: 4782 | J52: 4782 | K52: 3975.5 | L52: 184 | M52: 5601418.92 | N52: 0 | O52: 0 | P52: 0 | Q52: =SUMIF('Раздел 2'!B:B,B52,'Раздел 2'!C:C)+SUMIF('Раздел 3'!B:B,B52,'Раздел 3'!C:C)+SUMIF('Раздел 4'!B:B,B52,'Раздел 4'!C:C) -> 5601418.92 | R52: 2022-12-30 | S52: РО
A53: 22 | B53: Г. Выборг, ул. Крепостная, д. 39а | C53: 1993 | E53: кирпич | F53: 9 | G53: 1 | H53: 1 | I53: 1886.9 | J53: 1886.9 | K53: 1876 | L53: 42 | M53: 3876636.46 | N53: 0 | O53: 0 | P53: 0 | Q53: =SUMIF('Раздел 2'!B:B,B53,'Раздел 2'!C:C)+SUMIF('Раздел 3'!B:B,B53,'Раздел 3'!C:C)+SUMIF('Раздел 4'!B:B,B53,'Раздел 4'!C:C) -> 3876636.46 | R53: 2022-12-30 | S53: РО
A54: 23 | B54: Г. Выборг, ул. Офицерская, д. 12 | C54: 1993 | E54: Кер.блок | F54: 9 | G54: 1 | H54: 1 | I54: 1561.5 | J54: 1561.5 | K54: 1422.9 | L54: 84 | M54: 2481167.544 | N54: 0 | O54: 0 | P54: 0 | Q54: =SUMIF('Раздел 2'!B:B,B54,'Раздел 2'!C:C)+SUMIF('Раздел 3'!B:B,B54,'Раздел 3'!C:C)+SUMIF('Раздел 4'!B:B,B54,'Раздел 4'!C:C) -> 2481167.544 | R54: 2022-12-30 | S54: РО
A55: 24 | B55: Г. Выборг, ул. Офицерская, д. 14 | C55: 1993 | E55: Кер.блок | F55: 9 | G55: 1 | H55: 1 | I55: 2421.3 | J55: 2421.3 | K55: 2163.8 | L55: 105 | M55: 2483623.235 | N55: 0 | O55: 0 | P55: 0 | Q55: =SUMIF('Раздел 2'!B:B,B55,'Раздел 2'!C:C)+SUMIF('Раздел 3'!B:B,B55,'Раздел 3'!C:C)+SUMIF('Раздел 4'!B:B,B55,'Раздел 4'!C:C) -> 2483623.235 | R55: 2022-12-30 | S55: РО
A56: 25 | B56: Г. Выборг, ул. Приморская, д. 64 | C56: 1989 | E56: Кер.бет. | F56: 9 | G56: 2 | H56: 2 | I56: 4002.8 | J56: 4002.8 | K56: 3526.4 | L56: 173 | M56: 4345632.02 | N56: 0 | O56: 0 | P56: 0 | Q56: =SUMIF('Раздел 2'!B:B,B56,'Раздел 2'!C:C)+SUMIF('Раздел 3'!B:B,B56,'Раздел 3'!C:C)+SUMIF('Раздел 4'!B:B,B56,'Раздел 4'!C:C) -> 4345632.02 | R56: 2022-12-30 | S56: РО
A57: Итого по муниципальному образованию | C57: x | D57: x | E57: x | F57: x | G57: =SUM(G47:G56) -> 17 | H57: x | I57: =SUM(I47:I56) -> 34907.79 | J57: 34907.79 | K57: 31443.91 | L57: 1421 | M57: 48388012.04 | N57: 0 | O57: 0 | P57: 0 | Q57: 48388012.04 | R57: x | S57: x | T57: =Q57-'Раздел 2'!C36-'Раздел 3'!C37-'Раздел 4'!C21 -> 0 | U57: =M57-'Раздел 2'!C36-'Раздел 3'!C45-'Раздел 4'!C29 -> -13680950.65
A58: Муниципальное образование Полянское сельское поселение
A59: =A56+1 -> 26 | B59: П/ст Приветнинское, ул. Военных строителей, д. 1 | C59: 1985 | E59: кирпич | F59: 9 | G59: 1 | H59: 1 | I59: 2142.57 | J59: =I59 -> 2142.57 | K59: 640.34 | L59: 71 | M59: =Q59 -> 2736190.13 | N59: 0 | O59: 0 | P59: 0 | Q59: ='Раздел 3'!C39+'Раздел 4'!C23 -> 2736190.13 | R59: 2022-12-30 | S59: РО
A60: =A59+1 -> 27 | B60: П/ст Приветнинское, ул. Военных строителей, д. 7 | C60: 1984 | E60: кирпич | F60: 9 | G60: 1 | H60: 1 | I60: 3956.9 | J60: =I60 -> 3956.9 | K60: 954.8 | L60: 127 | M60: =Q60 -> 2736190.13 | N60: 0 | O60: 0 | P60: 0 | Q60: ='Раздел 3'!C40+'Раздел 4'!C24 -> 2736190.13 | R60: 2022-12-30 | S60: РО
A61: 28 | B61: П/ст Приветнинское, ул. Военных строителей, д. 9 | C61: 1981 | E61: кирпич | F61: 9 | G61: 1 | H61: 1 | I61: 3987.5 | J61: 3987.5 | K61: 1118.85 | L61: 113 | M61: =Q61 -> 2736190.13 | N61: 0 | O61: 0 | P61: 0 | Q61: ='Раздел 3'!C41+'Раздел 4'!C25 -> 2736190.13 | R61: 2022-12-30 | S61: РО
A62: 29 | B62: пос. Каменка, ул. Гвардейская, д. 75 | C62: 1984 | E62: кирпич | F62: 9 | G62: 1 | H62: 1 | I62: 3416.1 | J62: 3416.1 | K62: 104.8 | L62: 93 | M62: =Q62 -> 2736190.13 | N62: 0 | O62: 0 | P62: 0 | Q62: ='Раздел 3'!C42+'Раздел 4'!C26 -> 2736190.13 | R62: 2022-12-30 | S62: РО
A63: 30 | B63: пос. Каменка, ул. Гвардейская, д. 77 | C63: 1984 | E63: кирпич | F63: 9 | G63: 1 | H63: 1 | I63: 3034.7 | J63: 3034.7 | K63: 89.5 | L63: 79 | M63: =Q63 -> 2736190.13 | N63: 0 | O63: 0 | P63: 0 | Q63: ='Раздел 3'!C43+'Раздел 4'!C27 -> 2736190.13 | R63: 2022-12-30 | S63: РО
A64: Итого по муниципальному образованию | C64: x | D64: x | E64: x | F64: x | G64: =SUM(G59:G63) -> 5 | H64: x | I64: =SUM(I59:I63) -> 16537.77 | J64: =SUM(J59:J63) -> 16537.77 | K64: 2908.29 | L64: 483 | M64: 13680950.65 | N64: 0 | O64: 0 | P64: 0 | Q64: 13680950.65
A65: Муниципальное образование Светогорское городское поселение
A66: =A63+1 -> 31 | B66: Г. Светогорск, ул. Красноармейская, д. 26 | C66: 1984 | E66: панель | F66: 9 | G66: 3 | H66: 3 | I66: 6751.6 | J66: 6751.6 | K66: 4709.1 | L66: 217 | M66: =Q66 -> 8324810.25 | N66: 0 | O66: 0 | P66: 0 | Q66: =SUMIF('Раздел 2'!B:B,B66,'Раздел 2'!C:C)+SUMIF('Раздел 3'!B:B,B66,'Раздел 3'!C:C)+SUMIF('Раздел 4'!B:B,B66,'Раздел 4'!C:C) -> 8324810.25 | R66: 2022-12-30 | S66: РО
A67: =A66+1 -> 32 | B67: Г. Светогорск, ул. Красноармейская, д. 32 | C67: 1983 | E67: панель | F67: 9 | G67: 5 | H67: 6 | I67: 9392.4 | J67: 9392.4 | K67: 9392.4 | L67: 411 | M67: =Q67 -> 13117704.67 | N67: 0 | O67: 0 | P67: 0 | Q67: =SUMIF('Раздел 2'!B:B,B67,'Раздел 2'!C:C)+SUMIF('Раздел 3'!B:B,B67,'Раздел 3'!C:C)+SUMIF('Раздел 4'!B:B,B67,'Раздел 4'!C:C) -> 13117704.67 | R67: 2022-12-30 | S67: РО
A68: =A67+1 -> 33 | B68: Г. Светогорск, ул. Красноармейская, д. 8 | C68: 1984 | E68: панель | F68: 9 | G68: 3 | H68: 3 | I68: 4683.9 | J68: 4683.9 | K68: 4650.5 | L68: 171 | M68: =Q68 -> 7759701.1 | N68: 0 | O68: 0 | P68: 0 | Q68: =SUMIF('Раздел 2'!B:B,B68,'Раздел 2'!C:C)+SUMIF('Раздел 3'!B:B,B68,'Раздел 3'!C:C)+SUMIF('Раздел 4'!B:B,B68,'Раздел 4'!C:C) -> 7759701.1 | R68: 2022-12-30 | S68: РО
A69: Итого по муниципальному образованию | C69: x | D69: x | E69: x | F69: x | G69: =SUM(G66:G68) -> 11 | H69: x | I69: =SUM(I66:I68) -> 20827.9 | J69: 20827.9 | K69: 18752 | L69: 799 | M69: 29202216.02 | N69: 0 | O69: =SUM(O66:O68) -> 0 | P69: 0 | Q69: =SUM(Q66:Q68) -> 29202216.02 | R69: x | S69: x | U69: =M70-'Раздел 2'!C42 -> 0
A70: Муниципальное образование Советское городское поселение
A71: =A68+1 -> 34 | B71: Г.п. Советский, ул. Садовая, д. 46 | C71: 1986 | E71: блочный | F71: 9 | G71: 1 | H71: 1 | I71: 4024.4 | J71: 4024.4 | K71: 3621.96 | L71: 122 | M71: =Q71 -> 2381097.22 | N71: 0 | O71: 0 | P71: 0 | Q71: =SUMIF('Раздел 2'!B:B,B71,'Раздел 2'!C:C)+SUMIF('Раздел 3'!B:B,B71,'Раздел 3'!C:C)+SUMIF('Раздел 4'!B:B,B71,'Раздел 4'!C:C) -> 2381097.22 | R71: 2022-12-30 | S71: РО
A72: Итого по муниципальному образованию | C72: x | D72: x | E72: x | F72: x | G72: 1 | H72: x | I72: =SUM(I71) -> 4024.4 | J72: =SUM(J71) -> 4024.4 | K72: 3621.96 | L72: 122 | M72: =M71 -> 2381097.22 | N72: =N71 -> 0 | O72: 0 | P72: 0 | Q72: 2381097.22 | R72: x | S72: x
A73: Итого по Выборгскому району | C73: x | D73: x | E73: x | F73: x | G73: =G72+G69+G64+G57 -> 34 | H73: x | I73: =I72+I69+I64+I57 -> 76297.86 | J73: =J72+J69+J64+J57 -> 76297.86 | K73: 56726.16 | L73: 2825 | M73: 93652275.93 | N73: 0 | O73: 0 | P73: 0 | Q73: 93652275.93 | R73: x | S73: x | T73: =Q73-'Раздел 2'!C45-'Раздел 3'!C45-'Раздел 4'!C29 -> 0 | U73: =M73-'Раздел 2'!C45-'Раздел 3'!C45-'Раздел 4'!C29 -> 0
A74: Гатчинский муниципальный район
A75: Муниципальное образование Город Гатчина
A76: =A71+1 -> 35 | B76: Г. Гатчина, просп. 25 Октября, д. 50 | C76: 1990 | E76: кирпич | F76: 6 | G76: 6 | H76: 6 | I76: 8643 | J76: 5163 | K76: 2879 | L76: 223 | M76: =Q76 -> 11544197.62 | N76: 0 | O76: 0 | P76: 0 | Q76: =SUMIF('Раздел 2'!B:B,B76,'Раздел 2'!C:C)+SUMIF('Раздел 3'!B:B,B76,'Раздел 3'!C:C)+SUMIF('Раздел 4'!B:B,B76,'Раздел 4'!C:C) -> 11544197.62 | R76: 2022-12-30 | S76: РО
A77: =A76+1 -> 36 | B77: Г. Гатчина, просп. 25 Октября, д. 59 | C77: 1993 | E77: кирпич | F77: 6 | G77: 3 | H77: 3 | I77: 15895.7 | J77: 7164.3 | K77: 6932.7 | L77: 239 | M77: 8207128.38 | N77: 0 | O77: 0 | P77: 0 | Q77: =SUMIF('Раздел 2'!B:B,B77,'Раздел 2'!C:C)+SUMIF('Раздел 3'!B:B,B77,'Раздел 3'!C:C)+SUMIF('Раздел 4'!B:B,B77,'Раздел 4'!C:C) -> 8207128.38 | R77: 2022-12-30 | S77: РО
A78: =A77+1 -> 37 | B78: Г. Гатчина, просп. 25 Октября, д. 63 | C78: 1988 | E78: кирпич | F78: 6 | G78: 3 | H78: 3 | I78: 15055 | J78: 5826 | K78: 5522.3 | L78: 221 | M78: 6190138.2 | N78: 0 | O78: 0 | P78: 0 | Q78: =SUMIF('Раздел 2'!B:B,B78,'Раздел 2'!C:C)+SUMIF('Раздел 3'!B:B,B78,'Раздел 3'!C:C)+SUMIF('Раздел 4'!B:B,B78,'Раздел 4'!C:C) -> 6190138.2 | R78: 2022-12-30 | S78: РО
A79: 38 | B79: Г. Гатчина, ул. Авиатриссы Зверевой, д. 11 | C79: 1988 | E79: панельный | F79: 9 | G79: 2 | H79: 2 | I79: 5884.4 | J79: 3923 | K79: 3488.1 | L79: 200 | M79: 4275976.293 | N79: 0 | O79: 0 | P79: 0 | Q79: =SUMIF('Раздел 2'!B:B,B79,'Раздел 2'!C:C)+SUMIF('Раздел 3'!B:B,B79,'Раздел 3'!C:C)+SUMIF('Раздел 4'!B:B,B79,'Раздел 4'!C:C) -> 4275976.293 | R79: 2022-12-30 | S79: РО
A80: 39 | B80: Г. Гатчина, ул. Красных Военлётов, д. 9 | C80: 1990 | E80: панельный | F80: 9 | G80: 4 | H80: 4 | I80: 12490.5 | J80: 8071.5 | K80: 7355.2 | L80: 387 | M80: 10532095.24 | N80: 0 | O80: 0 | P80: 0 | Q80: =SUMIF('Раздел 2'!B:B,B80,'Раздел 2'!C:C)+SUMIF('Раздел 3'!B:B,B80,'Раздел 3'!C:C)+SUMIF('Раздел 4'!B:B,B80,'Раздел 4'!C:C) -> 10532095.24 | R80: 2022-12-30 | S80: РО
A81: 40 | B81: Г. Гатчина, ул. Рощинская, д. 11, кор. 1 | C81: 1993 | E81: кирпич | F81: 8 | G81: 1 | H81: 1 | I81: 3301.1 | J81: 1510.1 | K81: 1328.7 | L81: 92 | M81: 2735709.46 | N81: 0 | O81: 0 | P81: 0 | Q81: =SUMIF('Раздел 2'!B:B,B81,'Раздел 2'!C:C)+SUMIF('Раздел 3'!B:B,B81,'Раздел 3'!C:C)+SUMIF('Раздел 4'!B:B,B81,'Раздел 4'!C:C) -> 2735709.46 | R81: 2022-12-30 | S81: РО
A82: 41 | B82: Г. Гатчина, ул. Рощинская, д. 13, кор. 1 | C82: 1990 | E82: кирпич | F82: 7 | G82: 1 | H82: 1 | I82: 2965 | J82: 1535.7 | K82: 1501.4 | L82: 80 | M82: 2196923.512 | N82: 0 | O82: 0 | P82: 0 | Q82: =SUMIF('Раздел 2'!B:B,B82,'Раздел 2'!C:C)+SUMIF('Раздел 3'!B:B,B82,'Раздел 3'!C:C)+SUMIF('Раздел 4'!B:B,B82,'Раздел 4'!C:C) -> 2196923.512 | R82: 2022-12-30 | S82: РО
A83: 42 | B83: Г. Гатчина, ул. Рощинская, д. 13А | C83: 1991 | E83: кирпич | F83: 5 | G83: 2 | H83: 2 | I83: 3831.4 | J83: 1743.9 | K83: 2237.8 | L83: 95 | M83: 5471418.92 | N83: 0 | O83: 0 | P83: 0 | Q83: =SUMIF('Раздел 2'!B:B,B83,'Раздел 2'!C:C)+SUMIF('Раздел 3'!B:B,B83,'Раздел 3'!C:C)+SUMIF('Раздел 4'!B:B,B83,'Раздел 4'!C:C) -> 5471418.92 | R83: 2022-12-30 | S83: РО
A84: 43 | B84: Г. Гатчина, ул. Рощинская, д. 19 | C84: 1994 | E84: кирпич | F84: 7 | G84: 4 | H84: 5 | I84: 12030.6 | J84: 11199.2 | K84: 8436.8 | L84: 298 | M84: 15506545.84 | N84: 0 | O84: 0 | P84: 0 | Q84: =SUMIF('Раздел 2'!B:B,B84,'Раздел 2'!C:C)+SUMIF('Раздел 3'!B:B,B84,'Раздел 3'!C:C)+SUMIF('Раздел 4'!B:B,B84,'Раздел 4'!C:C) -> 15506545.84 | R84: 2022-12-30 | S84: РО
A85: 44 | B85: Г. Гатчина, ул. Рощинская, д. 3А | C85: 1993 | E85: панельный | F85: 9 | G85: 2 | H85: 2 | I85: 6130.2 | J85: 4094.2 | K85: 3859.6 | L85: 95 | M85: 5471418.92 | N85: 0 | O85: 0 | P85: 0 | Q85: =SUMIF('Раздел 2'!B:B,B85,'Раздел 2'!C:C)+SUMIF('Раздел 3'!B:B,B85,'Раздел 3'!C:C)+SUMIF('Раздел 4'!B:B,B85,'Раздел 4'!C:C) -> 5471418.92 | R85: 2022-12-30 | S85: РО
A86: 45 | B86: Г. Гатчина, ул. Рощинская, д. 9Г | C86: 1993 | E86: панельный | F86: 9 | G86: 2 | H86: 2 | I86: 6222 | J86: 4056.6 | K86: 3960.4 | L86: 194 | M86: 7753272.92 | N86: 0 | O86: 0 | P86: 0 | Q86: =SUMIF('Раздел 2'!B:B,B86,'Раздел 2'!C:C)+SUMIF('Раздел 3'!B:B,B86,'Раздел 3'!C:C)+SUMIF('Раздел 4'!B:B,B86,'Раздел 4'!C:C) -> 7753272.92 | R86: 2022-12-30 | S86: РО
A87: 46 | B87: Г. Гатчина, ул. Хохлова, д. 2 | C87: 1995 | E87: кирпич | F87: 7 | G87: 3 | H87: 3 | I87: 5575.2 | J87: 3438.6 | K87: 3109.3 | L87: 196 | M87: 7914946.38 | N87: 0 | O87: 0 | P87: 0 | Q87: =SUMIF('Раздел 2'!B:B,B87,'Раздел 2'!C:C)+SUMIF('Раздел 3'!B:B,B87,'Раздел 3'!C:C)+SUMIF('Раздел 4'!B:B,B87,'Раздел 4'!C:C) -> 7914946.38 | R87: 2022-12-30 | S87: РО
A88: 47 | B88: Г. Гатчина, ул. Чехова, д. 14 | C88: 1989 | E88: кирпич | F88: 9 | G88: 2 | H88: 2 | I88: 7847.3 | J88: 3564.3 | K88: 3232.7 | L88: 160 | M88: 4545663.416 | N88: 0 | O88: 0 | P88: 0 | Q88: =SUMIF('Раздел 2'!B:B,B88,'Раздел 2'!C:C)+SUMIF('Раздел 3'!B:B,B88,'Раздел 3'!C:C)+SUMIF('Раздел 4'!B:B,B88,'Раздел 4'!C:C) -> 4545663.416 | R88: 2022-12-30 | S88: РО
A89: Итого по муниципальному образованию | C89: x | D89: x | E89: x | F89: x | G89: =SUM(G76:G88) -> 35 | H89: x | I89: =SUM(I76:I88) -> 105871.4 | J89: 61290.4 | K89: 53844 | L89: 2480 | M89: 92345435.1 | N89: 0 | O89: 0 | P89: 0 | Q89: 92345435.1 | R89: x | S89: x
A90: Итого по Гатчинскому муниципальному району | C90: x | D90: x | E90: x | F90: x | G90: =G89 -> 35 | H90: x | I90: =SUM(I89) -> 105871.4 | J90: 61290.4 | K90: 53844 | L90: 2480 | M90: =M89 -> 92345435.1 | N90: =N89 -> 0 | O90: 0 | P90: 0 | Q90: 92345435.1 | R90: x | S90: x | T90: =Q90-'Раздел 2'!C57-'Раздел 3'!C60-'Раздел 4'!C37 -> 0 | U90: =M90-'Раздел 2'!C57-'Раздел 3'!C60-'Раздел 4'!C37 -> 0
A91: Кингисеппский муниципальный район
A92: Муниципальное образование Кингисеппское городское поселение
A93: =A88+1 -> 48 | B93: Г. Кингисепп, просп. Карла Маркса, д. 51 | C93: 1974 | E93: кирпич | F93: 9 | G93: 1 | H93: 1 | I93: 3863.11 | J93: 3863.11 | K93: 3039.33 | L93: 147 | M93: =Q93 -> 2735709.46 | N93: 0 | O93: 0 | P93: 0 | Q93: =SUMIF('Раздел 2'!B:B,B93,'Раздел 2'!C:C)+SUMIF('Раздел 3'!B:B,B93,'Раздел 3'!C:C)+SUMIF('Раздел 4'!B:B,B93,'Раздел 4'!C:C) -> 2735709.46 | R93: 2022-12-30 | S93: РО
A94: =A93+1 -> 49 | B94: Г. Кингисепп, б-р Большой , д. 11 | C94: 1986 | E94: монолит | F94: 9 | G94: 4 | H94: 4 | I94: 8025.7 | J94: 8025.7 | K94: 7762.7 | L94: 350 | M94: =Q94 -> 10942837.84 | N94: 0 | O94: 0 | P94: 0 | Q94: =SUMIF('Раздел 2'!B:B,B94,'Раздел 2'!C:C)+SUMIF('Раздел 3'!B:B,B94,'Раздел 3'!C:C)+SUMIF('Раздел 4'!B:B,B94,'Раздел 4'!C:C) -> 10942837.84 | R94: 2022-12-30 | S94: РО
A95: 50 | B95: Г. Кингисепп, б-р Большой, д. 15 | C95: 1987 | E95: монолит | F95: 9 | G95: 2 | H95: 2 | I95: 4014.8 | J95: 4014.8 | K95: 3957.6 | L95: 172 | M95: =Q95 -> 5471418.92 | N95: 0 | O95: 0 | P95: 0 | Q95: =SUMIF('Раздел 2'!B:B,B95,'Раздел 2'!C:C)+SUMIF('Раздел 3'!B:B,B95,'Раздел 3'!C:C)+SUMIF('Раздел 4'!B:B,B95,'Раздел 4'!C:C) -> 5471418.92 | R95: 2022-12-30 | S95: РО
A96: 51 | B96: Г. Кингисепп, б-р Большой, д. 17 | C96: 1987 | E96: монолит | F96: 9 | G96: 6 | H96: 6 | I96: 12017.6 | J96: 12017.6 | K96: 11735.6 | L96: 541 | M96: =Q96 -> 16414256.76 | N96: 0 | O96: 0 | P96: 0 | Q96: =SUMIF('Раздел 2'!B:B,B96,'Раздел 2'!C:C)+SUMIF('Раздел 3'!B:B,B96,'Раздел 3'!C:C)+SUMIF('Раздел 4'!B:B,B96,'Раздел 4'!C:C) -> 16414256.76 | R96: 2022-12-30 | S96: РО
A97: 52 | B97: Г. Кингисепп, ул. Воровского, д. 31в | G97: 2 | Q97: =SUMIF('Раздел 2'!B:B,B97,'Раздел 2'!C:C)+SUMIF('Раздел 3'!B:B,B97,'Раздел 3'!C:C)+SUMIF('Раздел 4'!B:B,B97,'Раздел 4'!C:C) -> 5471418.92 | R97: 2022-12-30 | S97: РО
A98: 53 | B98: Г. Кингисепп, ул. Жукова, д. 4А | C98: 1968 | E98: кирпич | F98: 9 | G98: 1 | H98: 1 | I98: 1936.2 | J98: 1936.2 | K98: 1807.7 | L98: 94 | M98: =Q98 -> 130000 | N98: 0 | O98: 0 | P98: 0 | Q98: =SUMIF('Раздел 2'!B:B,B98,'Раздел 2'!C:C)+SUMIF('Раздел 3'!B:B,B98,'Раздел 3'!C:C)+SUMIF('Раздел 4'!B:B,B98,'Раздел 4'!C:C) -> 130000 | R98: 2022-12-30 | S98: РО
A99: 54 | B99: Г. Кингисепп, ул. Жукова, д. 8а | C99: 1967 | E99: кирпич | F99: 9 | G99: 1 | H99: 1 | I99: 1973.1 | J99: 1973.1 | K99: 1817.2 | L99: 80 | M99: 2735709.46 | N99: 0 | O99: 0 | P99: 0 | Q99: =SUMIF('Раздел 2'!B:B,B99,'Раздел 2'!C:C)+SUMIF('Раздел 3'!B:B,B99,'Раздел 3'!C:C)+SUMIF('Раздел 4'!B:B,B99,'Раздел 4'!C:C) -> 2735709.46 | R99: 2022-12-30 | S99: РО
A100: 55 | B100: Г. Кингисепп, ш. Крикковское, д. 10а | C100: 1990 | E100: панельный | F100: 9 | G100: 2 | H100: 2 | I100: 4018.5 | J100: 4018.5 | K100: 3854.6 | L100: 193 | M100: 5471418.92 | N100: 0 | O100: 0 | P100: 0 | Q100: =SUMIF('Раздел 2'!B:B,B100,'Раздел 2'!C:C)+SUMIF('Раздел 3'!B:B,B100,'Раздел 3'!C:C)+SUMIF('Раздел 4'!B:B,B100,'Раздел 4'!C:C) -> 5471418.92 | R100: 2022-12-30 | S100: РО
A101: 56 | B101: Г. Кингисепп, ш. Крикковское, д. 12 | C101: 1986 | E101: панельный | F101: 9 | G101: 7 | H101: 7 | I101: 12986.58 | J101: 12986.58 | K101: 11323.03 | L101: 705 | M101: 19149966.22 | N101: 0 | O101: 0 | P101: 0 | Q101: =SUMIF('Раздел 2'!B:B,B101,'Раздел 2'!C:C)+SUMIF('Раздел 3'!B:B,B101,'Раздел 3'!C:C)+SUMIF('Раздел 4'!B:B,B101,'Раздел 4'!C:C) -> 19149966.22 | R101: 2022-12-30 | S101: РО
A102: 57 | B102: Г. Кингисепп, ш. Крикковское, д. 14 | C102: 1988 | E102: панельный | F102: 9 | G102: 7 | H102: 7 | I102: 14504.9 | J102: 14504.9 | K102: 13678.1 | L102: 711 | M102: 19149966.22 | N102: 0 | O102: 0 | P102: 0 | Q102: =SUMIF('Раздел 2'!B:B,B102,'Раздел 2'!C:C)+SUMIF('Раздел 3'!B:B,B102,'Раздел 3'!C:C)+SUMIF('Раздел 4'!B:B,B102,'Раздел 4'!C:C) -> 19149966.22 | R102: 2022-12-30 | S102: РО
A103: 58 | B103: Г. Кингисепп, ш. Крикковское, д. 35 | C103: 1981 | E103: панельный | F103: 9 | G103: 5 | H103: 5 | I103: 9763.8 | J103: 9763.8 | K103: 9171 | L103: 584 | M103: 13678547.3 | N103: 0 | O103: 0 | P103: 0 | Q103: =SUMIF('Раздел 2'!B:B,B103,'Раздел 2'!C:C)+SUMIF('Раздел 3'!B:B,B103,'Раздел 3'!C:C)+SUMIF('Раздел 4'!B:B,B103,'Раздел 4'!C:C) -> 13678547.3 | R103: 2022-12-30 | S103: РО
A104: 59 | B104: Г. Кингисепп, ш. Крикковское, д. 39 | C104: 1989 | E104: панельный | F104: 9 | G104: 3 | H104: 3 | I104: 5976.9 | J104: 5976.9 | K104: 5782.17 | L104: 242 | M104: 8207128.38 | N104: 0 | O104: 0 | P104: 0 | Q104: =SUMIF('Раздел 2'!B:B,B104,'Раздел 2'!C:C)+SUMIF('Раздел 3'!B:B,B104,'Раздел 3'!C:C)+SUMIF('Раздел 4'!B:B,B104,'Раздел 4'!C:C) -> 8207128.38 | R104: 2022-12-30 | S104: РО
A105: 60 | B105: Г. Кингисепп, ш. Крикковское, д. 6 | C105: 1986 | E105: панельный | F105: 9 | G105: 6 | H105: 6 | I105: 11470.51 | J105: 11470.51 | K105: 10040.32 | L105: 637 | M105: 16414256.76 | N105: 0 | O105: 0 | P105: 0 | Q105: =SUMIF('Раздел 2'!B:B,B105,'Раздел 2'!C:C)+SUMIF('Раздел 3'!B:B,B105,'Раздел 3'!C:C)+SUMIF('Раздел 4'!B:B,B105,'Раздел 4'!C:C) -> 16414256.76 | R105: 2022-12-30 | S105: РО
A106: Итого по муниципальному образованию | C106: x | D106: x | E106: x | F106: x | G106: =SUM(G93:G105) -> 47 | H106: x | I106: =SUM(I93:I105) -> 90551.7 | J106: 90551.7 | K106: 83969.35 | L106: 4456 | M106: =SUM(M93:M105) -> 120501216.2 | N106: =SUM(N93:N105) -> 0 | O106: 0 | P106: 0 | Q106: 125972635.2 | R106: x | S106: x
A107: Итого по Кингисеппскому муниципальному району | C107: x | D107: x | E107: x | F107: x | G107: =G106 -> 47 | H107: x | I107: =SUM(I106) -> 90551.7 | J107: 90551.7 | K107: 83969.35 | L107: 4456 | M107: =M106 -> 120501216.2 | N107: =N106 -> 0 | O107: 0 | P107: 0 | Q107: 125972635.2 | R107: x | S107: x | T107: =Q107-'Раздел 3'!C77-'Раздел 4'!C53 -> 0 | U107: =M107-'Раздел 4'!C53 -> 638581.08
A108: Киришский муниципальный район
A109: Муниципальное образование Киришское городское поселение
A110: =A105+1 -> 61 | B110: Г. Кириши, бул. Плавницкий, д. 16 | C110: 1992 | E110: панель | F110: 9 | G110: 1 | H110: 1 | I110: 2398.8 | J110: 2121.8 | K110: 2121.8 | L110: 93 | M110: =Q110 -> 2803026.64 | N110: 0 | O110: 0 | P110: 0 | Q110: =SUMIF('Раздел 2'!B:B,B110,'Раздел 2'!C:C)+SUMIF('Раздел 3'!B:B,B110,'Раздел 3'!C:C)+SUMIF('Раздел 4'!B:B,B110,'Раздел 4'!C:C) -> 2803026.64 | R110: 2022-12-30 | S110: РО | T110: =Q110-'Раздел 2'!C60 -> 0
A111: =A110+1 -> 62 | B111: Г. Кириши, бул. Плавницкий, д. 36 | C111: 1997 | E111: панель | F111: 9 | G111: 1 | H111: 1 | I111: 3356 | J111: 3000 | K111: 3000 | L111: 101 | M111: 2735709.46 | N111: 0 | O111: 0 | P111: 0 | Q111: =SUMIF('Раздел 2'!B:B,B111,'Раздел 2'!C:C)+SUMIF('Раздел 3'!B:B,B111,'Раздел 3'!C:C)+SUMIF('Раздел 4'!B:B,B111,'Раздел 4'!C:C) -> 2735709.46 | R111: 2022-12-30 | S111: РО | T111: =Q111-'Раздел 3'!C80-'Раздел 4'!C56 -> 0
A112: 63 | B112: Г. Кириши, пер. Березовый, д. 10 | C112: 1996 | E112: панель | F112: 9 | G112: 1 | H112: 1 | I112: 2631.1 | J112: 2344.1 | K112: 2344.1 | L112: 101 | M112: 2638315.46 | N112: 0 | O112: 0 | P112: 0 | Q112: =SUMIF('Раздел 2'!B:B,B112,'Раздел 2'!C:C)+SUMIF('Раздел 3'!B:B,B112,'Раздел 3'!C:C)+SUMIF('Раздел 4'!B:B,B112,'Раздел 4'!C:C) -> 2638315.46 | R112: 2022-12-30 | S112: РО
A113: 64 | B113: Г. Кириши, просп. Героев, д. 15 | C113: 1994 | E113: панель | F113: 9 | G113: 1 | H113: 1 | I113: 2426.1 | J113: 2147 | K113: 2147 | L113: 71 | M113: 2802614.46 | N113: 0 | O113: 0 | P113: 0 | Q113: =SUMIF('Раздел 2'!B:B,B113,'Раздел 2'!C:C)+SUMIF('Раздел 3'!B:B,B113,'Раздел 3'!C:C)+SUMIF('Раздел 4'!B:B,B113,'Раздел 4'!C:C) -> 2802614.46 | R113: 2022-12-30 | S113: РО
A114: 65 | B114: Г. Кириши, просп. Героев, д. 17 | C114: 1993 | E114: панель | F114: 9 | G114: 2 | H114: 2 | I114: 5223.7 | J114: 4642.3 | K114: 4642.3 | L114: 159 | M114: 5567978.94 | N114: 0 | O114: 0 | P114: 0 | Q114: =SUMIF('Раздел 2'!B:B,B114,'Раздел 2'!C:C)+SUMIF('Раздел 3'!B:B,B114,'Раздел 3'!C:C)+SUMIF('Раздел 4'!B:B,B114,'Раздел 4'!C:C) -> 5567978.94 | R114: 2022-12-30 | S114: РО
A115: 66 | B115: Г. Кириши, просп. Ленина, д. 40 | C115: 1991 | E115: панель/кирпич | F115: 5/7 | G115: 1 | H115: 5 | I115: 5647 | J115: 4916.8 | K115: 3992 | L115: 176 | M115: 2735709.46 | N115: 0 | O115: 0 | P115: 0 | Q115: =SUMIF('Раздел 2'!B:B,B115,'Раздел 2'!C:C)+SUMIF('Раздел 3'!B:B,B115,'Раздел 3'!C:C)+SUMIF('Раздел 4'!B:B,B115,'Раздел 4'!C:C) -> 2735709.46 | R115: 2022-12-30 | S115: РО
A116: 67 | B116: Г. Кириши, просп. Ленина, д. 9 | C116: 1964 | E116: кирпич | F116: 9 | G116: 1 | H116: 1 | I116: 2289.91 | J116: 1995.59 | K116: 1940.69 | L116: 73 | M116: 2735709.46 | N116: 0 | O116: 0 | P116: 0 | Q116: =SUMIF('Раздел 2'!B:B,B116,'Раздел 2'!C:C)+SUMIF('Раздел 3'!B:B,B116,'Раздел 3'!C:C)+SUMIF('Раздел 4'!B:B,B116,'Раздел 4'!C:C) -> 2735709.46 | R116: 2022-12-30 | S116: РО
A117: 68 | B117: Г. Кириши, ул. Декабристов Бестужевых, д. 16 | C117: 1990 | E117: панель | F117: 9 | G117: 1 | H117: 1 | I117: 3261.7 | J117: 2702.6 | K117: 2702.6 | L117: 108 | M117: 2803590.77 | N117: 0 | O117: 0 | P117: 0 | Q117: =SUMIF('Раздел 2'!B:B,B117,'Раздел 2'!C:C)+SUMIF('Раздел 3'!B:B,B117,'Раздел 3'!C:C)+SUMIF('Раздел 4'!B:B,B117,'Раздел 4'!C:C) -> 2803590.77 | R117: 2022-12-30 | S117: РО
A118: 69 | B118: Г. Кириши, ул. Строителей, д. 2 | C118: 1971 | E118: кирпич | F118: 9 | G118: 1 | H118: 5 | I118: 15493.65 | J118: 13099.2 | K118: 11188 | L118: 519 | M118: 2735709.46 | N118: 0 | O118: 0 | P118: 0 | Q118: =SUMIF('Раздел 2'!B:B,B118,'Раздел 2'!C:C)+SUMIF('Раздел 3'!B:B,B118,'Раздел 3'!C:C)+SUMIF('Раздел 4'!B:B,B118,'Раздел 4'!C:C) -> 2735709.46 | R118: 2022-12-30 | S118: РО
A119: 70 | B119: Г. Кириши, ул. Строителей, д. 26 | C119: 1974 | E119: кирпич | F119: 9 | G119: 1 | H119: 5 | I119: 15470.37 | J119: 13282.4 | K119: 11176.5 | L119: 466 | M119: 2735709.46 | N119: 0 | O119: 0 | P119: 0 | Q119: =SUMIF('Раздел 2'!B:B,B119,'Раздел 2'!C:C)+SUMIF('Раздел 3'!B:B,B119,'Раздел 3'!C:C)+SUMIF('Раздел 4'!B:B,B119,'Раздел 4'!C:C) -> 2735709.46 | R119: 2022-12-30 | S119: РО
A120: 71 | B120: Г. Кириши, ул. Строителей, д. 28 | C120: 1993 | E120: панель | F120: 9 | G120: 1 | H120: 1 | I120: 2749.3 | J120: 2473.7 | K120: 2411.3 | L120: 90 | M120: 2803316.73 | N120: 0 | O120: 0 | P120: 0 | Q120: =SUMIF('Раздел 2'!B:B,B120,'Раздел 2'!C:C)+SUMIF('Раздел 3'!B:B,B120,'Раздел 3'!C:C)+SUMIF('Раздел 4'!B:B,B120,'Раздел 4'!C:C) -> 2803316.73 | R120: 2022-12-30 | S120: РО
A121: 72 | B121: Г. Кириши, ул. Строителей, д. 30 | C121: 1991 | E121: панель | F121: 9 | G121: 3 | H121: 3 | I121: 7631.2 | J121: 6837.2 | K121: 6765.7 | L121: 259 | M121: 8449707.67 | N121: 0 | O121: 0 | P121: 0 | Q121: =SUMIF('Раздел 2'!B:B,B121,'Раздел 2'!C:C)+SUMIF('Раздел 3'!B:B,B121,'Раздел 3'!C:C)+SUMIF('Раздел 4'!B:B,B121,'Раздел 4'!C:C) -> 8449707.67 | R121: 2022-12-30 | S121: РО
A122: 73 | B122: Г. Кириши, ул. Строителей, д. 46 | C122: 1991 | E122: панель | F122: 9 | G122: 4 | H122: 4 | I122: 9023.5 | J122: 7928.7 | K122: 7928.7 | L122: 334 | M122: 11264437.79 | N122: 0 | O122: 0 | P122: 0 | Q122: =SUMIF('Раздел 2'!B:B,B122,'Раздел 2'!C:C)+SUMIF('Раздел 3'!B:B,B122,'Раздел 3'!C:C)+SUMIF('Раздел 4'!B:B,B122,'Раздел 4'!C:C) -> 11264437.79 | R122: 2022-12-30 | S122: РО
A123: 74 | B123: Г. Кириши, ул. Энергетиков, д. 40 | C123: 1994 | E123: панель | F123: 9 | G123: 1 | H123: 1 | I123: 2724.9 | J123: 2445.3 | K123: 2445.3 | L123: 87 | M123: 2803602.38 | N123: 0 | O123: 0 | P123: 0 | Q123: =SUMIF('Раздел 2'!B:B,B123,'Раздел 2'!C:C)+SUMIF('Раздел 3'!B:B,B123,'Раздел 3'!C:C)+SUMIF('Раздел 4'!B:B,B123,'Раздел 4'!C:C) -> 2803602.38 | R123: 2022-12-30 | S123: РО
A124: Итого по муниципальному образованию | C124: x | D124: x | E124: x | F124: x | G124: =SUM(G110:G123) -> 20 | H124: x | I124: =SUM(I110:I123) -> 80327.23 | J124: =SUM(J110:J123) -> 69936.69 | K124: 64805.99 | L124: 2637 | M124: =SUM(M110:M123) -> 55615138.14 | N124: =SUM(N110:N123) -> 0 | O124: 0 | P124: 0 | Q124: =SUM(Q110:Q123) -> 55615138.14 | R124: x | S124: x
A125: Итого по Киришскому муниципальному району | C125: x | D125: x | E125: x | F125: x | G125: =G124 -> 20 | H125: x | I125: =SUM(I124) -> 80327.23 | J125: 69936.69 | K125: 64805.99 | L125: 2637 | M125: =M124 -> 55615138.14 | N125: =N124 -> 0 | O125: 0 | P125: 0 | Q125: 55615138.14 | R125: x | S125: x | T125: =Q125-'Раздел 2'!C70-'Раздел 3'!C87-'Раздел 4'!C62 -> 0 | U125: =M125-'Раздел 2'!C70-'Раздел 3'!#REF!-'Раздел 4'!C62 -> 
A126: Кировский муниципальный район
A127: Муниципальное образование Кировское городское поселение
A128: =A123+1 -> 75 | B128: Г. Кировск, ул. Молодежная, д. 3 | C128: 1994 | E128: панели | F128: 9 | G128: 1 | H128: 1 | I128: 2073.9 | J128: 2073.9 | K128: 2073.9 | L128: 102 | M128: =Q128 -> 2638315.46 | N128: 0 | O128: 0 | P128: 0 | Q128: =SUMIF('Раздел 2'!B:B,B128,'Раздел 2'!C:C)+SUMIF('Раздел 3'!B:B,B128,'Раздел 3'!C:C)+SUMIF('Раздел 4'!B:B,B128,'Раздел 4'!C:C) -> 2638315.46 | R128: 2022-12-30 | S128: РО
A129: =A128+1 -> 76 | B129: Г. Кировск, ул. Молодежная, д. 5 | C129: 1993 | E129: панели | F129: 9 | G129: 1 | H129: 1 | I129: 2127.07 | J129: 2127.07 | K129: 2127.07 | L129: 85 | M129: =Q129 -> 2638315.46 | N129: 0 | O129: 0 | P129: 0 | Q129: =SUMIF('Раздел 2'!B:B,B129,'Раздел 2'!C:C)+SUMIF('Раздел 3'!B:B,B129,'Раздел 3'!C:C)+SUMIF('Раздел 4'!B:B,B129,'Раздел 4'!C:C) -> 2638315.46 | R129: 2022-12-30 | S129: РО
A130: Итого по муниципальному образованию | C130: x | D130: x | E130: x | F130: x | G130: =SUM(G128:G129) -> 2 | H130: x | I130: =SUM(I128:I129) -> 4200.97 | J130: 4200.97 | K130: 4200.97 | L130: 187 | M130: 5276630.92 | N130: 0 | O130: 0 | P130: 0 | Q130: 5276630.92 | R130: x | S130: x
A131: Муниципальное образование Отрадненское городское поселение
A132: =A129+1 -> 77 | B132: Г. Отрадное, ул. Железнодорожная, д. 13 | C132: 1991 | E132: кирпич | F132: 9 | G132: 2 | H132: 2 | I132: 6262.84 | J132: 6262.84 | K132: 4134.32 | L132: 183 | M132: =Q132 -> 5276630.92 | N132: 0 | O132: 0 | P132: 0 | Q132: =SUMIF('Раздел 2'!B:B,B132,'Раздел 2'!C:C)+SUMIF('Раздел 3'!B:B,B132,'Раздел 3'!C:C)+SUMIF('Раздел 4'!B:B,B132,'Раздел 4'!C:C) -> 5276630.92 | R132: 2022-12-30 | S132: РО
A133: =A132+1 -> 78 | B133: Г. Отрадное, ул. Зарубина, д. 15 | C133: 1986 | E133: кирпич | F133: 9 | G133: 1 | H133: 1 | I133: 1900 | J133: 1900 | K133: 2573.98 | L133: 132 | M133: =Q133 -> 2638315.46 | N133: 0 | O133: 0 | P133: 0 | Q133: =SUMIF('Раздел 2'!B:B,B133,'Раздел 2'!C:C)+SUMIF('Раздел 3'!B:B,B133,'Раздел 3'!C:C)+SUMIF('Раздел 4'!B:B,B133,'Раздел 4'!C:C) -> 2638315.46 | R133: 2022-12-30 | S133: РО
A134: 79 | B134: Г. Отрадное, ул. Лесная, д. 10 | C134: 1990 | E134: панель | F134: 9 | G134: 1 | H134: 1 | I134: 3066.28 | J134: 3066.28 | K134: 1995.12 | L134: 83 | M134: =Q134 -> 3288315.46 | N134: 0 | O134: 0 | P134: 0 | Q134: =SUMIF('Раздел 2'!B:B,B134,'Раздел 2'!C:C)+SUMIF('Раздел 3'!B:B,B134,'Раздел 3'!C:C)+SUMIF('Раздел 4'!B:B,B134,'Раздел 4'!C:C) -> 3288315.46 | R134: 2022-12-30 | S134: РО
A135: 80 | B135: Г. Отрадное, ул. Центральная,д.17 | C135: 1995 | E135: панель | F135: 9 | G135: 4 | H135: 4 | I135: 12228.58 | J135: 12228.58 | K135: 8004.95 | L135: 276 | M135: =Q135 -> 10553261.84 | N135: 0 | O135: 0 | P135: 0 | Q135: =SUMIF('Раздел 2'!B:B,B135,'Раздел 2'!C:C)+SUMIF('Раздел 3'!B:B,B135,'Раздел 3'!C:C)+SUMIF('Раздел 4'!B:B,B135,'Раздел 4'!C:C) -> 10553261.84 | R135: 2022-12-30 | S135: РО
A136: 81 | B136: Г. Отрадное, ул. Щурова, д.4 | C136: 1988 | E136: панель | F136: 9 | G136: 2 | H136: 2 | I136: 6155.35 | J136: 6155.35 | K136: 4039.83 | L136: 176 | M136: =Q136 -> 5276630.92 | N136: 0 | O136: 0 | P136: 0 | Q136: =SUMIF('Раздел 2'!B:B,B136,'Раздел 2'!C:C)+SUMIF('Раздел 3'!B:B,B136,'Раздел 3'!C:C)+SUMIF('Раздел 4'!B:B,B136,'Раздел 4'!C:C) -> 5276630.92 | R136: 2022-12-30 | S136: РО
A137: Итого по муниципальному образованию | C137: x | D137: x | E137: x | F137: x | G137: =SUM(G132:G136) -> 10 | H137: x | I137: =SUM(I132:I136) -> 29613.05 | J137: 29613.05 | K137: 20748.2 | L137: 850 | M137: 27033154.6 | N137: 0 | O137: 0 | P137: 0 | Q137: 27033154.6 | R137: x | S137: x | T137: =Q137-'Раздел 2'!C82-'Раздел 3'!C99 -> 0
A138: Итого по Кировскому муниципальному району | C138: x | D138: x | E138: x | F138: x | G138: =G130+G137 -> 12 | H138: x | I138: =I137+I130 -> 33814.02 | J138: =J137+J130 -> 33814.02 | K138: =K137+K130 -> 24949.17 | L138: =L137+L130 -> 1037 | M138: =M130+M137 -> 32309785.52 | N138: =N130+N137 -> 0 | O138: =O130+O137 -> 0 | P138: =P130+P137 -> 0 | Q138: =Q130+Q137 -> 32309785.52 | R138: x | S138: x | T138: =Q138-'Раздел 2'!C83-'Раздел 3'!C100 -> 0 | U138: =M138-'Раздел 2'!C83-'Раздел 3'!C92 -> 25083154.6
A139: Ломоносовский муниципальный район
A140: Муниципальное образование Аннинское сельское поселение
A141: =A136+1 -> 82 | B141: Г.п. Новоселье, д. 7 | C141: 2002 | F141: 8 | G141: 4 | I141: 8904.3 | J141: 8904.3 | K141: 4472.9 | L141: 159 | Q141: =SUMIF('Раздел 2'!B:B,B141,'Раздел 2'!C:C)+SUMIF('Раздел 3'!B:B,B141,'Раздел 3'!C:C)+SUMIF('Раздел 4'!B:B,B141,'Раздел 4'!C:C) -> 10942837.84 | R141: 2022-12-30 | S141: РО
A142: Итого по муниципальному образованию | C142: x | D142: x | E142: x | F142: x | G142: =G141 -> 4 | H142: x | I142: =I141 -> 8904.3 | J142: =SUM(J141) -> 8904.3 | K142: 4472.9 | L142: 159 | M142: =M141 -> 0 | N142: =N141 -> 0 | O142: 0 | P142: 0 | Q142: 10942837.84 | R142: x | S142: x
A143: Итого по Ломоносовскому муниципальному району | C143: x | D143: x | E143: x | F143: x | G143: =G142 -> 4 | H143: x | I143: 8904.3 | J143: 8904.3 | K143: 4472.9 | L143: 159 | M143: 0 | N143: 0 | O143: 0 | P143: 0 | Q143: =Q142 -> 10942837.84 | R143: x | S143: x | U143: =M143-'Раздел 2'!#REF! -> 
A144: Лужский муниципальный район
A145: Муниципальное образование Лужское городское поселение
A146: =A141+1 -> 83 | B146: Г. Луга, просп. Володарского, д. 26 | C146: 1991 | E146: панель | F146: 9 | G146: 2 | H146: 2 | I146: 4870.2 | J146: 3988.5 | K146: 2974.7 | L146: 168 | M146: =Q146 -> 7140000 | N146: 0 | O146: 0 | P146: 0 | Q146: =SUMIF('Раздел 2'!B:B,B146,'Раздел 2'!C:C)+SUMIF('Раздел 3'!B:B,B146,'Раздел 3'!C:C)+SUMIF('Раздел 4'!B:B,B146,'Раздел 4'!C:C) -> 7140000 | R146: 2022-12-30 | S146: РО
A147: =A146+1 -> 84 | B147: Г. Луга, просп. Урицкого, д. 101 | C147: 1993 | E147: панель | F147: 9 | G147: 1 | H147: 1 | I147: 2745.8 | J147: 2014.5 | K147: 1974.3 | L147: 59 | M147: 2638315.46 | N147: 0 | O147: 0 | P147: 0 | Q147: =SUMIF('Раздел 2'!B:B,B147,'Раздел 2'!C:C)+SUMIF('Раздел 3'!B:B,B147,'Раздел 3'!C:C)+SUMIF('Раздел 4'!B:B,B147,'Раздел 4'!C:C) -> 2638315.46 | R147: 2022-12-30 | S147: РО
A148: 85 | B148: Г. Луга, просп. Урицкого, д. 99 | C148: 1993 | E148: панель | F148: 9 | G148: 1 | H148: 1 | I148: 2737.5 | J148: 2006.2 | K148: 1877.9 | L148: 81 | M148: 2638315.46 | N148: 0 | O148: 0 | P148: 0 | Q148: =SUMIF('Раздел 2'!B:B,B148,'Раздел 2'!C:C)+SUMIF('Раздел 3'!B:B,B148,'Раздел 3'!C:C)+SUMIF('Раздел 4'!B:B,B148,'Раздел 4'!C:C) -> 2638315.46 | R148: 2022-12-30 | S148: РО
A149: 86 | B149: Г. Луга, ул. Миккели, д. 1, кор. 1 | C149: 1993 | E149: панель | F149: 5/9 | G149: 1 | H149: 5 | I149: 7582 | J149: 5566 | K149: 5357.5 | L149: 202 | M149: 3876636.46 | N149: 0 | O149: 0 | P149: 0 | Q149: =SUMIF('Раздел 2'!B:B,B149,'Раздел 2'!C:C)+SUMIF('Раздел 3'!B:B,B149,'Раздел 3'!C:C)+SUMIF('Раздел 4'!B:B,B149,'Раздел 4'!C:C) -> 3876636.46 | R149: 2022-12-30 | S149: РО
A150: 87 | B150: Г. Луга, ул. Миккели, д. 1, кор. 3 | C150: 1994 | E150: панель | F150: 5/9 | G150: 1 | H150: 5 | I150: 7571.2 | J150: 5555.2 | K150: 5201.3 | L150: 189 | M150: 3876636.46 | N150: 0 | O150: 0 | P150: 0 | Q150: =SUMIF('Раздел 2'!B:B,B150,'Раздел 2'!C:C)+SUMIF('Раздел 3'!B:B,B150,'Раздел 3'!C:C)+SUMIF('Раздел 4'!B:B,B150,'Раздел 4'!C:C) -> 3876636.46 | R150: 2022-12-30 | S150: РО
A151: 88 | B151: Г. Луга, ул. Победы, д. 4 | C151: 1988 | E151: панель | F151: 9 | G151: 1 | H151: 1 | I151: 3004.6 | J151: 1954.4 | K151: 1803.1 | L151: 82 | M151: 3570000 | N151: 0 | O151: 0 | P151: 0 | Q151: =SUMIF('Раздел 2'!B:B,B151,'Раздел 2'!C:C)+SUMIF('Раздел 3'!B:B,B151,'Раздел 3'!C:C)+SUMIF('Раздел 4'!B:B,B151,'Раздел 4'!C:C) -> 3570000 | R151: 2022-12-30 | S151: РО
A152: 89 | B152: Г. Луга, ул. Победы, д. 7 | C152: 1977 | E152: кирпич | F152: 10 | G152: 1 | H152: 1 | I152: 2562.3 | J152: 2180.7 | K152: 1976.5 | L152: 89 | M152: 3700000 | N152: 0 | O152: 0 | P152: 0 | Q152: =SUMIF('Раздел 2'!B:B,B152,'Раздел 2'!C:C)+SUMIF('Раздел 3'!B:B,B152,'Раздел 3'!C:C)+SUMIF('Раздел 4'!B:B,B152,'Раздел 4'!C:C) -> 3700000 | R152: 2022-12-30 | S152: РО
A153: Итого по муниципальному образованию | C153: x | D153: x | E153: x | F153: x | G153: =SUM(G146:G152) -> 8 | H153: x | I153: =SUM(I146:I152) -> 31073.6 | J153: =SUM(J146:J152) -> 23265.5 | K153: 21165.3 | L153: 870 | M153: =SUM(M146:M152) -> 27439903.84 | N153: =SUM(N146:N152) -> 0 | O153: 0 | P153: 0 | Q153: 27439903.84 | R153: x | S153: x
A154: Итого по Лужскому муниципальному району | C154: x | D154: x | E154: x | F154: x | G154: =G153 -> 8 | H154: x | I154: =SUM(I153) -> 31073.6 | J154: 23265.5 | K154: 21165.3 | L154: 870 | M154: =M153 -> 27439903.84 | N154: =N153 -> 0 | O154: 0 | P154: 0 | Q154: 27439903.84 | R154: x | S154: x | T154: =Q154-'Раздел 2'!C94-'Раздел 3'!C111 -> 0 | U154: =M154-'Раздел 2'!C94-'Раздел 3'!C92 -> 0
A155: Сосновоборский городской округ
A156: Муниципальное образование Сосновоборский городской округ
A157: =A152+1 -> 90 | B157: Г. Сосновый Бор, ул. Ленинградская, д. 38 | C157: 1987 | E157: кирпич | F157: 9 | G157: 1 | H157: 1 | I157: 1790.8 | J157: 1090.4 | K157: 1090.4 | L157: 82 | M157: =Q157 -> 2735709.46 | N157: 0 | O157: 0 | P157: 0 | Q157: =SUMIF('Раздел 2'!B:B,B157,'Раздел 2'!C:C)+SUMIF('Раздел 3'!B:B,B157,'Раздел 3'!C:C)+SUMIF('Раздел 4'!B:B,B157,'Раздел 4'!C:C) -> 2735709.46 | R157: 2022-12-30 | S157: РО
A158: =A157+1 -> 91 | B158: Г. Сосновый Бор, ул. Молодежная, д. 26 | C158: 1989 | E158: панель | F158: 9 | G158: 2 | H158: 2 | I158: 3940.2 | J158: 3940.2 | K158: 2291.4 | L158: 166 | M158: =Q158 -> 7594407.96 | N158: 0 | O158: 0 | P158: 0 | Q158: =SUMIF('Раздел 2'!B:B,B158,'Раздел 2'!C:C)+SUMIF('Раздел 3'!B:B,B158,'Раздел 3'!C:C)+SUMIF('Раздел 4'!B:B,B158,'Раздел 4'!C:C) -> 7594407.96 | R158: 2022-12-30 | S158: РО
A159: 92 | B159: Г. Сосновый Бор, ул. Парковая, д. 70 | C159: 1994 | E159: кирпич | F159: 9 | G159: 1 | H159: 1 | I159: 2238.1 | J159: 2238.1 | K159: 1332.8 | L159: 98 | M159: =Q159 -> 2735709.46 | N159: 0 | O159: 0 | P159: 0 | Q159: =SUMIF('Раздел 2'!B:B,B159,'Раздел 2'!C:C)+SUMIF('Раздел 3'!B:B,B159,'Раздел 3'!C:C)+SUMIF('Раздел 4'!B:B,B159,'Раздел 4'!C:C) -> 2735709.46 | R159: 2022-12-30 | S159: РО
A160: 93 | B160: Г. Сосновый Бор, ул. Сибирская, д. 5 | C160: 1973 | E160: кирпич | F160: 9 | G160: 1 | H160: 1 | I160: 2017.7 | J160: 2017.7 | K160: 1989 | L160: 85 | M160: =Q160 -> 3880100.4 | N160: 0 | O160: 0 | P160: 0 | Q160: =SUMIF('Раздел 2'!B:B,B160,'Раздел 2'!C:C)+SUMIF('Раздел 3'!B:B,B160,'Раздел 3'!C:C)+SUMIF('Раздел 4'!B:B,B160,'Раздел 4'!C:C) -> 3880100.4 | R160: 2022-12-30 | S160: РО
A161: 94 | B161: Г. Сосновый Бор, ул. Солнечная, д. 30 | C161: 1977 | E161: кирпич | F161: 12 | G161: 2 | H161: 1 | I161: 3993 | J161: 3993 | K161: 2332.7 | L161: 171 | M161: =Q161 -> 5901813.6 | N161: 0 | O161: 0 | P161: 0 | Q161: =SUMIF('Раздел 2'!B:B,B161,'Раздел 2'!C:C)+SUMIF('Раздел 3'!B:B,B161,'Раздел 3'!C:C)+SUMIF('Раздел 4'!B:B,B161,'Раздел 4'!C:C) -> 5901813.6 | R161: 2022-12-30 | S161: РО
A162: Итого по муниципальному образованию | C162: x | D162: x | E162: x | F162: x | G162: =SUM(G157:G161) -> 7 | H162: x | I162: =SUM(I157:I161) -> 13979.8 | J162: 13279.4 | K162: 9036.3 | L162: 602 | M162: 22847740.88 | N162: 0 | O162: 0 | P162: 0 | Q162: 22847740.88 | R162: x | S162: x | T162: =Q162-'Раздел 2'!C100-'Раздел 3'!C116-'Раздел 4'!C72 -> 0 | U162: =M162-'Раздел 2'!C100 -> 5471418.92
A163: Сланцевский муниципальный район
A164: Муниципальное образование Сланцевское городское поселение
A165: =A161+1 -> 95 | B165: Г. Сланцы, ул. Гагарина, д. 5а | C165: 1988 | E165: кирпич | F165: 9 | G165: 1 | H165: 1 | I165: 2733.7 | J165: 2080.4 | K165: 1918.33 | L165: 108 | M165: =Q165 -> 3746636.46 | N165: 0 | O165: 0 | P165: 0 | Q165: =SUMIF('Раздел 2'!B:B,B165,'Раздел 2'!C:C)+SUMIF('Раздел 3'!B:B,B165,'Раздел 3'!C:C)+SUMIF('Раздел 4'!B:B,B165,'Раздел 4'!C:C) -> 3746636.46 | R165: 2022-12-30 | S165: РО | U165: =M165-'Раздел 2'!C103 -> 0
A166: Итого по муниципальному образованию | C166: x | D166: x | E166: x | F166: x | G166: =SUM(G165:G165) -> 1 | H166: x | I166: =SUM(I165:I165) -> 2733.7 | J166: 2080.4 | K166: 1918.33 | L166: 108 | M166: 3746636.46 | N166: 0 | O166: 0 | P166: 0 | Q166: 3746636.46 | R166: x | S166: x | U166: =M166-'Раздел 2'!C104 -> 0
A167: Итого по Сланцевскому муниципальному району | C167: x | D167: x | E167: x | F167: x | G167: =G166 -> 1 | H167: x | I167: =SUM(I166) -> 2733.7 | J167: 2080.4 | K167: 1918.33 | L167: 108 | M167: =M166 -> 3746636.46 | N167: =N166 -> 0 | O167: 0 | P167: 0 | Q167: 3746636.46 | R167: x | S167: x | T167: =Q167-'Раздел 2'!C105 -> 0 | U167: =M167-'Раздел 2'!C105 -> 0
A168: Тихвинский муниципальный район
A169: Муниципальное образование Тихвинское городское поселение
A170: =A165+1 -> 96 | B170: Г. Тихвин, микрорайон 1а, д. 45 | C170: 1995 | E170: панель | F170: 9 | G170: 2 | H170: 2 | I170: 5566.2 | J170: 4027.8 | K170: 2440.9 | L170: 423 | M170: =Q170 -> 5433061.95 | N170: 0 | O170: 0 | P170: 0 | Q170: =SUMIF('Раздел 2'!B:B,B170,'Раздел 2'!C:C)+SUMIF('Раздел 3'!B:B,B170,'Раздел 3'!C:C)+SUMIF('Раздел 4'!B:B,B170,'Раздел 4'!C:C) -> 5433061.95 | R170: 2022-12-30 | S170: РО
A171: =A170+1 -> 97 | B171: Г. Тихвин, ул. Советская, д. 1 | C171: 1994 | E171: панель | F171: 10 | G171: 2 | H171: 2 | I171: 3864 | J171: 4108.5 | K171: 2258.7 | L171: 360 | M171: =Q171 -> 5459425.35 | N171: 0 | O171: 0 | P171: 0 | Q171: =SUMIF('Раздел 2'!B:B,B171,'Раздел 2'!C:C)+SUMIF('Раздел 3'!B:B,B171,'Раздел 3'!C:C)+SUMIF('Раздел 4'!B:B,B171,'Раздел 4'!C:C) -> 5459425.35 | R171: 2022-12-30 | S171: РО
A172: =A171+1 -> 98 | B172: Г. Тихвин, ул. Машиностроителей, д.46 | C172: 1988 | E172: панель | F172: 9 | G172: 5 | H172: 5 | I172: 14841.1 | J172: 10091.3 | K172: 8441.6 | L172: 521 | M172: =Q172 -> 13191577.3 | N172: 0 | O172: 0 | P172: 0 | Q172: =SUMIF('Раздел 2'!B:B,B172,'Раздел 2'!C:C)+SUMIF('Раздел 3'!B:B,B172,'Раздел 3'!C:C)+SUMIF('Раздел 4'!B:B,B172,'Раздел 4'!C:C) -> 13191577.3 | R172: 2022-12-30 | S172: РО
A173: Итого по муниципальному образованию | C173: x | D173: x | E173: x | F173: x | G173: =SUM(G170:G172) -> 9 | H173: x | I173: =SUM(I170:I172) -> 24271.3 | J173: =SUM(J170:J172) -> 18227.6 | K173: 13141.2 | L173: 1304 | M173: 24084064.6 | N173: 0 | O173: 0 | P173: 0 | Q173: 24084064.6 | R173: x | S173: x
A174: Итого по Тихвинскому муниципальному району | C174: x | D174: x | E174: x | F174: x | G174: =G173 -> 9 | H174: x | I174: =SUM(I173) -> 24271.3 | J174: =SUM(J173) -> 18227.6 | K174: 13141.2 | L174: 1304 | M174: 24084064.6 | N174: 0 | O174: 0 | P174: 0 | Q174: 24084064.6 | R174: x | S174: x | T174: =Q174-'Раздел 2'!C112-'Раздел 3'!C120 -> 0
A175: Тосненский район
A176: Муниципальное образование Тосненское городское поселение
A177: =A172+1 -> 99 | B177: Г. Тосно, ул. М. Горького, д. 8а | G177: 2 | M177: =Q177 -> 5276630.92 | N177: 0 | O177: 0 | P177: 0 | Q177: =SUMIF('Раздел 2'!B:B,B177,'Раздел 2'!C:C)+SUMIF('Раздел 3'!B:B,B177,'Раздел 3'!C:C)+SUMIF('Раздел 4'!B:B,B177,'Раздел 4'!C:C) -> 5276630.92 | R177: 2022-12-30 | S177: РО
A178: =A177+1 -> 100 | B178: Г. Тосно, пр. Ленина, д. 19 | G178: 4 | M178: =Q178 -> 10553261.84 | N178: 0 | O178: 0 | P178: 0 | Q178: =SUMIF('Раздел 2'!B:B,B178,'Раздел 2'!C:C)+SUMIF('Раздел 3'!B:B,B178,'Раздел 3'!C:C)+SUMIF('Раздел 4'!B:B,B178,'Раздел 4'!C:C) -> 10553261.84 | R178: 2022-12-30 | S178: РО
A179: Итого по муниципальному образованию | C179: x | D179: x | E179: x | F179: x | G179: =SUM(G177:G178) -> 6 | H179: x | I179: =SUM(I177:I177) -> 0 | J179: 0 | K179: 0 | L179: 0 | M179: 5276630.92 | N179: 0 | O179: 0 | P179: 0 | Q179: =SUM(Q177:Q178) -> 15829892.76 | R179: x | S179: x
A180: Итого по Тосненскому району | C180: x | D180: x | E180: x | F180: x | G180: =G179 -> 6 | H180: x | I180: =SUM(I179) -> 0 | J180: =SUM(J179) -> 0 | K180: 0 | L180: 0 | M180: =M179 -> 5276630.92 | N180: =N179 -> 0 | O180: 0 | P180: 0 | Q180: =Q179 -> 15829892.76 | R180: x | S180: x | T180: =Q180-'Раздел 2'!C118-'Раздел 3'!C127 -> 0
A181: ИТОГО по Ленинградской области | C181: x | D181: x | E181: x | F181: x | G181: =G20+G44+G73+G90+G107+G125+G138+G143+G154+G162+G167+G174+G180 -> 219 | H181: х | I181: =I20+I44+I73+I90+I107+I125+I138+I143+I154+I162+I167+I174+I180 -> 566947.41 | J181: =J20+J44+J73+J90+J107+J125+J138+J143+J154+J162+J167+J174+J180 -> 490114.07 | K181: 395998.9 | L181: 19568.1 | M181: 588845533.9 | N181: 0 | O181: 0 | P181: =P20+P44+P73+P90+P107+P125+P138+P143+P154+P162+P167+P174+P180 -> 0 | Q181: =Q180+Q174+Q167+Q162+Q154+Q143+Q138+Q125+Q107+Q90+Q73+Q44+Q20 -> 615813052.5 | R181: x | S181: x | T181: =Q181-'Раздел 2'!C119-'Раздел 3'!C128-'Раздел 4'!C73 -> 0
A182: Осуществление строительного контроля | C182: x | D182: x | E182: x | F182: x | G182: x | H182: x | I182: x | J182: x | K182: x | L182: x | M182: ='Раздел 2'!C120+'Раздел 3'!C129+'Раздел 4'!C74 -> 12287162.63 | N182: 0 | O182: 0 | P182: 0 | Q182: ='Раздел 2'!C120+'Раздел 3'!C129+'Раздел 4'!C74 -> 12287162.63 | R182: х | S182: х
A183: Итого по Ленинградской области со строительным контролем | C183: x | D183: x | E183: x | F183: x | G183: x | H183: x | I183: x | J183: x | K183: x | L183: x | M183: =M181+M182 -> 601132696.5 | N183: =N181+N182 -> 0 | O183: 0 | P183: 0 | Q183: =M182+Q181 -> 628100215.1 | R183: х | S183: х | T183: =Q183-'Раздел 2'!C121-'Раздел 3'!C130-'Раздел 4'!C75 -> 0
S911: =M288+#REF!+#REF!+#REF!+#REF!+#REF! -> 

Sheet Раздел 2
A1: Раздел II. Реестр многоквартирных домов, в которых будет проводиться капитальный ремонт лифтового оборудования в 2020 году, за счет средств собственников
A2: № п\п | B2: Адрес МКД | C2: Стоимость капитального ремонта ВСЕГО | D2: Ремонт или замена лифтового оборудования | F2: ТО | G2: Проектные работы
C3: руб. | D3: ед. | E3: руб | F3: руб. | G3: руб.
A4: 1 | B4: 2 | C4: 3 | D4: 4 | E4: 5 | F4: 6 | G4: 7
A5: Всеволожский муниципальный район
A6: Муниципальное образование Город Всеволожск
A7: 1 | B7: Г. Всеволожск, ул. Александровская, д. 81, корп. 3 | C7: =E7+F7+G7 -> 260000 | G7: 260000 | H7: 260000
A8: =A7+1 -> 2 | B8: Г. Всеволожск, ул. Балашова, д. 8/3 | C8: =E8+F8+G8 -> 260000 | G8: 260000
A9: =A8+1 -> 3 | B9: Г. Всеволожск, ул. Василеозерская, д. 5 | C9: =E9+F9+G9 -> 260000 | G9: 260000
A10: =A9+1 -> 4 | B10: Г. Всеволожск, ул. Ленинградская, д. 24/84 | C10: =E10+F10+G10 -> 910000 | G10: 910000
A11: Итого по муниципальному образованию | C11: =SUM(C7:C10) -> 1690000 | D11: =SUM(D7:D10) -> 0 | E11: 0 | F11: 0 | G11: 1690000
A12: Муниципальное образование Муринское городское поселение
A13: =A10+1 -> 5 | B13: Пос. Мурино, ул. Оборонная, д. 12 | C13: =E13+F13+G13 -> 260000 | G13: 260000
A14: =A13+1 -> 6 | B14: Пос. Мурино, ул. Оборонная, д. 24 | C14: =E14+F14+G14 -> 390000 | G14: =130000*3 -> 390000
A15: =A14+1 -> 7 | B15: Пос. Мурино, ул. Оборонная, д. 22 | C15: =E15+F15+G15 -> 130000 | G15: 130000
A16: Итого по муниципальному образованию | C16: =SUM(C13:C15) -> 780000 | D16: =SUM(D13:D15) -> 0 | E16: =SUM(E13:E15) -> 0 | F16: =SUM(F13:F15) -> 0 | G16: =SUM(G13:G15) -> 780000
A17: Муниципальное образование Свердловское городское поселение
A18: =A15+1 -> 8 | B18: Пос. им. Свердлова, микрорайон 1, д. 8 | C18: =E18+F18+G18 -> 520000 | G18: 520000
A19: Итого по муниципальному образованию | C19: =C18 -> 520000 | D19: =D18 -> 0 | E19: 0 | F19: 0 | G19: 520000
A20: Муниципальное образование Сертолово
A21: =A18+1 -> 9 | B21: Г. Сертолово, микрорайон Сертолово-1, ул. Молодежная, д. 8, корп. 2 | C21: =E21+F21+G21 -> 390000 | G21: 390000
A22: =A21+1 -> 10 | B22: Г. Сертолово, микрорайон Сертолово-1, ул. Центральная, д. 6, корп. 1 | C22: =E22+F22+G22 -> 8667924.47 | D22: =cвод!J19 -> 3 | E22: =SUM([1]субсидия!$C$166:$C$168) -> 8057534.09 | F22: =cвод!L19 -> 220390.38 | G22: =D22*130000 -> 390000
A23: =A22+1 -> 11 | B23: Г. Сертолово, микрорайон Сертолово-1, ул. Центральная, д. 7, корп. 1 | C23: =E23+F23+G23 -> 8680076.04 | D23: =cвод!J20 -> 3 | E23: =SUM([1]субсидия!$C$169:$C$171) -> 8069685.66 | F23: =cвод!L20 -> 220390.38 | G23: =D23*130000 -> 390000
A24: Итого по муниципальному образованию | C24: =SUM(C21:C23) -> 17738000.51 | D24: =SUM(D21:D23) -> 6 | E24: 16127219.75 | F24: 440780.76 | G24: 1170000
A25: Итого по Всеволожскому муниципальному району | C25: =C24+C16+C11+C19 -> 20728000.51 | D25: =D24+D16+D11+D19 -> 6 | E25: =E24+E16+E11+E19 -> 16127219.75 | F25: =F24+F16+F11+F19 -> 440780.76 | G25: =G24+G16+G11+G19 -> 4160000
A26: Выборгский район
A27: Муниципальное образование Город Выборг
A28: =A23+1 -> 12 | B28: Г. Выборг, бул. Кутузова, д. 33 | C28: =E28+F28+G28 -> 2540171.372 | D28: =cвод!J25 -> 1 | E28: =[1]субсидия!$C$295 -> 2362913.11 | F28: =E28*0.02 -> 47258.2622 | G28: =D28*130000 -> 130000
A29: =A28+1 -> 13 | B29: Г. Выборг, пр. Победы, д. 8 | C29: 2438131.623 | D29: =cвод!J29 -> 1 | E29: =[1]субсидия!$C$287 -> 2262874.14 | F29: 45257.4828 | G29: =D29*130000 -> 130000
A30: =A29+1 -> 14 | B30: Г. Выборг, просп. Победы, д. 12 | C30: 520000 | G30: 520000
A31: =A30+1 -> 15 | B31: Г. Выборг, ул. Гагарина, д. 29 | C31: 11629909.38 | D31: =cвод!J31 -> 3 | E31: =cвод!K31 -> 11019519 | F31: 220390.38 | G31: =D31*130000 -> 390000
A32: 16 | B32: Г. Выборг, ул. Гагарина, д. 65 | C32: 2438059.641 | D32: =cвод!J32 -> 1 | E32: =[1]субсидия!$C$290 -> 2262803.57 | F32: 45256.0714 | G32: 130000
A33: 17 | B33: Г. Выборг, ул. Крепостная, д. 39а | C33: 3876636.46 | D33: =cвод!J35 -> 1 | E33: =cвод!K35 -> 3673173 | F33: 73463.46 | G33: 130000
A34: 18 | B34: Г. Выборг, ул. Офицерская, д. 12 | C34: 2481167.544 | D34: =cвод!J36 -> 1 | E34: =[1]субсидия!$C$293 -> 2305066.22 | F34: 46101.3244 | G34: 130000
A35: 19 | B35: Г. Выборг, ул. Офицерская, д. 14 | C35: 2483623.235 | D35: =cвод!J37 -> 1 | E35: =[1]субсидия!$C$294 -> 2307473.76 | F35: 46149.4752 | G35: 130000
A36: Итого по муниципальному образованию | C36: =SUM(C28:C35) -> 28407699.26 | D36: =SUM(D28:D35) -> 9 | E36: =SUM(E28:E35) -> 26193822.8 | F36: =SUM(F28:F35) -> 523876.456 | G36: =SUM(G28:G35) -> 1690000
A37: Муниципальное образование Светогорское городское поселение
A38: =A35+1 -> 20 | B38: Г. Светогорск, ул. Красноармейская, д. 26 | C38: =E38+F38+G38 -> 8324810.25 | D38: 3 | E38: 8126680.65 | F38: 198129.6 | G38: 0
A39: =A38+1 -> 21 | B39: Г. Светогорск, ул. Красноармейская, д. 32 | C39: =E39+F39+G39 -> 13117704.67 | D39: 5 | E39: =SUM([1]субсидия!$C$299:$C$303) -> 11888945.95 | F39: =cвод!L48 -> 448758.72 | G39: =cвод!Z48 -> 780000
A40: =A39+1 -> 22 | B40: Г. Светогорск, ул. Красноармейская, д. 8 | C40: =E40+F40+G40 -> 7759701.1 | D40: 3 | E40: =SUM([1]субсидия!$C$296:$C$298) -> 7170098.2 | F40: =66534.3+66534.3+66534.3 -> 199602.9 | G40: =D40*130000 -> 390000
A41: Итого по муниципальному образованию | C41: =SUM(C38:C40) -> 29202216.02 | D41: =SUM(D38:D40) -> 11 | E41: 27185724.8 | F41: 846491.22 | G41: 1170000
A42: Муниципальное образование Советское городское поселение
A43: =A40+1 -> 23 | B43: Г.п. Советский, ул. Садовая, д. 46 | C43: =E43+F43+G43 -> 2381097.22 | D43: 1 | E43: 2313231.88 | F43: 67865.34
A44: Итого по муниципальному образованию | C44: =SUM(C43) -> 2381097.22 | D44: =SUM(D43) -> 1 | E44: 2313231.88 | F44: 67865.34 | G44: 0
A45: Итого по Выборгскому району | C45: =C41+C36+C44 -> 59991012.5 | D45: =D41+D36+D44 -> 21 | E45: 55692779.48 | F45: 1438233.016 | G45: 2860000
A46: Гатчинский муниципальный район
A47: Муниципальное образование Город Гатчина
A48: =A43+1 -> 24 | B48: Г. Гатчина, просп. 25 Октября, д. 63 | C48: =E48+F48+G48 -> 390000 | G48: 390000
A49: =A48+1 -> 25 | B49: Г. Гатчина, ул. Авиатриссы Зверевой, д. 11 | C49: 260000 | G49: 260000
A50: 26 | B50: Г. Гатчина, ул. Красных Военлётов, д. 9 | C50: 520000 | G50: =4*130000 -> 520000
A51: 27 | B51: Г. Гатчина, ул. Рощинская, д. 19 | C51: 15506545.84 | D51: =cвод!J70 -> 4 | E51: =cвод!K70 -> 14692692 | F51: =cвод!L70 -> 293853.84 | G51: =D51*130000 -> 520000
A52: 28 | B52: Г. Гатчина, ул. Рощинская, д. 9Г | C52: 7753272.92 | D52: =cвод!J72 -> 2 | E52: =cвод!K72 -> 7346346 | F52: =cвод!L72 -> 146926.92 | G52: =D52*130000 -> 260000
A53: 29 | B53: Г. Гатчина, ул. Рощинская, д. 13, кор. 1 | C53: 130000 | G53: 130000
A54: 30 | B54: Г. Гатчина, ул. Чехова, д. 14 | C54: 260000 | G54: 260000
A55: 31 | B55: Г. Гатчина, ул. Хохлова, д. 2 | C55: 390000 | G55: 390000
A56: Итого по муниципальному образованию | C56: =SUM(C48:C55) -> 25209818.76 | D56: =SUM(D48:D55) -> 6 | E56: =SUM(E48:E55) -> 22039038 | F56: =SUM(F48:F55) -> 440780.76 | G56: =SUM(G48:G55) -> 2730000
A57: Итого по Гатчинскому муниципальному району | C57: =C56 -> 25209818.76 | D57: =D56 -> 6 | E57: 22039038 | F57: 440780.76 | G57: 2730000
A58: Киришский муниципальный район
A59: Муниципальное образование Киришское городское поселение
A60: =A55+1 -> 32 | B60: Г. Кириши, бул. Плавницкий, д. 16 | C60: =E60+F60+G60 -> 2803026.64 | D60: =cвод!J95 -> 1 | E60: =[1]субсидия!$C$322 -> 2599563.18 | F60: =cвод!L95 -> 73463.46 | G60: =D60*130000 -> 130000
A61: =A60+1 -> 33 | B61: Г. Кириши, пер. Березовый, д. 10 | C61: 130000 | G61: 130000
A62: 34 | B62: Г. Кириши, просп. Героев, д. 15 | C62: 2802614.46 | D62: =cвод!J98 -> 1 | E62: =[1]субсидия!$C$323 -> 2599151 | F62: =cвод!L98 -> 73463.46 | G62: =D62*130000 -> 130000
A63: 35 | B63: Г. Кириши, просп. Героев, д. 17 | C63: 5567978.94 | D63: =cвод!J99 -> 2 | E63: =SUM([1]субсидия!$C$324:$C$325) -> 5161052.02 | F63: =cвод!L99 -> 146926.92 | G63: 260000
A64: 36 | B64: Г. Кириши, ул. Декабристов Бестужевых, д. 16 | C64: 2803590.77 | D64: =cвод!J102 -> 1 | E64: =[1]субсидия!$C$326 -> 2600127.31 | F64: =cвод!L102 -> 73463.46 | G64: 130000
A65: 37 | B65: Г. Кириши, ул. Строителей, д. 28 | C65: 2803316.73 | D65: =cвод!J105 -> 1 | E65: =[1]субсидия!$C$327 -> 2599853.27 | F65: =cвод!L105 -> 73463.46 | G65: 130000
A66: 38 | B66: Г. Кириши, ул. Строителей, д. 30 | C66: 8449707.67 | D66: =cвод!J106 -> 3 | E66: =SUM([1]субсидия!$C$328:$C$330) -> 7839317.29 | F66: =cвод!L106 -> 220390.38 | G66: 390000
A67: 39 | B67: Г. Кириши, ул. Строителей, д. 46 | C67: 11264437.79 | D67: =cвод!J107 -> 4 | E67: =SUM([1]субсидия!$C$331:$C$334) -> 10450583.95 | F67: =cвод!L107 -> 293853.84 | G67: 520000
A68: =A67+1 -> 40 | B68: Г. Кириши, ул. Энергетиков, д. 40 | C68: 2803602.38 | D68: =cвод!J108 -> 1 | E68: =[1]субсидия!$C$335 -> 2600138.92 | F68: =cвод!L108 -> 73463.46 | G68: 130000
A69: Итого по муниципальному образованию | C69: =SUM(C60:C68) -> 39428275.38 | D69: =SUM(D60:D68) -> 14 | E69: =SUM(E60:E68) -> 36449786.94 | F69: =SUM(F60:F68) -> 1028488.44 | G69: =SUM(G60:G68) -> 1950000
A70: Итого по Киришскому муниципальному району | C70: =C69 -> 39428275.38 | D70: =D69 -> 14 | E70: 36449786.94 | F70: 1028488.44 | G70: 1950000
A71: Кировский муниципальный район
A72: Муниципальное образование Кировское городское поселение
A73: =A68+1 -> 41 | B73: Г. Кировск, ул. Молодежная, д. 3 | C73: =E73+F73+G73 -> 130000 | G73: 130000
A74: =A73+1 -> 42 | B74: Г. Кировск, ул. Молодежная, д. 5 | C74: 130000 | G74: 130000
A75: Итого по муниципальному образованию | C75: =SUM(C73:C74) -> 260000 | D75: =SUM(D73:D74) -> 0 | E75: =SUM(E73:E74) -> 0 | F75: =SUM(F73:F74) -> 0 | G75: =SUM(G73:G74) -> 260000
A76: Муниципальное образование Отрадненское городское поселение
A77: =A74+1 -> 43 | B77: Г. Отрадное, ул. Железнодорожная, д. 13 | C77: =E77+F77+G77 -> 260000 | G77: 260000
A78: =A77+1 -> 44 | B78: Г. Отрадное, ул. Зарубина, д. 15 | C78: 130000 | G78: 130000
A79: =A78+1 -> 45 | B79: Г. Отрадное, ул. Лесная, д. 10 | C79: 780000 | G79: 780000
A80: =A79+1 -> 46 | B80: Г. Отрадное, ул. Центральная,д.17 | C80: 520000 | G80: 520000
A81: 47 | B81: Г. Отрадное, ул. Щурова, д.4 | C81: 260000 | G81: 260000
A82: Итого по муниципальному образованию | C82: =SUM(C77:C81) -> 1950000 | D82: =SUM(D77:D81) -> 0 | E82: =SUM(E77:E81) -> 0 | F82: =SUM(F77:F81) -> 0 | G82: =SUM(G77:G81) -> 1950000
A83: Итого по Кировскому муниципальному району | C83: =+C82+C75 -> 2210000 | D83: =+D82+D75 -> 0 | E83: =+E82+E75 -> 0 | F83: =+F82+F75 -> 0 | G83: =+G82+G75 -> 2210000
A84: Лужский муниципальный район
A85: Муниципальное образование Лужское городское поселение
A86: =A81+1 -> 48 | B86: Г. Луга, просп. Володарского, д. 26 | C86: =E86+F86+G86 -> 7140000 | D86: =cвод!J134 -> 2 | E86: =cвод!K134 -> 7000000 | F86: =cвод!L134 -> 140000
A87: =A86+1 -> 49 | B87: Г. Луга, ул. Миккели, д. 1, кор. 1 | C87: 3876636.46 | D87: =cвод!J137 -> 1 | E87: =cвод!K137 -> 3673173 | F87: =cвод!L137 -> 73463.46 | G87: =D87*130000 -> 130000
A88: =A87+1 -> 50 | B88: Г. Луга, ул. Миккели, д. 1, кор. 3 | C88: 3876636.46 | D88: =cвод!J138 -> 1 | E88: =cвод!K138 -> 3673173 | F88: =cвод!L138 -> 73463.46 | G88: =D88*130000 -> 130000
A89: =A88+1 -> 51 | B89: Г. Луга, ул. Победы, д. 4 | C89: 3570000 | D89: =cвод!J139 -> 1 | E89: =cвод!K139 -> 3500000 | F89: =cвод!L139 -> 70000
A90: =A89+1 -> 52 | B90: Г. Луга, ул. Победы, д. 7 | C90: 3700000 | D90: =cвод!J140 -> 1 | E90: =cвод!K140 -> 3500000 | F90: =cвод!L140 -> 70000 | G90: =D90*130000 -> 130000
A91: =A90+1 -> 53 | B91: Г. Луга, просп. Урицкого, д. 101 | C91: 130000 | D91: =cвод!J194 -> 0 | E91: =cвод!K194 -> 0 | F91: =cвод!L194 -> 0 | G91: 130000
A92: 54 | B92: Г. Луга, просп. Урицкого, д. 99 | C92: 130000 | D92: =cвод!J195 -> 0 | E92: =cвод!K195 -> 0 | F92: =cвод!L195 -> 0 | G92: 130000
A93: Итого по муниципальному образованию | C93: =SUM(C86:C92) -> 22423272.92 | D93: =SUM(D86:D92) -> 6 | E93: 21346346 | F93: 426926.92 | G93: 650000
A94: Итого по Лужскому муниципальному району | C94: =C93 -> 22423272.92 | D94: =D93 -> 6 | E94: 21346346 | F94: 426926.92 | G94: 650000
A95: Сосновоборский городской округ
A96: Муниципальное образование Сосновоборский городской округ
A97: =A92+1 -> 55 | B97: Г. Сосновый Бор, ул. Молодежная, д. 26 | C97: =E97+F97+G97 -> 7594407.96 | D97: 2 | E97: =D97*3641478+162542 -> 7445498 | F97: =E97*0.02 -> 148909.96
A98: =A97+1 -> 56 | B98: Г. Сосновый Бор, ул. Сибирская, д. 5 | C98: 3880100.4 | D98: =cвод!J152 -> 1 | E98: =cвод!K152 -> 3804020 | F98: =cвод!L152 -> 76080.4
A99: =A98+1 -> 57 | B99: Г. Сосновый Бор, ул. Солнечная, д. 30 | C99: 5901813.6 | D99: 2 | E99: 5753330.4 | F99: 148483.2
A100: Итого по муниципальному образованию | C100: =SUM(C97:C99) -> 17376321.96 | D100: =SUM(D97:D99) -> 5 | E100: =SUM(E97:E99) -> 17002848.4 | F100: =SUM(F97:F99) -> 373473.56 | G100: =SUM(G97:G99) -> 0
A101: Сланцевский муниципальный район
A102: Муниципальное образование Сланцевское городское поселение
A103: =A99+1 -> 58 | B103: Г. Сланцы, ул. Гагарина, д. 5а | C103: =E103+F103+G103 -> 3746636.46 | D103: =cвод!J160 -> 1 | E103: =cвод!K160 -> 3673173 | F103: =cвод!L160 -> 73463.46
A104: Итого по муниципальному образованию | C104: =SUM(C103:C103) -> 3746636.46 | D104: =SUM(D103:D103) -> 1 | E104: =SUM(E103:E103) -> 3673173 | F104: =SUM(F103:F103) -> 73463.46 | G104: =SUM(G103:G103) -> 0
A105: Итого по Сланцевскому муниципальному району | C105: =C104 -> 3746636.46 | D105: =D104 -> 1 | E105: 3673173 | F105: 73463.46 | G105: 0
A106: Тихвинский муниципальный район
A107: Муниципальное образование Тихвинское городское поселение
A108: =A103+1 -> 59 | B108: Г. Тихвин, микрорайон 1а, д. 45 | C108: =E108+F108+G108 -> 5433061.95 | D108: =cвод!J171 -> 2 | E108: =SUM([1]субсидия!$C$317:$C$318) -> 5026135.03 | F108: =cвод!L171 -> 146926.92 | G108: =D108*130000 -> 260000
A109: =A108+1 -> 60 | B109: Г. Тихвин, ул. Машиностроителей, д.46 | C109: =E109+F109+G109 -> 650000 | G109: 650000
A110: =A109+1 -> 61 | B110: Г. Тихвин, ул. Советская, д. 1 | C110: =E110+F110+G110 -> 5459425.35 | D110: =cвод!J172 -> 2 | E110: =SUM([1]субсидия!$C$319:$C$320) -> 5052498.43 | F110: =cвод!L172 -> 146926.92 | G110: =D110*130000 -> 260000
A111: Итого по муниципальному образованию | C111: =SUM(C108:C110) -> 11542487.3 | D111: =SUM(D108:D110) -> 4 | E111: 10078633.46 | F111: 293853.84 | G111: 1170000
A112: Итого по Тихвинскому муниципальному району | C112: =C111 -> 11542487.3 | D112: =D111 -> 4 | E112: 10078633.46 | F112: 293853.84 | G112: 1170000
A113: Тосненский район
A114: Муниципальное образование Тосненское городское поселение
A115: =A110+1 -> 62 | B115: Г. Тосно, ул. М. Горького, д. 8а | C115: =E115+F115+G115 -> 260000 | G115: 260000
A116: =A115+1 -> 63 | B116: Г. Тосно, пр. Ленина, д. 19 | C116: =E116+F116+G116 -> 520000 | G116: =130000*4 -> 520000
A117: Итого по муниципальному образованию | C117: =SUM(C115:C116) -> 780000 | D117: =SUM(D115:D116) -> 0 | E117: =SUM(E115:E116) -> 0 | F117: =SUM(F115:F116) -> 0 | G117: =SUM(G115:G116) -> 780000
A118: Итого по Тосненскому району | C118: =C117 -> 780000 | D118: =D117 -> 0 | E118: 0 | F118: 0 | G118: 780000
A119: ИТОГО по Ленинградской области | C119: =C118+C112+C105+C100+C94+C83+C70+C57+C45+C25 -> 203435825.8 | D119: =D118+D112+D105+D100+D94+D83+D70+D57+D45+D25 -> 63 | E119: =E118+E112+E105+E100+E94+E83+E70+E57+E45+E25 -> 182409825 | F119: 4516000.756 | G119: 16510000
A120: Осуществление строительного контроля | C120: =(C119-F119-G119)*0.0214 -> 3903570.256
A121: Итого по Ленинградской области со строительным контролем | C121: =C119+C120 -> 207339396
G195: =SUM(G182:G194) -> 0
G218: =SUM(G200:G217) -> 0
G229: =SUM(G223:G228) -> 0
G237: =SUM(G231:G236) -> 0
G243: =SUM(G239:G241) -> 0
G244: =G195+G218+G229+G243+G237+G221 -> 0
G251: =SUM(G247:G250) -> 0
G315: =SUM(G256:G314) -> 0
G322: =SUM(G321) -> 0
G329: =G251+G315+G322 -> 0
G344: =SUM(G332:G343) -> 0
G349: =SUM(G346:G348) -> 0
G350: =G344+G349 -> 0
G380: =SUM(G353:G379) -> 0
G385: =SUM(G382:G384) -> 0
G389: =SUM(G387:G388) -> 0
G390: =G380+G389+G385 -> 0
G417: =SUM(G393:G416) -> 0
G434: =SUM(G419:G433) -> 0
G441: =SUM(G436:G440) -> 0
G444: =SUM(G443:G443) -> 0
G452: =SUM(G446:G451) -> 0
G460: =SUM(G454:G459) -> 0
G461: =#REF!+#REF!+#REF!+#REF!+#REF!+F461+#REF!+#REF!+#REF!+#REF!+#REF!+#REF!+#REF!+#REF! -> 
G462: =#REF!+#REF!+#REF!+#REF!+#REF!+F462+#REF!+#REF!+#REF!+#REF!+#REF!+#REF!+#REF!+#REF! -> 
G463: =#REF!+#REF!+#REF!+#REF!+#REF!+F463+#REF!+#REF!+#REF!+#REF!+#REF!+#REF!+#REF!+#REF! -> 
G464: =#REF!+#REF!+#REF!+#REF!+#REF!+F464+#REF!+#REF!+#REF!+#REF!+#REF!+#REF!+#REF!+#REF! -> 
G465: =#REF!+#REF!+#REF!+#REF!+#REF!+F465+#REF!+#REF!+#REF!+#REF!+#REF!+#REF!+#REF!+#REF! -> 
G491: =SUM(G467:G490) -> 0
G492: =SUM(G491+G460+G452+G444+G441+G434+G417) -> 0
G528: =SUM(G495:G527) -> 0
G529: =G528 -> 0
G538: =SUM(G532:G535) -> 0
G541: =SUM(G540:G540) -> 0
G546: =SUM(G543:G545) -> 0
G552: =SUM(G548:G551) -> 0
G558: =SUM(G554:G557) -> 0
G562: =SUM(G560:G561) -> 0
G568: =SUM(G564:G567) -> 0
G569: =G546+G538+G541+G568+G562+G552+G558 -> 0
G574: =SUM(G572:G573) -> 0
G597: =SUM(G588:G596) -> 0
G601: =SUM(G599:G600) -> 0
G604: =SUM(G603:G603) -> 0
G613: =SUM(G606:G612) -> 0
G621: =SUM(G615:G620) -> 0
G624: =SUM(G623:G623) -> 0
G627: =SUM(G626) -> 0
G634: =G574+G597+G601+G604+G613+G621+G624+G627+G633 -> 0
G645: =SUM(G637:G644) -> 0
G646: =G645 -> 0
G654: =SUM(G649:G653) -> 0
G660: =SUM(G656:G659) -> 0
G665: =SUM(G662:G664) -> 0
G671: =SUM(G667:G670) -> 0
G675: =SUM(G673:G674) -> 0
G683: =G681+G682 -> 0
G684: =G654+G660+G665+G671+G675 -> 0
G688: =SUM(G687:G687) -> 0
G691: =SUM(G690) -> 0
G729: =SUM(G693:G728) -> 0
G730: =G729+G691+G688 -> 0
G851: =SUM(G732:G850) -> 0
G963: =SUM(G859:G962) -> 0
G983: =SUM(G965:G982) -> 0
G984: =G963+G983 -> 0
G988: =SUM(G987:G987) -> 0
G996: =SUM(G990:G995) -> 0
G999: =SUM(G998:G998) -> 0
G1019: =SUM(G1001:G1018) -> 0
G1022: =SUM(G1021:G1021) -> 0
G1025: =SUM(G1024) -> 0
G1026: =G996+G999+G1022+G1019+G988+G1025 -> 0

Sheet Раздел 3
A1: Раздел III. Реестр многоквартирных домов, в которых будет проводиться капитальный ремонт лифтового оборудования в 2021 году, за счет средств собственников
A2: № п\п | B2: Адрес МКД | C2: Стоимость капитального ремонта ВСЕГО | D2: Ремонт или замена лифтового оборудования | F2: ТО | G2: Проект-ные работы
C3: руб. | D3: ед. | E3: руб | F3: руб. | G3: руб.
A4: 1 | B4: 2 | C4: 3 | D4: 4 | E4: 5 | F4: 6 | G4: 7
A5: Волховский муниципальный район
A6: Муниципальное образование Город Волхов
A7: 1 | B7: Г. Волхов, просп. Волховский, д. 57 | C7: =E7+F7+G7 -> 130000 | G7: 130000
A8: Итого по муниципальному образованию | C8: =SUM(C7:C7) -> 130000 | D8: =SUM(D7:D7) -> 0 | E8: 0 | F8: 0 | G8: 130000
A9: Итого по Волховскому муниципальному району | C9: =C8 -> 130000 | D9: =D8 -> 0 | E9: 0 | F9: 0 | G9: 130000
A10: Всеволожский муниципальный район
A11: Муниципальное образование Город Всеволожск
A12: =A7+1 -> 2 | B12: Г. Всеволожск, ул. Александровская, д. 81, корп. 3 | C12: =E12+F12+G12 -> 5016630.92 | D12: 2 | E12: =2434852*D12 -> 4869704 | F12: 146926.92
A13: =A12+1 -> 3 | B13: Г. Всеволожск, ул. Балашова, д. 8/3 | C13: 5016630.92 | D13: 2 | E13: =2434852*D13 -> 4869704 | F13: 146926.92
A14: =A13+1 -> 4 | B14: Г. Всеволожск, ул. Вокка, д. 3 | C14: 260000 | E14: =2434852*D14 -> 0 | G14: 260000
A15: 5 | B15: Г. Всеволожск, ул. Василеозерская, д. 5 | C15: 5016630.92 | D15: 2 | E15: =2434852*D15 -> 4869704 | F15: 146926.92
A16: 6 | B16: Г. Всеволожск, ул. Василеозерская, д. 7 | C16: 260000 | G16: 260000
A17: 7 | B17: Г. Всеволожск, ул. Ленинградская, д. 30, корп. 1 | C17: 130000 | G17: 130000
A18: 8 | B18: Г. Всеволожск, ул. Ленинградская, д. 24/84 | C18: 26226455.22 | D18: 5 | E18: 25712211 | F18: 514244.22
A19: Итого по муниципальному образованию | C19: =SUM(C12:C18) -> 41926347.98 | D19: =SUM(D12:D18) -> 11 | E19: 40321323 | F19: 955024.98 | G19: 650000
A20: Муниципальное образование Муринское городское поселение
A21: =A18+1 -> 9 | B21: Пос. Мурино, ул. Оборонная, д. 12 | C21: =E21+F21+G21 -> 5016630.92 | D21: 2 | E21: =2434852*D21 -> 4869704 | F21: =73463.46*D21 -> 146926.92
A22: =A21+1 -> 10 | B22: Пос. Мурино, ул. Оборонная, д. 24 | C22: =E22+F22+G22 -> 7524946.38 | D22: 3 | E22: =2434852*D22 -> 7304556 | F22: 220390.38
A23: =A22+1 -> 11 | B23: Пос. Мурино, ул. Оборонная, д. 22 | C23: =E23+F23+G23 -> 2508315.46 | D23: 1 | E23: 2434852 | F23: =73463.46*D23 -> 73463.46
A24: Итого по муниципальному образованию | C24: =SUM(C21:C23) -> 15049892.76 | D24: =SUM(D21:D23) -> 6 | E24: 14609112 | F24: 440780.76 | G24: 0
A25: Муниципальное образование Свердловское городское поселение
A26: =A23+1 -> 12 | B26: Пос. им. Свердлова, микрорайон 1, д. 8 | C26: =E26+F26+G26 -> 10033261.84 | D26: =cвод!J15 -> 4 | E26: =2434852*D26 -> 9739408 | F26: =cвод!L15 -> 293853.84
A27: Итого по муниципальному образованию | C27: =SUM(C26) -> 10033261.84 | D27: =SUM(D26) -> 4 | E27: 9739408 | F27: 293853.84 | G27: 0
A28: Муниципальное образование Сертолово
A29: =A26+1 -> 13 | B29: Г. Сертолово, микрорайон Сертолово-1, ул. Молодежная, д. 8, корп. 2 | C29: =E29+F29+G29 -> 7524946.38 | D29: =cвод!J18 -> 3 | E29: =2434852*D29 -> 7304556 | F29: =cвод!L18 -> 220390.38
A30: Итого по муниципальному образованию | C30: =SUM(C29) -> 7524946.38 | D30: =SUM(D29) -> 3 | E30: 7304556 | F30: 220390.38 | G30: 0
A31: Итого по Всеволожскому муниципальному району | C31: =C30+C27+C24+C19 -> 74534448.96 | D31: =D30+D27+D24+D19 -> 24 | E31: 71974399 | F31: 1910049.96 | G31: 650000
A32: Выборгский район
A33: Муниципальное образование Город Выборг
A34: =A29+1 -> 14 | B34: Г. Выборг, ул. Гагарина, д. 69 | C34: =E34+F34+G34 -> 390000 | G34: 390000
A35: =A34+1 -> 15 | B35: Г. Выборг, ул. Приморская, д. 64 | C35: =E35+F35+G35 -> 4345632.02 | D35: 2 | E35: =2143508.94+2071836.92 -> 4215345.86 | F35: =65143.08+65143.08 -> 130286.16
A36: =A35+1 -> 16 | B36: Г. Выборг, просп. Победы, д. 12 | C36: =E36+F36+G36 -> 10033261.84 | D36: =cвод!J27 -> 4 | E36: =2434852*D36 -> 9739408 | F36: =cвод!L27 -> 293853.84
A37: Итого по муниципальному образованию | C37: =SUM(C34:C36) -> 14768893.86 | D37: =SUM(D34:D36) -> 6 | E37: 13954753.86 | F37: 424140 | G37: 390000
A38: Муниципальное образование Полянское сельское поселение
A39: =A36+1 -> 17 | B39: П/ст Приветнинское, ул. Военных строителей, д. 1 | C39: =E39+F39+G39 -> 130000 | G39: 130000
A40: 18 | B40: П/ст Приветнинское, ул. Военных строителей, д. 7 | C40: 130000 | G40: 130000
A41: 19 | B41: П/ст Приветнинское, ул. Военных строителей, д. 9 | C41: 130000 | G41: 130000
A42: 20 | B42: пос. Каменка, ул. Гвардейская, д. 75 | C42: 130000 | G42: 130000
A43: 21 | B43: пос. Каменка, ул. Гвардейская, д. 77 | C43: 130000 | G43: 130000
A44: Итого по муниципальному образованию | C44: =SUM(C39:C43) -> 650000 | D44: 0 | E44: 0 | F44: 0 | G44: 650000
A45: Итого по Выборгскому району | C45: =C37+C44 -> 15418893.86 | D45: =D37+D44 -> 6 | E45: =E37+E44 -> 13954753.86 | F45: =F37+F44 -> 424140 | G45: =G37+G44 -> 1040000
A46: Гатчинский муниципальный район
A47: Муниципальное образование Город Гатчина
A48: =A43+1 -> 22 | B48: Г. Гатчина, просп. 25 Октября, д. 50 | C48: =E48+F48+G48 -> 11544197.62 | D48: 6 | E48: =1837065.6+1850126.4+2020569.6+1866856.8+1872243.6+1870978.8 -> 11317840.8 | F48: =E48*0.02 -> 226356.816
A49: =A48+1 -> 23 | B49: Г. Гатчина, просп. 25 Октября, д. 59 | C49: 390000 | G49: 390000
A50: =A49+1 -> 24 | B50: Г. Гатчина, просп. 25 Октября, д. 63 | C50: 5800138.2 | D50: 3 | E50: =1833385.2+1973666.4+1879358.4 -> 5686410 | F50: 113728.2
A51: 25 | B51: Г. Гатчина, ул. Авиатриссы Зверевой, д. 11 | C51: 4015976.293 | D51: 2 | E51: =2014907.82+1922323.84 -> 3937231.66 | F51: 78744.6332
A52: 26 | B52: Г. Гатчина, ул. Красных Военлётов, д. 9 | C52: 10012095.24 | D52: 4 | E52: =2072192.4+1954905.6+2017970.4+3673173 -> 9718241.4 | F52: 293853.84
A53: 27 | B53: Г. Гатчина, ул. Рощинская, д. 13, кор. 1 | C53: 2066923.512 | D53: 1 | E53: 2026395.6 | F53: 40527.912
A54: =A53+1 -> 28 | B54: Г. Гатчина, ул. Рощинская, д. 11, кор. 1 | C54: 130000 | G54: 130000
A55: =A54+1 -> 29 | B55: Г. Гатчина, ул. Рощинская, д. 13А | C55: 260000 | G55: 260000
A56: =A55+1 -> 30 | B56: Г. Гатчина, ул. Рощинская, д. 3А | C56: 260000 | G56: 260000
A57: =A56+1 -> 31 | B57: Г. Гатчина, ул. Чехова, д. 14 | C57: 4285663.416 | D57: 2 | E57: =2272777.2+1928853.6 -> 4201630.8 | F57: 84032.616
A58: 32 | B58: Г. Гатчина, ул. Хохлова, д. 2 | C58: 7524946.38 | D58: =cвод!J73 -> 3 | E58: =2434852*D58 -> 7304556 | F58: =cвод!L73 -> 220390.38
A59: Итого по муниципальному образованию | C59: =SUM(C48:C58) -> 46289940.66 | D59: =SUM(D48:D58) -> 21 | E59: 44192306.26 | F59: 1057634.397 | G59: 1040000
A60: Итого по Гатчинскому муниципальному району | C60: =C59 -> 46289940.66 | D60: =D59 -> 21 | E60: 44192306.26 | F60: 1057634.397 | G60: 1040000
A61: Кингисеппский муниципальный район
A62: Муниципальное образование Кингисеппское городское поселение
A63: =A58+1 -> 33 | B63: Г. Кингисепп, просп. Карла Маркса, д. 51 | C63: =E63+F63+G63 -> 130000 | G63: 130000
A64: =A63+1 -> 34 | B64: Г. Кингисепп, б-р Большой , д. 11 | C64: 520000 | G64: 520000
A65: 35 | B65: Г. Кингисепп, б-р Большой, д. 15 | C65: 260000 | G65: 260000
A66: 36 | B66: Г. Кингисепп, б-р Большой, д. 17 | C66: 780000 | G66: 780000
A67: 37 | B67: Г. Кингисепп, ул. Воровского, д. 31в | C67: 260000 | G67: 260000
A68: 38 | B68: Г. Кингисепп, ул. Жукова, д. 4А | C68: 130000 | G68: 130000
A69: 39 | B69: Г. Кингисепп, ул. Жукова, д. 8а | C69: 130000 | G69: 130000
A70: 40 | B70: Г. Кингисепп, ш. Крикковское, д. 10а | C70: 260000 | G70: 260000
A71: 41 | B71: Г. Кингисепп, ш. Крикковское, д. 12 | C71: 910000 | G71: 910000
A72: 42 | B72: Г. Кингисепп, ш. Крикковское, д. 14 | C72: 910000 | G72: 910000
A73: 43 | B73: Г. Кингисепп, ш. Крикковское, д. 35 | C73: 650000 | G73: 650000
A74: 44 | B74: Г. Кингисепп, ш. Крикковское, д. 39 | C74: 390000 | G74: 390000
A75: 45 | B75: Г. Кингисепп, ш. Крикковское, д. 6 | C75: 780000 | G75: 780000
A76: Итого по муниципальному образованию | C76: =SUM(C63:C75) -> 6110000 | D76: =SUM(D63:D75) -> 0 | E76: 0 | F76: 0 | G76: 6110000
A77: Итого по Кингисеппскому муниципальному району | C77: =C76 -> 6110000 | D77: =D76 -> 0 | E77: 0 | F77: 0 | G77: 6110000
A78: Киришский муниципальный район
A79: Муниципальное образование Киришское городское поселение
A80: =A75+1 -> 46 | B80: Г. Кириши, бул. Плавницкий, д. 36 | C80: =E80+F80+G80 -> 130000 | G80: 130000
A81: =A80+1 -> 47 | B81: Г. Кириши, пер. Березовый, д. 10 | C81: 2508315.46 | D81: =cвод!J122 -> 1 | E81: =2434852*D81 -> 2434852 | F81: =D81*73463.46 -> 73463.46
A82: 48 | B82: Г. Кириши, просп. Ленина, д. 40 | C82: 130000 | G82: 130000
A83: =A82+1 -> 49 | B83: Г. Кириши, просп. Ленина, д. 9 | C83: 130000 | G83: 130000
A84: =A83+1 -> 50 | B84: Г. Кириши, ул. Строителей, д. 2 | C84: 130000 | G84: 130000
A85: =A84+1 -> 51 | B85: Г. Кириши, ул. Строителей, д. 26 | C85: 130000 | G85: 130000
A86: Итого по муниципальному образованию | C86: =SUM(C80:C85) -> 3158315.46 | D86: 1 | E86: 2434852 | F86: 73463.46 | G86: 650000
A87: Итого по Киришскому муниципальному району | C87: =C86 -> 3158315.46 | D87: =D86 -> 1 | E87: 2434852 | F87: 73463.46 | G87: 650000
A88: Кировский муниципальный район
A89: Муниципальное образование Кировское городское поселение
A90: =A85+1 -> 52 | B90: Г. Кировск, ул. Молодежная, д. 3 | C90: =E90+F90+G90 -> 2508315.46 | D90: =cвод!J114 -> 1 | E90: =2434852*D90 -> 2434852 | F90: =cвод!L114 -> 73463.46
A91: =A90+1 -> 53 | B91: Г. Кировск, ул. Молодежная, д. 5 | C91: =E91+F91+G91 -> 2508315.46 | D91: =cвод!J115 -> 1 | E91: 2434852 | F91: =cвод!L115 -> 73463.46
A92: Итого по муниципальному образованию | C92: =SUM(C90:C91) -> 5016630.92 | D92: =SUM(D90:D91) -> 2 | E92: 4869704 | F92: 146926.92 | G92: 0
A93: Муниципальное образование Отрадненское городское поселение
A94: =A91+1 -> 54 | B94: Г. Отрадное, ул. Железнодорожная, д. 13 | C94: =E94+F94+G94 -> 5016630.92 | D94: 2 | E94: =2434852*D94 -> 4869704 | F94: =D94*73463.46 -> 146926.92
A95: =A94+1 -> 55 | B95: Г. Отрадное, ул. Зарубина, д. 15 | C95: =E95+F95+G95 -> 2508315.46 | D95: =cвод!J97 -> 1 | E95: 2434852 | F95: =D95*73463.46 -> 73463.46
A96: =A95+1 -> 56 | B96: Г. Отрадное, ул. Лесная, д. 10 | C96: =E96+F96+G96 -> 2508315.46 | D96: =cвод!J98 -> 1 | E96: 2434852 | F96: =D96*73463.46 -> 73463.46
A97: =A96+1 -> 57 | B97: Г. Отрадное, ул. Центральная,д.17 | C97: =E97+F97+G97 -> 10033261.84 | D97: 4 | E97: 9739408 | F97: =D97*73463.46 -> 293853.84
A98: 58 | B98: Г. Отрадное, ул. Щурова, д.4 | C98: =E98+F98+G98 -> 5016630.92 | D98: =cвод!J99 -> 2 | E98: 4869704 | F98: =D98*73463.46 -> 146926.92
A99: Итого по муниципальному образованию | C99: =SUM(C94:C98) -> 25083154.6 | D99: =SUM(D94:D98) -> 10 | E99: 24348520 | F99: 734634.6 | G99: 0
A100: Итого по Кировскому муниципальному району | C100: =+C99+C92 -> 30099785.52 | D100: =+D99+D92 -> 12 | E100: 29218224 | F100: 881561.52 | G100: 0
A101: Ломоносовский муниципальный район
A102: Муниципальное образование Аннинское сельское поселение
A103: =A98+1 -> 59 | B103: Г.п. Новоселье, д. 7 | C103: =E103+F103+G103 -> 520000 | G103: =4*130000 -> 520000
A104: Итого по муниципальному образованию | C104: =SUM(C103) -> 520000 | D104: =SUM(D103) -> 0 | E104: 0 | F104: 0 | G104: 520000
A105: Итого по Ломоносовскому муниципальному району | C105: =C104 -> 520000 | D105: =D104 -> 0 | E105: 0 | F105: 0 | G105: 520000
A106: Лужский муниципальный район
A107: Муниципальное образование Лужское городское поселение
A108: =A103+1 -> 60 | B108: Г. Луга, просп. Урицкого, д. 101 | C108: =E108+F108+G108 -> 2508315.46 | D108: =cвод!J135 -> 1 | E108: =2434852*D108 -> 2434852 | F108: =cвод!L135 -> 73463.46
A109: =A108+1 -> 61 | B109: Г. Луга, просп. Урицкого, д. 99 | C109: =E109+F109+G109 -> 2508315.46 | D109: =cвод!J136 -> 1 | E109: 2434852 | F109: =cвод!L136 -> 73463.46
A110: Итого по муниципальному образованию | C110: =SUM(C108:C109) -> 5016630.92 | D110: =SUM(D108:D109) -> 2 | E110: 4869704 | F110: 146926.92 | G110: 0
A111: Итого по Лужскому муниципальному району | C111: =SUM(C110) -> 5016630.92 | D111: =SUM(D110) -> 2 | E111: 4869704 | F111: 146926.92 | G111: 0
A112: Сосновоборский городской округ
A113: Муниципальное образование Сосновоборский городской округ
A114: =A109+1 -> 62 | B114: Г. Сосновый Бор, ул. Ленинградская, д. 38 | C114: =E114+F114+G115 -> 130000 | G114: 130000
A115: =A114+1 -> 63 | B115: Г. Сосновый Бор, ул. Парковая, д. 70 | C115: =E115+F115+G115 -> 130000 | G115: 130000
A116: Итого по муниципальному образованию | C116: =SUM(C114:C115) -> 260000 | D116: =SUM(D114:D115) -> 0 | E116: 0 | F116: 0 | G116: 260000
A117: Тихвинский муниципальный район
A118: Муниципальное образование Тихвинское городское поселение
A119: =A115+1 -> 64 | B119: Г. Тихвин, ул. Машиностроителей, д.46 | C119: =E119+F119+G119 -> 12541577.3 | D119: 5 | E119: =2434852*D119 -> 12174260 | F119: =D119*73463.46 -> 367317.3
A120: Итого по муниципальному образованию | C120: =SUM(C119) -> 12541577.3 | D120: =SUM(D119) -> 5 | E120: 12174260 | F120: 367317.3 | G120: 0
A121: Итого по Тихвинскому муниципальному району | C121: =C120 -> 12541577.3 | D121: =D120 -> 5 | E121: 12174260 | F121: 367317.3 | G121: 0
A122: Тосненский район
A123: Муниципальное образование Тосненское городское поселение
A124: =A119+1 -> 65 | B124: Г. Тосно, ул. М. Горького, д. 8а | C124: =E124+F124+G124 -> 5016630.92 | D124: 2 | E124: =2434852*D124 -> 4869704 | F124: =D124*73463.46 -> 146926.92
A125: =A124+1 -> 66 | B125: Г. Тосно, пр. Ленина, д. 19 | C125: =E125+F125+G125 -> 10033261.84 | D125: 4 | E125: 9739408 | F125: =D125*73463.46 -> 293853.84
A126: Итого по муниципальному образованию | C126: =SUM(C124:C125) -> 15049892.76 | D126: =SUM(D124:D125) -> 6 | E126: =SUM(E124:E125) -> 14609112 | F126: =SUM(F124:F125) -> 440780.76 | G126: =SUM(G124:G124) -> 0
A127: Итого по Тосненскому району | C127: =C126 -> 15049892.76 | D127: =D126 -> 6 | E127: 14609112 | F127: 440780.76 | G127: 0
A128: ИТОГО по Ленинградской области | C128: =C31+C45+C60+C111+C100+C9+C77+C87+C121+C116+C127+C105 -> 209129485.4 | D128: =D31+D45+D60+D111+D100+D9+D77+D87+D121+D116+D127 -> 77 | E128: =E31+E45+E60+E111+E100+E9+E77+E87+E121+E116+E127 -> 193427611.1 | F128: =F31+F45+F60+F111+F100+F9+F77+F87+F121+F116+F127 -> 5301874.317 | G128: =G31+G45+G60+G111+G100+G9+G77+G87+G121+G116+G127 -> 9880000
A129: Осуществление строительного контроля | C129: =(C128-F128-G128)*0.0214 -> 4150478.878
A130: Итого по Ленинградской области со строительным контролем | C130: =C128+C129 -> 213279964.3
G426: =SUM(G402:G425) -> 0
G443: =SUM(G428:G442) -> 0
G450: =SUM(G445:G449) -> 0
G453: =SUM(G452:G452) -> 0
G461: =SUM(G455:G460) -> 0
G469: =SUM(G463:G468) -> 0
G470: =#REF!+#REF!+#REF!+#REF!+#REF!+F470+#REF!+#REF!+#REF!+#REF!+#REF!+#REF!+#REF!+#REF! -> 
G471: =#REF!+#REF!+#REF!+#REF!+#REF!+F471+#REF!+#REF!+#REF!+#REF!+#REF!+#REF!+#REF!+#REF! -> 
G472: =#REF!+#REF!+#REF!+#REF!+#REF!+F472+#REF!+#REF!+#REF!+#REF!+#REF!+#REF!+#REF!+#REF! -> 
G473: =#REF!+#REF!+#REF!+#REF!+#REF!+F473+#REF!+#REF!+#REF!+#REF!+#REF!+#REF!+#REF!+#REF! -> 
G474: =#REF!+#REF!+#REF!+#REF!+#REF!+F474+#REF!+#REF!+#REF!+#REF!+#REF!+#REF!+#REF!+#REF! -> 
G500: =SUM(G476:G499) -> 0
G501: =SUM(G500+G469+G461+G453+G450+G443+G426) -> 0
G537: =SUM(G504:G536) -> 0
G538: =G537 -> 0
G547: =SUM(G541:G544) -> 0
G550: =SUM(G549:G549) -> 0
G555: =SUM(G552:G554) -> 0
G561: =SUM(G557:G560) -> 0
G567: =SUM(G563:G566) -> 0
G571: =SUM(G569:G570) -> 0
G577: =SUM(G573:G576) -> 0
G578: =G555+G547+G550+G577+G571+G561+G567 -> 0
G583: =SUM(G581:G582) -> 0
G606: =SUM(G597:G605) -> 0
G610: =SUM(G608:G609) -> 0
G613: =SUM(G612:G612) -> 0
G622: =SUM(G615:G621) -> 0
G630: =SUM(G624:G629) -> 0
G633: =SUM(G632:G632) -> 0
G636: =SUM(G635) -> 0
G643: =G583+G606+G610+G613+G622+G630+G633+G636+G642 -> 0
G654: =SUM(G646:G653) -> 0
G655: =G654 -> 0
G663: =SUM(G658:G662) -> 0
G669: =SUM(G665:G668) -> 0
G674: =SUM(G671:G673) -> 0
G680: =SUM(G676:G679) -> 0
G684: =SUM(G682:G683) -> 0
G692: =G690+G691 -> 0
G693: =G663+G669+G674+G680+G684 -> 0
G697: =SUM(G696:G696) -> 0
G700: =SUM(G699) -> 0
G738: =SUM(G702:G737) -> 0
G739: =G738+G700+G697 -> 0
G860: =SUM(G741:G859) -> 0
G972: =SUM(G868:G971) -> 0
G992: =SUM(G974:G991) -> 0
G993: =G972+G992 -> 0
G997: =SUM(G996:G996) -> 0
G1005: =SUM(G999:G1004) -> 0
G1008: =SUM(G1007:G1007) -> 0
G1028: =SUM(G1010:G1027) -> 0
G1031: =SUM(G1030:G1030) -> 0
G1034: =SUM(G1033) -> 0
G1035: =G1005+G1008+G1031+G1028+G997+G1034 -> 0

Sheet Раздел 4
A1: Раздел IV. Реестр многоквартирных домов, в которых будет проводиться капитальный ремонт лифтового оборудования в 2022 году, за счет средств собственников
A2: № п\п | B2: Адрес МКД | C2: Стоимость капитального ремонта ВСЕГО | D2: Ремонт или замена лифтового оборудования | F2: ТО | G2: Проект-ные работы
C3: руб. | D3: ед. | E3: руб | F3: руб. | G3: руб.
A4: 1 | B4: 2 | C4: 3 | D4: 4 | E4: 5 | F4: 6 | G4: 7
A6: Волховский муниципальный район
A7: Муниципальное образование Город Волхов
A8: 1 | B8: Г. Волхов, просп. Волховский, д. 57 | C8: =E8+F8+G8 -> 2605709.46 | D8: 1 | E8: =2532246*D8 -> 2532246 | F8: =73463.46*D8 -> 73463.46
A9: Итого по муниципальному образованию | C9: =SUM(C8:C8) -> 2605709.46 | D9: =SUM(D8:D8) -> 1 | E9: =2532246*D9 -> 2532246 | F9: 73463.46 | G9: =SUM(G8:G8) -> 0
A10: Итого по Волховскому муниципальному району | C10: =C9 -> 2605709.46 | D10: =D9 -> 1 | E10: =E9 -> 2532246 | F10: =F9 -> 73463.46 | G10: =G9 -> 0
A11: Всеволожский муниципальный район
A12: Муниципальное образование Город Всеволожск
A13: =A8+1 -> 2 | B13: Г. Всеволожск, ул. Василеозерская, д. 7 | C13: =E13+F13+G13 -> 5211418.92 | D13: 2 | E13: =2532246*D13 -> 5064492 | F13: =73463.46*D13 -> 146926.92
A14: =A13+1 -> 3 | B14: Г. Всеволожск, ул. Ленинградская, д. 30, корп. 1 | C14: =E14+F14+G14 -> 2605709.46 | D14: 1 | E14: =2532246*D14 -> 2532246 | F14: =73463.46*D14 -> 73463.46
A15: =A14+1 -> 4 | B15: Г. Всеволожск, ул. Вокка, д. 3 | C15: =E15+F15+G15 -> 5211418.92 | D15: 2 | E15: 5064492 | F15: 146926.92
A16: Итого по муниципальному образованию | C16: =SUM(C13:C15) -> 13028547.3 | D16: =SUM(D13:D15) -> 5 | E16: =SUM(E13:E15) -> 12661230 | F16: =SUM(F13:F15) -> 367317.3 | G16: =SUM(G13:G15) -> 0
A17: Итого по Всеволожскому муниципальному району | C17: =C16 -> 13028547.3 | D17: =D16 -> 5 | E17: =E16 -> 12661230 | F17: =F16 -> 367317.3 | G17: =G16 -> 0
A18: Выборгский район
A19: Муниципальное образование Город Выборг
A20: =A15+1 -> 5 | B20: Г. Выборг, ул. Гагарина, д. 69 | C20: =E20+F20+G20 -> 5211418.92 | D20: =cвод!J33 -> 2 | E20: =2532246*D20 -> 5064492 | F20: =73463.46*D20 -> 146926.92
A21: Итого по муниципальному образованию | C21: =SUM(C20:C20) -> 5211418.92 | D21: =SUM(D20:D20) -> 2 | E21: =SUM(E20:E20) -> 5064492 | F21: =SUM(F20:F20) -> 146926.92 | G21: =SUM(G20:G20) -> 0
A22: Муниципальное образование Полянское сельское поселение
A23: =A20+1 -> 6 | B23: П/ст Приветнинское, ул. Военных строителей, д. 1 | C23: =E23+F23+G23 -> 2606190.13 | D23: 1 | E23: 2532246 | F23: 73944.13
A24: 7 | B24: П/ст Приветнинское, ул. Военных строителей, д. 7 | C24: 2606190.13 | D24: 1 | E24: 2532246 | F24: 73944.13
A25: 8 | B25: П/ст Приветнинское, ул. Военных строителей, д. 9 | C25: 2606190.13 | D25: 1 | E25: 2532246 | F25: 73944.13
A26: 9 | B26: пос. Каменка, ул. Гвардейская, д. 75 | C26: 2606190.13 | D26: 1 | E26: 2532246 | F26: 73944.13
A27: 10 | B27: пос. Каменка, ул. Гвардейская, д. 77 | C27: 2606190.13 | D27: 1 | E27: 2532246 | F27: 73944.13
A28: Итого по муниципальному образованию | C28: =SUM(C23:C27) -> 13030950.65 | D28: =SUM(D23:D27) -> 5 | E28: =SUM(E23:E27) -> 12661230 | F28: =SUM(F23:F27) -> 369720.65 | G28: =SUM(G23:G27) -> 0
A29: Итого по Выборгскому району | C29: =C21+C28 -> 18242369.57 | D29: =D21+D28 -> 7 | E29: =E21+E28 -> 17725722 | F29: =F21+F28 -> 516647.57 | G29: =G21+G28 -> 0
A30: Гатчинский муниципальный район
A31: Муниципальное образование Город Гатчина
A32: =A27+1 -> 11 | B32: Г. Гатчина, просп. 25 Октября, д. 59 | C32: =E32+F32+G32 -> 7817128.38 | D32: =cвод!J59 -> 3 | E32: =2532246*D32 -> 7596738 | F32: =cвод!L59 -> 220390.38
A33: =A32+1 -> 12 | B33: Г. Гатчина, ул. Рощинская, д. 11, кор. 1 | C33: =E33+F33+G33 -> 2605709.46 | D33: =cвод!J67 -> 1 | E33: =2532246*D33 -> 2532246 | F33: =cвод!L67 -> 73463.46
A34: =A33+1 -> 13 | B34: Г. Гатчина, ул. Рощинская, д. 13А | C34: =E34+F34+G34 -> 5211418.92 | D34: =cвод!J69 -> 2 | E34: 5064492 | F34: =cвод!L69 -> 146926.92
A35: =A34+1 -> 14 | B35: Г. Гатчина, ул. Рощинская, д. 3А | C35: =E35+F35+G35 -> 5211418.92 | D35: =cвод!J71 -> 2 | E35: 5064492 | F35: =cвод!L71 -> 146926.92
A36: Итого по муниципальному образованию | C36: =SUM(C32:C35) -> 20845675.68 | D36: =SUM(D32:D35) -> 8 | E36: =SUM(E32:E35) -> 20257968 | F36: =SUM(F32:F35) -> 587707.68 | G36: =SUM(G32:G35) -> 0
A37: Итого по Гатчинскому муниципальному району | C37: =C36 -> 20845675.68 | D37: =D36 -> 8 | E37: =E36 -> 20257968 | F37: =F36 -> 587707.68 | G37: =G36 -> 0
A38: Кингисеппский муниципальный район
A39: Муниципальное образование Кингисеппское городское поселение
A40: =A35+1 -> 15 | B40: Г. Кингисепп, просп. Карла Маркса, д. 51 | C40: =E40+F40+G40 -> 2605709.46 | D40: 1 | E40: =2532246*D40 -> 2532246 | F40: =73463.46*D40 -> 73463.46
A41: =A40+1 -> 16 | B41: Г. Кингисепп, б-р Большой , д. 11 | C41: 10422837.84 | D41: 4 | E41: 10128984 | F41: 293853.84
A42: 17 | B42: Г. Кингисепп, б-р Большой, д. 15 | C42: 5211418.92 | D42: 2 | E42: 5064492 | F42: =73463.46*D42 -> 146926.92
A43: 18 | B43: Г. Кингисепп, б-р Большой, д. 17 | C43: 15634256.76 | D43: 6 | E43: 15193476 | F43: =73463.46*D43 -> 440780.76
A44: 19 | B44: Г. Кингисепп, ул. Воровского, д. 31в | C44: 5211418.92 | D44: 2 | E44: 5064492 | F44: 146926.92
A45: 20 | B45: Г. Кингисепп, ул. Жукова, д. 8а | C45: 2605709.46 | D45: 1 | E45: 2532246 | F45: 73463.46
A46: 21 | B46: Г. Кингисепп, ш. Крикковское, д. 10а | C46: 5211418.92 | D46: 2 | E46: 5064492 | F46: 146926.92
A47: 22 | B47: Г. Кингисепп, ш. Крикковское, д. 12 | C47: 18239966.22 | D47: 7 | E47: 17725722 | F47: 514244.22
A48: 23 | B48: Г. Кингисепп, ш. Крикковское, д. 14 | C48: 18239966.22 | D48: 7 | E48: 17725722 | F48: 514244.22
A49: 24 | B49: Г. Кингисепп, ш. Крикковское, д. 35 | C49: 13028547.3 | D49: 5 | E49: 12661230 | F49: 367317.3
A50: 25 | B50: Г. Кингисепп, ш. Крикковское, д. 39 | C50: 7817128.38 | D50: 3 | E50: 7596738 | F50: 220390.38
A51: 26 | B51: Г. Кингисепп, ш. Крикковское, д. 6 | C51: 15634256.76 | D51: 6 | E51: 15193476 | F51: 440780.76
A52: Итого по муниципальному образованию | C52: =SUM(C40:C51) -> 119862635.2 | D52: =SUM(D40:D51) -> 46 | E52: =SUM(E40:E51) -> 116483316 | F52: =SUM(F40:F51) -> 3379319.16 | G52: =SUM(G40:G51) -> 0
A53: Итого по Кингисеппскому муниципальному району | C53: =C52 -> 119862635.2 | D53: =D52 -> 46 | E53: =E52 -> 116483316 | F53: =F52 -> 3379319.16 | G53: =G52 -> 0
A54: Киришский муниципальный район
A55: Муниципальное образование Киришское городское поселение
A56: =A51+1 -> 27 | B56: Г. Кириши, бул. Плавницкий, д. 36 | C56: =E56+F56+G56 -> 2605709.46 | D56: =cвод!J96 -> 1 | E56: =2532246*D56 -> 2532246 | F56: =73463.46*D56 -> 73463.46
A57: =A56+1 -> 28 | B57: Г. Кириши, просп. Ленина, д. 40 | C57: =E57+F57+G57 -> 2605709.46 | D57: =cвод!J100 -> 1 | E57: 2532246 | F57: =73463.46*D57 -> 73463.46
A58: =A57+1 -> 29 | B58: Г. Кириши, просп. Ленина, д. 9 | C58: =E58+F58+G58 -> 2605709.46 | D58: =cвод!J101 -> 1 | E58: 2532246 | F58: 73463.46
A59: =A58+1 -> 30 | B59: Г. Кириши, ул. Строителей, д. 2 | C59: =E59+F59+G59 -> 2605709.46 | D59: =cвод!J103 -> 1 | E59: 2532246 | F59: 73463.46
A60: =A59+1 -> 31 | B60: Г. Кириши, ул. Строителей, д. 26 | C60: =E60+F60+G60 -> 2605709.46 | D60: =cвод!J104 -> 1 | E60: 2532246 | F60: 73463.46
A61: Итого по муниципальному образованию | C61: =SUM(C56:C60) -> 13028547.3 | D61: =SUM(D56:D60) -> 5 | E61: =SUM(E56:E60) -> 12661230 | F61: =SUM(F56:F60) -> 367317.3 | G61: =SUM(G56:G60) -> 0
A62: Итого по Киришскому муниципальному району | C62: =C61 -> 13028547.3 | D62: =D61 -> 5 | E62: =E61 -> 12661230 | F62: =F61 -> 367317.3 | G62: =G61 -> 0
A63: Ломоносовский муниципальный район
A64: Муниципальное образование Аннинское сельское поселение
A65: =A60+1 -> 32 | B65: Г.п. Новоселье, д. 7 | C65: =E65+F65+G65 -> 10422837.84 | D65: 4 | E65: =2532246*D65 -> 10128984 | F65: =73463.46*D65 -> 293853.84
A66: Итого по муниципальному образованию | C66: =SUM(C65) -> 10422837.84 | D66: =SUM(D65) -> 4 | E66: 10128984 | F66: 293853.84 | G66: 0
A67: Итого по Ломоносовскому муниципальному району | C67: =C66 -> 10422837.84 | D67: =D66 -> 4 | E67: 10128984 | F67: 293853.84 | G67: 0
A68: Сосновоборский городской округ
A69: Муниципальное образование Сосновоборский городской округ
A70: =A65+1 -> 33 | B70: Г. Сосновый Бор, ул. Ленинградская, д. 38 | C70: =E70+F70+G71 -> 2605709.46 | D70: 1 | E70: =2532246*D70 -> 2532246 | F70: =73463.46*D70 -> 73463.46
A71: =A70+1 -> 34 | B71: Г. Сосновый Бор, ул. Парковая, д. 70 | C71: =E71+F71+G72 -> 2605709.46 | D71: 1 | E71: 2532246 | F71: =73463.46*D71 -> 73463.46
A72: Итого по муниципальному образованию | C72: =SUM(C70:C71) -> 5211418.92 | D72: =SUM(D70:D71) -> 2 | E72: 5064492 | F72: 146926.92 | G72: 0
A73: ИТОГО по Ленинградской области | C73: =C62+C53+C37+C29+C17+C10+C72+C67 -> 203247741.2 | D73: =D62+D53+D37+D29+D17+D10+D72+D67 -> 78 | E73: =E62+E53+E37+E29+E17+E10+E72 -> 187386204 | F73: =F62+F53+F37+F29+F17+F10+F72 -> 5438699.39 | G73: =G62+G53+G37+G29+G17+G10+G72 -> 0
A74: Осуществление строительного контроля | C74: =(C73-F73-G73)*0.0214 -> 4233113.495
A75: Итого по Ленинградской области со строительным контролем | C75: =C73+C74 -> 207480854.7
G149: =SUM(G136:G148) -> 0
G172: =SUM(G154:G171) -> 0
G183: =SUM(G177:G182) -> 0
G191: =SUM(G185:G190) -> 0
G197: =SUM(G193:G195) -> 0
G198: =G149+G172+G183+G197+G191+G175 -> 0
G205: =SUM(G201:G204) -> 0
G269: =SUM(G210:G268) -> 0
G276: =SUM(G275) -> 0
G283: =G205+G269+G276 -> 0
G298: =SUM(G286:G297) -> 0
G303: =SUM(G300:G302) -> 0
G304: =G298+G303 -> 0
G334: =SUM(G307:G333) -> 0
G339: =SUM(G336:G338) -> 0
G343: =SUM(G341:G342) -> 0
G344: =G334+G343+G339 -> 0
G371: =SUM(G347:G370) -> 0
G388: =SUM(G373:G387) -> 0
G395: =SUM(G390:G394) -> 0
G398: =SUM(G397:G397) -> 0
G406: =SUM(G400:G405) -> 0
G414: =SUM(G408:G413) -> 0
G415: =#REF!+#REF!+#REF!+#REF!+#REF!+F415+#REF!+#REF!+#REF!+#REF!+#REF!+#REF!+#REF!+#REF! -> 
G416: =#REF!+#REF!+#REF!+#REF!+#REF!+F416+#REF!+#REF!+#REF!+#REF!+#REF!+#REF!+#REF!+#REF! -> 
G417: =#REF!+#REF!+#REF!+#REF!+#REF!+F417+#REF!+#REF!+#REF!+#REF!+#REF!+#REF!+#REF!+#REF! -> 
G418: =#REF!+#REF!+#REF!+#REF!+#REF!+F418+#REF!+#REF!+#REF!+#REF!+#REF!+#REF!+#REF!+#REF! -> 
G419: =#REF!+#REF!+#REF!+#REF!+#REF!+F419+#REF!+#REF!+#REF!+#REF!+#REF!+#REF!+#REF!+#REF! -> 
G445: =SUM(G421:G444) -> 0
G446: =SUM(G445+G414+G406+G398+G395+G388+G371) -> 0
G482: =SUM(G449:G481) -> 0
G483: =G482 -> 0
G492: =SUM(G486:G489) -> 0
G495: =SUM(G494:G494) -> 0
G500: =SUM(G497:G499) -> 0
G506: =SUM(G502:G505) -> 0
G512: =SUM(G508:G511) -> 0
G516: =SUM(G514:G515) -> 0
G522: =SUM(G518:G521) -> 0
G523: =G500+G492+G495+G522+G516+G506+G512 -> 0
G528: =SUM(G526:G527) -> 0
G551: =SUM(G542:G550) -> 0
G555: =SUM(G553:G554) -> 0
G558: =SUM(G557:G557) -> 0
G567: =SUM(G560:G566) -> 0
G575: =SUM(G569:G574) -> 0
G578: =SUM(G577:G577) -> 0
G581: =SUM(G580) -> 0
G588: =G528+G551+G555+G558+G567+G575+G578+G581+G587 -> 0
G599: =SUM(G591:G598) -> 0
G600: =G599 -> 0
G608: =SUM(G603:G607) -> 0
G614: =SUM(G610:G613) -> 0
G619: =SUM(G616:G618) -> 0
G625: =SUM(G621:G624) -> 0
G629: =SUM(G627:G628) -> 0
G637: =G635+G636 -> 0
G638: =G608+G614+G619+G625+G629 -> 0
G642: =SUM(G641:G641) -> 0
G645: =SUM(G644) -> 0
G683: =SUM(G647:G682) -> 0
G684: =G683+G645+G642 -> 0
G805: =SUM(G686:G804) -> 0
G917: =SUM(G813:G916) -> 0
G937: =SUM(G919:G936) -> 0
G938: =G917+G937 -> 0
G942: =SUM(G941:G941) -> 0
G950: =SUM(G944:G949) -> 0
G953: =SUM(G952:G952) -> 0
G973: =SUM(G955:G972) -> 0
G976: =SUM(G975:G975) -> 0
G979: =SUM(G978) -> 0
G980: =G950+G953+G976+G973+G942+G979 -> 0

Sheet cвод (hidden)
A1: II. Реестр многоквартирных домов, в которых будет проводиться капитальный ремонт лифтового оборудования в период 2020-2022
A2: № п\п | B2: Адрес МКД | C2: Стоимость капитального ремонта ВСЕГО | D2: Виды работ
D3: Ремонт внутридомовых инженерных систем | J3: Ремонт или замена лифтового оборудования | M3: Ремонт крыши | O3: Ремонт подвальных помещений | Q3: Ремонт фасада | S3: Ремонт фундамента | U3: Ремонт подъездов | W3: Утепление фасадов | Y3: Установка коллектив-ных (общедо-мовых) ПУ и УУ | Z3: Проект-ные работы
D4: Всего работ по инженерным системам | E4: в том числе
E5: Ремонт сетей электроснабжения | F5: Ремонт сетей теплоснабжения | G5: Ремонт сетей холодного водоснабжения | H5: Ремонт сетей горячего водоснабжения | I5: Ремонт систем водоотведения | J5: Ремонт или замена лифтового оборудования | L5: ТО
C6: руб. | D6: руб. | E6: руб. | F6: руб. | G6: руб. | H6: руб. | I6: руб. | J6: ед. | K6: руб | L6: руб. | M6: кв.м. | N6: руб. | O6: кв.м. | P6: руб. | Q6: кв.м. | R6: руб. | S6: куб.м. | T6: руб. | U6: куб.м. | V6: руб. | W6: кв.м. | X6: руб. | Y6: руб. | Z6: руб.
A7: 1 | B7: 2 | C7: 3 | D7: 4 | E7: 5 | F7: 6 | G7: 7 | H7: 8 | I7: 9 | J7: 10 | K7: 11 | L7: 12 | M7: 13 | N7: 14 | O7: 15 | P7: 16 | Q7: 17 | R7: 18 | S7: 19 | T7: 20 | U7: 21 | V7: 22 | W7: 23 | X7: 24 | Y7: 25 | Z7: 26
A8: Всеволожский муниципальный район
A9: Муниципальное образование Муринское сельское поселение
A10: 1 | B10: Пос. Мурино, ул. Оборонная, д. 12 | C10: =K10+L10+Z10 -> 7753272.92 | J10: 2 | K10: =3673173*J10 -> 7346346 | L10: =K10*0.02 -> 146926.92 | Z10: =J10*130000 -> 260000
A11: =A10+1 -> 2 | B11: Пос. Мурино, ул. Оборонная, д. 18 | C11: =K11+L11+Z11 -> 7753272.92 | J11: 2 | K11: =3673173*J11 -> 7346346 | L11: =K11*0.02 -> 146926.92 | Z11: =J11*130000 -> 260000
A12: =A11+1 -> 3 | B12: Пос. Мурино, ул. Оборонная, д. 22 | C12: 7753272.92 | J12: 2 | K12: =3673173*J12 -> 7346346 | L12: =K12*0.02 -> 146926.92 | Z12: 260000
A13: Итого по муниципальному образованию | C13: =SUM(C10:C12) -> 23259818.76 | J13: =SUM(J10:J12) -> 6 | K13: =SUM(K10:K12) -> 22039038 | L13: =SUM(L10:L12) -> 440780.76 | Z13: =SUM(Z10:Z12) -> 780000
A14: Муниципальное образование Свердловское городское поселение
A15: =A12+1 -> 4 | B15: Пос. им. Свердлова, микрорайон 1, д. 8 | C15: =K15+L15+Z15 -> 15506545.84 | J15: 4 | K15: =3673173*J15 -> 14692692 | L15: =K15*0.02 -> 293853.84 | Z15: 520000
A16: Итого по муниципальному образованию | C16: =C15 -> 15506545.84 | J16: =J15 -> 4 | K16: =K15 -> 14692692 | L16: =L15 -> 293853.84 | Z16: =Z15 -> 520000
A17: Муниципальное образование "Сертолово"
A18: =A15+1 -> 5 | B18: Г. Сертолово, микрорайон Сертолово-1, ул. Молодежная, д. 8, корп. 2 | C18: =K18+L18+Z18 -> 11629909.38 | J18: 3 | K18: =3673173*J18 -> 11019519 | L18: =K18*0.02 -> 220390.38 | Z18: 390000
A19: =A18+1 -> 6 | B19: Г. Сертолово, микрорайон Сертолово-1, ул. Центральная, д. 6, корп. 1 | C19: 11629909.38 | J19: 3 | K19: 11019519 | L19: 220390.38 | Z19: =J19*130000 -> 390000
A20: =A19+1 -> 7 | B20: Г. Сертолово, микрорайон Сертолово-1, ул. Центральная, д. 7, корп. 1 | C20: 11629909.38 | J20: 3 | K20: 11019519 | L20: 220390.38 | Z20: 390000
A21: Итого по муниципальному образованию | C21: =SUM(C18:C20) -> 34889728.14 | J21: =SUM(J18:J20) -> 9 | K21: =SUM(K18:K20) -> 33058557 | L21: =SUM(L18:L20) -> 661171.14 | Z21: =SUM(Z18:Z20) -> 1170000
A22: Итого по Всеволожскому муниципальному району | C22: =C21+C16+C13 -> 73656092.74 | J22: =J21+J16+J13 -> 19 | K22: =K21+K16+K13 -> 69790287 | L22: 1395805.74 | M22: 0 | N22: 0 | O22: 0 | P22: 0 | Q22: 0 | R22: 0 | S22: 0 | T22: 0 | U22: 0 | V22: 0 | W22: 0 | X22: 0 | Y22: 0 | Z22: 2470000
A23: Выборгский район
A24: Муниципальное образование "Город Выборг
A25: =A20+1 -> 8 | B25: Г. Выборг, бул. Кутузова, д. 33 | C25: =K25+L25+Z25 -> 3876636.46 | J25: 1 | K25: =3673173*J25 -> 3673173 | L25: =K25*0.02 -> 73463.46 | Z25: =J25*130000 -> 130000
A26: =A25+1 -> 9 | B26: Г. Выборг, просп. Московский, д. 10 | C26: 3876636.46 | J26: 1 | K26: 3673173 | L26: 73463.46 | Z26: 130000
A27: 10 | B27: Г. Выборг, просп. Победы, д. 12 | C27: 15506545.84 | J27: 4 | K27: 14692692 | L27: 293853.84 | Z27: 520000
A28: 11 | B28: Г. Выборг, просп. Победы, д. 6 | C28: 3876636.46 | J28: 1 | K28: 3673173 | L28: 73463.46 | Z28: 130000
A29: 12 | B29: Г. Выборг, пр. Победы, д. 8 | C29: 3876636.46 | J29: 1 | K29: 3673173 | L29: 73463.46 | Z29: 130000
A30: 13 | B30: Г. Выборг, ул. Аристарха Макарова, д. 4 | C30: 7753272.92 | J30: 2 | K30: 7346346 | L30: 146926.92 | Z30: 260000
A31: 14 | B31: Г. Выборг, ул. Гагарина, д. 29 | C31: 11629909.38 | J31: 3 | K31: 11019519 | L31: 220390.38 | Z31: 390000
A32: 15 | B32: Г. Выборг, ул. Гагарина, д. 65 | C32: 3876636.46 | J32: 1 | K32: 3673173 | L32: 73463.46 | Z32: 130000
A33: 16 | B33: Г. Выборг, ул. Гагарина, д. 69 | C33: 7753272.92 | J33: 2 | K33: 7346346 | L33: 146926.92 | Z33: 260000
A34: 17 | B34: Г. Выборг, ул. Гагарина, д. 71 | C34: 7753272.92 | J34: 2 | K34: 7346346 | L34: 146926.92 | Z34: 260000
A35: 18 | B35: Г. Выборг, ул. Крепостная, д. 39а | C35: 3876636.46 | J35: 1 | K35: 3673173 | L35: 73463.46 | Z35: 130000
A36: 19 | B36: Г. Выборг, ул. Офицерская, д. 12 | C36: 3876636.46 | J36: 1 | K36: 3673173 | L36: 73463.46 | Z36: 130000
A37: 20 | B37: Г. Выборг, ул. Офицерская, д. 14 | C37: 3876636.46 | J37: 1 | K37: 3673173 | L37: 73463.46 | Z37: 130000
A38: 21 | B38: Г. Выборг, ул. Офицерская, д. 16 | C38: 3876636.46 | J38: 1 | K38: 3673173 | L38: 73463.46 | Z38: 130000
A39: 22 | B39: Г. Выборг, ул. Приморская, д. 36 | C39: 7753272.92 | J39: 2 | K39: 7346346 | L39: 146926.92 | Z39: 260000
A40: 23 | B40: Г. Выборг, ул. Приморская, д. 40 | C40: 15506545.84 | J40: 4 | K40: 14692692 | L40: 293853.84 | Z40: 520000
A41: 24 | B41: Г. Выборг, ул. Приморская, д. 53 | C41: 7753272.92 | J41: 2 | K41: 7346346 | L41: 146926.92 | Z41: 260000
A42: 25 | B42: Г. Выборг, ул. Приморская, д. 64 | C42: 4605632.02 | J42: 2 | K42: =2143508.94+2071836.92 -> 4215345.86 | L42: =65143.08+65143.08 -> 130286.16 | Z42: 260000
A43: 26 | B43: Г. Выборг, ул. Травяная, д. 6 | C43: 7753272.92 | J43: 2 | K43: 7346346 | L43: 146926.92 | Z43: 260000
A44: 27 | B44: Г. Выборг, ш. Ленинградское, д. 51а | C44: 3876636.46 | J44: 1 | K44: 3673173 | L44: 73463.46 | Z44: 130000
A45: Итого по муниципальному образованию | C45: =SUM(C25:C44) -> 132534635.2 | J45: =SUM(J25:J44) -> 35 | K45: =SUM(K25:K44) -> 125430054.9 | L45: =SUM(L25:L44) -> 2554580.34 | Z45: =SUM(Z25:Z44) -> 4550000
A46: Муниципальное образование Светогорское городское поселение
A47: =A44+1 -> 28 | B47: Г. Светогорск, ул. Красноармейская, д. 26 | C47: =K47+L47+Z47 -> 6347373.34 | J47: 3 | K47: =2648486.4+2769300.7 -> 5417787.1 | L47: =74793.12+74793.12 -> 149586.24 | Z47: 780000
A48: =A47+1 -> 29 | B48: Г. Светогорск, ул. Красноармейская, д. 32 | C48: =K48+L48+Z48 -> 15560226.89 | J48: 6 | K48: 14331468.17 | L48: 448758.72 | Z48: =J48*130000 -> 780000
A49: =A48+1 -> 30 | B49: Г. Светогорск, ул. Красноармейская, д. 8 | C49: =K49+L49+Z49 -> 10216441.14 | J49: 4 | K49: =2360581.74+2328175.4+2413371.4+2328175.4 -> 9430303.94 | L49: =66534.3+66534.3+66534.3+66534.3 -> 266137.2 | Z49: 520000
A50: Итого по муниципальному образованию | C50: =SUM(C47:C49) -> 32124041.37 | J50: =SUM(J47:J49) -> 13 | K50: =SUM(K47:K49) -> 29179559.21 | L50: =SUM(L47:L49) -> 864482.16 | Z50: =SUM(Z47:Z49) -> 2080000
A51: Муниципальное образование Советское городское поселение
A52: =A49+1 -> 31 | B52: Г.п. Советский, ул. Садовая, д. 46 | C52: =K52+L52+Z52 -> 2511097.22 | J52: 1 | K52: 2313231.88 | L52: 67865.34 | Z52: 130000
A53: Итого по муниципальному образованию | C53: =C52 -> 2511097.22 | J53: =J52 -> 1 | K53: =K52 -> 2313231.88 | L53: =L52 -> 67865.34 | Z53: =Z52 -> 130000
A54: Итого по Выборгскому району | C54: =C50+C45+C53 -> 167169773.8 | J54: =J50+J45+J53 -> 49 | K54: =K50+K45+K53 -> 156922845.9 | L54: =L50+L45+L53 -> 3486927.84 | Z54: =J54*130000 -> 6370000
A55: Гатчинский муниципальный район
A56: Муниципальное образование Город Гатчина
A57: =A52+1 -> 32 | B57: Г. Гатчина, просп. 25 Октября, д. 50 | C57: =K57+L57+Z57 -> 12324197.62 | J57: 6 | K57: =1837065.6+1850126.4+2020569.6+1866856.8+1872243.6+1870978.8 -> 11317840.8 | L57: =K57*0.02 -> 226356.816 | Z57: 780000
A58: =A57+1 -> 33 | B58: Г. Гатчина, просп. 25 Октября, д. 50, кор. 1 | C58: 7753272.92 | J58: 2 | K58: =3673173*J58 -> 7346346 | L58: 146926.92 | Z58: 260000
A59: 34 | B59: Г. Гатчина, просп. 25 Октября, д. 59 | C59: 11629909.38 | J59: 3 | K59: 11019519 | L59: 220390.38 | Z59: 390000
A60: 35 | B60: Г. Гатчина, просп. 25 Октября, д. 63 | C60: 6190138.2 | J60: 3 | K60: =1833385.2+1973666.4+1879358.4 -> 5686410 | L60: 113728.2 | Z60: 390000
A61: 36 | B61: Г. Гатчина, ул. Авиатриссы Зверевой, д. 11 | C61: 4275976.293 | J61: 2 | K61: =2014907.82+1922323.84 -> 3937231.66 | L61: 78744.6332 | Z61: 260000
A62: 37 | B62: Г. Гатчина, ул. Авиатриссы Зверевой, д. 15 | C62: 7753272.92 | J62: 2 | K62: 7346346 | L62: 146926.92 | Z62: 260000
A63: 38 | B63: Г. Гатчина, ул. Авиатриссы Зверевой, д. 20 | C63: 7753272.92 | J63: 2 | K63: 7346346 | L63: 146926.92 | Z63: 260000
A64: 39 | B64: Г. Гатчина, ул. Авиатриссы Зверевой, д. 3 | C64: 7753272.92 | J64: 2 | K64: 7346346 | L64: 146926.92 | Z64: 260000
A65: 40 | B65: Г. Гатчина, ул. Володарского, д. 25А | C65: 7753272.92 | J65: 2 | K65: 7346346 | L65: 146926.92 | Z65: 260000
A66: 41 | B66: Г. Гатчина, ул. Красных Военлётов, д. 9 | C66: 6555969.768 | J66: 3 | K66: =2072192.4+1954905.6+2017970.4 -> 6045068.4 | L66: 120901.368 | Z66: 390000
A67: 42 | B67: Г. Гатчина, ул. Рощинская, д. 11, кор. 1 | C67: 3876636.46 | J67: 1 | K67: 3673173 | L67: 73463.46 | Z67: 130000
A68: 43 | B68: Г. Гатчина, ул. Рощинская, д. 13, кор. 1 | C68: 2196923.512 | J68: 1 | K68: 2026395.6 | L68: 40527.912 | Z68: 130000
A69: 44 | B69: Г. Гатчина, ул. Рощинская, д. 13А | C69: 7753272.92 | J69: 2 | K69: 7346346 | L69: 146926.92 | Z69: 260000
A70: 45 | B70: Г. Гатчина, ул. Рощинская, д. 19 | C70: 15506545.84 | J70: 4 | K70: 14692692 | L70: 293853.84 | Z70: 520000
A71: 46 | B71: Г. Гатчина, ул. Рощинская, д. 3А | C71: 7753272.92 | J71: 2 | K71: 7346346 | L71: 146926.92 | Z71: 260000
A72: 47 | B72: Г. Гатчина, ул. Рощинская, д. 9Г | C72: 7753272.92 | J72: 2 | K72: 7346346 | L72: 146926.92 | Z72: 260000
A73: 48 | B73: Г. Гатчина, ул. Хохлова, д. 2 | C73: 11629909.38 | J73: 3 | K73: 11019519 | L73: 220390.38 | Z73: 390000
A74: 49 | B74: Г. Гатчина, ул. Чехова, д. 14 | C74: 4545663.416 | J74: 2 | K74: =2272777.2+1928853.6 -> 4201630.8 | L74: 84032.616 | Z74: 260000
A75: Итого по муниципальному образованию | C75: =SUM(C57:C74) -> 140758053.2 | J75: =SUM(J57:J74) -> 44 | K75: =SUM(K57:K74) -> 132390248.3 | L75: =SUM(L57:L74) -> 2647804.965 | Z75: =SUM(Z57:Z74) -> 5720000
A76: Итого по Гатчинскому муниципальному району | C76: =C75 -> 140758053.2 | J76: =J75 -> 44 | K76: =K75 -> 132390248.3 | L76: =L75 -> 2647804.965 | Z76: 5720000
A77: Кингисеппский муниципальный район
A78: Муниципальное образование Кингисеппское городское поселение
A79: =A74+1 -> 50 | B79: Г. Кингисепп, просп. Карла Маркса, д. 51 | C79: =K79+L79+Z79 -> 4193140.42 | J79: 1 | K79: =3983471*J79 -> 3983471 | L79: =K79*0.02 -> 79669.42 | Z79: =J79*130000 -> 130000
A80: =A79+1 -> 51 | B80: Г. Кингисепп, б-р Большой , д. 11 | C80: 16772561.68 | J80: 4 | K80: 15933884 | L80: 318677.68 | Z80: 520000
A81: 52 | B81: Г. Кингисепп, б-р Большой, д. 15 | C81: 8386280.84 | J81: 2 | K81: 7966942 | L81: 159338.84 | Z81: 260000
A82: 53 | B82: Г. Кингисепп, б-р Большой, д. 17 | C82: 25158842.52 | J82: 6 | K82: 23900826 | L82: 478016.52 | Z82: 780000
A83: 54 | B83: Г. Кингисепп, ул. Жукова, д. 4А | C83: 4193140.42 | J83: 1 | K83: 3983471 | L83: 79669.42 | Z83: 130000
A84: 55 | B84: Г. Кингисепп, ул. Жукова, д. 8а | C84: 4193140.42 | J84: 1 | K84: 3983471 | L84: 79669.42 | Z84: 130000
A85: 56 | B85: Г. Кингисепп, ш. Крикковское, д. 10а | C85: 8386280.84 | J85: 2 | K85: =3983471*J85 -> 7966942 | L85: 159338.84 | Z85: 260000
A86: 57 | B86: Г. Кингисепп, ш. Крикковское, д. 12 | C86: 29351982.94 | J86: 7 | K86: 27884297 | L86: 557685.94 | Z86: 910000
A87: 58 | B87: Г. Кингисепп, ш. Крикковское, д. 14 | C87: 29351982.94 | J87: 7 | K87: 27884297 | L87: 557685.94 | Z87: 910000
A88: 59 | B88: Г. Кингисепп, ш. Крикковское, д. 35 | C88: 20965702.1 | J88: 5 | K88: 19917355 | L88: 398347.1 | Z88: 650000
A89: 60 | B89: Г. Кингисепп, ш. Крикковское, д. 39 | C89: 12579421.26 | J89: 3 | K89: 11950413 | L89: 239008.26 | Z89: 390000
A90: 61 | B90: Г. Кингисепп, ш. Крикковское, д. 6 | C90: 25158842.52 | J90: 6 | K90: 23900826 | L90: 478016.52 | Z90: 780000
A91: Итого по муниципальному образованию | C91: =SUM(C79:C90) -> 188691318.9 | J91: =SUM(J79:J90) -> 45 | K91: =SUM(K79:K90) -> 179256195 | L91: =SUM(L79:L90) -> 3585123.9 | Z91: =SUM(Z79:Z90) -> 5850000
A92: Итого по Кингисеппскому муниципальному району | C92: =C91 -> 188691318.9 | J92: =J91 -> 45 | K92: =K91 -> 179256195 | L92: =L91 -> 3585123.9 | Z92: 5850000
A93: Киришский муниципальный район
A94: Муниципальное образование Киришское городское поселение
A95: =A90+1 -> 62 | B95: Г. Кириши, бул. Плавницкий, д. 16 | C95: =K95+L95+Z95 -> 3876636.46 | J95: 1 | K95: =3673173*J95 -> 3673173 | L95: =K95*0.02 -> 73463.46 | Z95: =J95*130000 -> 130000
A96: =A95+1 -> 63 | B96: Г. Кириши, бул. Плавницкий, д. 36 | C96: 3876636.46 | J96: 1 | K96: 3673173 | L96: 73463.46 | Z96: 130000
A97: 64 | B97: Г. Кириши, пер. Березовый, д. 10 | C97: 3876636.46 | J97: 1 | K97: 3673173 | L97: 73463.46 | Z97: 130000
A98: 65 | B98: Г. Кириши, просп. Героев, д. 15 | C98: 3876636.46 | J98: 1 | K98: 3673173 | L98: 73463.46 | Z98: 130000
A99: 66 | B99: Г. Кириши, просп. Героев, д. 17 | C99: 7753272.92 | J99: 2 | K99: 7346346 | L99: 146926.92 | Z99: 260000
A100: 67 | B100: Г. Кириши, просп. Ленина, д. 40 | C100: 3876636.46 | J100: 1 | K100: 3673173 | L100: 73463.46 | Z100: 130000
A101: 68 | B101: Г. Кириши, просп. Ленина, д. 9 | C101: 3876636.46 | J101: 1 | K101: 3673173 | L101: 73463.46 | Z101: 130000
A102: 69 | B102: Г. Кириши, ул. Декабристов Бестужевых, д. 16 | C102: 3876636.46 | J102: 1 | K102: 3673173 | L102: 73463.46 | Z102: 130000
A103: 70 | B103: Г. Кириши, ул. Строителей, д. 2 | C103: 3876636.46 | J103: 1 | K103: 3673173 | L103: 73463.46 | Z103: 130000
A104: 71 | B104: Г. Кириши, ул. Строителей, д. 26 | C104: 3876636.46 | J104: 1 | K104: 3673173 | L104: 73463.46 | Z104: 130000
A105: 72 | B105: Г. Кириши, ул. Строителей, д. 28 | C105: 3876636.46 | J105: 1 | K105: 3673173 | L105: 73463.46 | Z105: 130000
A106: 73 | B106: Г. Кириши, ул. Строителей, д. 30 | C106: 11629909.38 | J106: 3 | K106: 11019519 | L106: 220390.38 | Z106: 390000
A107: 74 | B107: Г. Кириши, ул. Строителей, д. 46 | C107: 15506545.84 | J107: 4 | K107: 14692692 | L107: 293853.84 | Z107: 520000
A108: 75 | B108: Г. Кириши, ул. Энергетиков, д. 40 | C108: 3876636.46 | J108: 1 | K108: 3673173 | L108: 73463.46 | Z108: 130000
A109: Итого по муниципальному образованию | C109: =SUM(C95:C108) -> 77532729.2 | J109: =SUM(J95:J108) -> 20 | K109: =SUM(K95:K108) -> 73463460 | L109: =SUM(L95:L108) -> 1469269.2 | Z109: =SUM(Z95:Z108) -> 2600000
A110: Итого по Киришскому муниципальному району | C110: =C109 -> 77532729.2 | J110: =J109 -> 20 | K110: =K109 -> 73463460 | L110: =L109 -> 1469269.2 | Z110: 2600000
A111: Кировский муниципальный район
A112: Муниципальное образование Кировское городское поселение
A113: =A108+1 -> 76 | B113: Г. Кировск, ул. Ладожская, д. 22 | C113: =K113+L113+Z113 -> 15506545.84 | J113: 4 | K113: =3673173*J113 -> 14692692 | L113: =K113*0.02 -> 293853.84 | Z113: =J113*130000 -> 520000
A114: =A113+1 -> 77 | B114: Г. Кировск, ул. Молодежная, д. 3 | C114: 3876636.46 | J114: 1 | K114: 3673173 | L114: 73463.46 | Z114: 130000
A115: =A114+1 -> 78 | B115: Г. Кировск, ул. Молодежная, д. 5 | C115: 3876636.46 | J115: 1 | K115: 3673173 | L115: 73463.46 | Z115: 130000
A116: =A115+1 -> 79 | B116: Г. Кировск, ул. Новая, д. 13, кор. 1 | C116: 3876636.46 | J116: 1 | K116: 3673173 | L116: 73463.46 | Z116: 130000
A117: =A116+1 -> 80 | B117: Г. Кировск, ул. Новая, д. 13, кор. 2 | C117: 3876636.46 | J117: 1 | K117: 3673173 | L117: 73463.46 | Z117: 130000
A118: =A117+1 -> 81 | B118: Г. Кировск, ул. Северная, д. 17 | C118: 15506545.84 | J118: 4 | K118: 14692692 | L118: 293853.84 | Z118: =J118*130000 -> 520000
A119: Итого по муниципальному образованию | C119: =SUM(C113:C118) -> 46519637.52 | J119: =SUM(J113:J118) -> 12 | K119: =SUM(K113:K118) -> 44078076 | L119: =SUM(L113:L118) -> 881561.52 | Z119: =SUM(Z113:Z118) -> 1560000
A120: Муниципальное образование Отрадненское городское поселение
A121: =A118+1 -> 82 | B121: Г. Отрадное, ул. Железнодорожная, д. 15 | C121: =K121+L121+Z121 -> 3876636.46 | J121: 1 | K121: =3673173*J121 -> 3673173 | L121: =K121*0.02 -> 73463.46 | Z121: =J121*130000 -> 130000
A122: =A121+1 -> 83 | B122: Г. Отрадное, ул. Зарубина, д. 11а | C122: =K122+L122+Z122 -> 3876636.46 | J122: 1 | K122: =3673173*J122 -> 3673173 | L122: =K122*0.02 -> 73463.46 | Z122: 130000
A123: =A122+1 -> 84 | B123: Г. Отрадное, ул. Лесная, д. 6 | C123: =K123+L123+Z123 -> 3876636.46 | J123: 1 | K123: =3673173*J123 -> 3673173 | L123: =K123*0.02 -> 73463.46 | Z123: 130000
A124: =A123+1 -> 85 | B124: Г. Отрадное, ул. Советская, д. 25 | C124: =K124+L124+Z124 -> 3876636.46 | J124: 1 | K124: =3673173*J124 -> 3673173 | L124: =K124*0.02 -> 73463.46 | Z124: 130000
A125: Итого по муниципальному образованию | C125: =SUM(C121:C124) -> 15506545.84 | J125: =SUM(J121:J124) -> 4 | K125: =SUM(K121:K124) -> 14692692 | L125: =SUM(L121:L124) -> 293853.84 | Z125: =SUM(Z121:Z124) -> 520000
A126: Итого по Кировскому муниципальному району | C126: =C125+C119 -> 62026183.36 | J126: =J125+J119 -> 16 | K126: =K125+K119 -> 58770768 | L126: =L125+L119 -> 1175415.36 | Z126: =J126*130000 -> 2080000
A127: Ломоносовский муниципальный район
A128: Муниципальное образование Русско-Высоцкое сельское поселение
A129: =A124+1 -> 86 | B129: С. Русско-Высоцкое, д. 25 | C129: =K129+L129+Z129 -> 7753272.92 | J129: 2 | K129: =3673173*J129 -> 7346346 | L129: =K129*0.02 -> 146926.92 | Z129: =J129*130000 -> 260000
A130: Итого по муниципальному образованию | C130: =C129 -> 7753272.92 | J130: =J129 -> 2 | K130: 7346346 | L130: 146926.92 | Z130: =Z129 -> 260000
A131: Итого по Ломоносовскому муниципальному району | C131: =C130 -> 7753272.92 | J131: 2 | K131: 7346346 | L131: 146926.92 | Z131: =J131*130000 -> 260000
A132: Лужский муниципальный район
A133: Муниципальное образование Лужское городское поселение
A134: =A129+1 -> 87 | B134: Г. Луга, просп. Володарского, д. 26 | C134: =K134+L134+Z134 -> 7400000 | J134: 2 | K134: 7000000 | L134: =K134*0.02 -> 140000 | Z134: =J134*130000 -> 260000
A135: =A134+1 -> 88 | B135: Г. Луга, просп. Урицкого, д. 101 | C135: 3876636.46 | J135: 1 | K135: =3673173*J135 -> 3673173 | L135: 73463.46 | Z135: 130000
A136: 89 | B136: Г. Луга, просп. Урицкого, д. 99 | C136: 3876636.46 | J136: 1 | K136: =3673173*J136 -> 3673173 | L136: 73463.46 | Z136: 130000
A137: 90 | B137: Г. Луга, ул. Миккели, д. 1, кор. 1 | C137: 3876636.46 | J137: 1 | K137: =3673173*J137 -> 3673173 | L137: 73463.46 | Z137: 130000
A138: 91 | B138: Г. Луга, ул. Миккели, д. 1, кор. 3 | C138: 3876636.46 | J138: 1 | K138: =3673173*J138 -> 3673173 | L138: 73463.46 | Z138: 130000
A139: 92 | B139: Г. Луга, ул. Победы, д. 4 | C139: 3700000 | J139: 1 | K139: =3500000 -> 3500000 | L139: 70000 | Z139: 130000
A140: 93 | B140: Г. Луга, ул. Победы, д. 7 | C140: 3700000 | J140: 1 | K140: =3500000 -> 3500000 | L140: 70000 | Z140: 130000
A141: Итого по муниципальному образованию | C141: =SUM(C134:C140) -> 30306545.84 | J141: =SUM(J134:J140) -> 8 | K141: =SUM(K134:K140) -> 28692692 | L141: =SUM(L134:L140) -> 573853.84 | Z141: =SUM(Z134:Z140) -> 1040000
A142: Итого по Лужскому муниципальному району | C142: =C141 -> 30306545.84 | J142: =J141 -> 8 | K142: =K141 -> 28692692 | L142: =L141 -> 573853.84 | Z142: =J142*130000 -> 1040000
A143: Сосновоборский городской округ
A144: Муниципальное образование Сосновоборский городской округ
A145: =A140+1 -> 94 | B145: Г. Сосновый Бор, ул. Ленинградская, д. 30 | C145: =K145+L145+Z145 -> 23259818.76 | J145: 6 | K145: =3673173*J145 -> 22039038 | L145: =K145*0.02 -> 440780.76 | Z145: =J145*130000 -> 780000
A146: =A145+1 -> 95 | B146: Г. Сосновый Бор, ул. Молодежная, д. 26 | C146: 7854407.96 | J146: 2 | K146: =J146*3641478+162542 -> 7445498 | L146: 148909.96 | Z146: 260000
A147: 96 | B147: Г. Сосновый Бор, ул. Молодежная, д. 54 | C147: 3876636.46 | J147: 1 | K147: 3673173 | L147: 73463.46 | Z147: 130000
A148: 97 | B148: Г. Сосновый Бор, ул. Парковая, д. 18 | C148: 15506545.84 | J148: 4 | K148: 14692692 | L148: 293853.84 | Z148: 520000
A149: 98 | B149: Г. Сосновый Бор, ул. Парковая, д. 22 | C149: 3876636.46 | J149: 1 | K149: 3673173 | L149: 73463.46 | Z149: 130000
A150: 99 | B150: Г. Сосновый Бор, ул. Парковая, д. 24 | C150: 15506545.84 | J150: 4 | K150: 14692692 | L150: 293853.84 | Z150: 520000
A151: 100 | B151: Г. Сосновый Бор, ул. Парковая, д. 44 | C151: 11629909.38 | J151: 3 | K151: 11019519 | L151: 220390.38 | Z151: 390000
A152: 101 | B152: Г. Сосновый Бор, ул. Сибирская, д. 5 | C152: 4010100.4 | J152: 1 | K152: =J152*3641478+162542 -> 3804020 | L152: 76080.4 | Z152: 130000
A153: 102 | B153: Г. Сосновый Бор, ул. Солнечная, д. 23а | C153: 3876636.46 | J153: 1 | K153: 3673173 | L153: 73463.46 | Z153: 130000
A154: 103 | B154: Г. Сосновый Бор, ул. Солнечная, д. 30 | C154: 4010100.4 | J154: 1 | K154: =J154*3641478+162542 -> 3804020 | L154: 76080.4 | Z154: =J154*130000 -> 130000
A155: Итого по муниципальному образованию | C155: =SUM(C145:C154) -> 93407337.96 | J155: =SUM(J145:J154) -> 24 | K155: =SUM(K145:K154) -> 88516998 | L155: =SUM(L145:L154) -> 1770339.96 | Z155: =SUM(Z145:Z154) -> 3120000
A156: Сланцевский муниципальный район
A157: Муниципальное образование Сланцевское городское поселение
A158: =A154+1 -> 104 | B158: Г. Сланцы, просп. Молодежный, д. 13 | C158: =K158+L158+Z158 -> 15506545.84 | J158: 4 | K158: =3673173*J158 -> 14692692 | L158: =K158*0.02 -> 293853.84 | Z158: =J158*130000 -> 520000
A159: =A158+1 -> 105 | B159: Г. Сланцы, ул. Гагарина, д. 1 | C159: 3876636.46 | J159: 1 | K159: 3673173 | L159: 73463.46 | Z159: 130000
A160: 106 | B160: Г. Сланцы, ул. Гагарина, д. 5а | C160: 3876636.46 | J160: 1 | K160: 3673173 | L160: 73463.46 | Z160: 130000
A161: 107 | B161: Г. Сланцы, ул. Ленина, д. 25, кор. 1 | C161: 3876636.46 | J161: 1 | K161: 3673173 | L161: 73463.46 | Z161: 130000
A162: 108 | B162: Г. Сланцы, ул. Ленина, д. 25, кор. 4 | C162: 11629909.38 | J162: 3 | K162: 11019519 | L162: 220390.38 | Z162: 390000
A163: 109 | B163: Г. Сланцы, ул. Ленина, д. 25, кор. 6 | C163: 11629909.38 | J163: 3 | K163: 11019519 | L163: 220390.38 | Z163: 390000
A164: 110 | B164: Г. Сланцы, ул. Спортивная, д. 9/2 | C164: 7753272.92 | J164: 2 | K164: 7346346 | L164: 146926.92 | Z164: 260000
A165: 111 | B165: Г. Сланцы, ул. Шахтерской Славы, д. 14, корп. 1 | C165: 3876636.46 | J165: 1 | K165: 3673173 | L165: 73463.46 | Z165: 130000
A166: 112 | B166: Г. Сланцы, ул. Шахтерской Славы, д. 9б | C166: 15506545.84 | J166: 4 | K166: 14692692 | L166: 293853.84 | Z166: 520000
A167: Итого по муниципальному образованию | C167: =SUM(C158:C166) -> 77532729.2 | J167: =SUM(J158:J166) -> 20 | K167: =SUM(K158:K166) -> 73463460 | L167: =SUM(L158:L166) -> 1469269.2 | Z167: =SUM(Z158:Z166) -> 2600000
A168: Итого по Сланцевскому муниципальному району | C168: =C167 -> 77532729.2 | J168: =J167 -> 20 | K168: =K167 -> 73463460 | L168: =L167 -> 1469269.2 | Z168: 2600000
A169: Тихвинский муниципальный район
A170: Муниципальное образование Тихвинское городское поселение
A171: =A166+1 -> 113 | B171: Г. Тихвин, микрорайон 1а, д. 45 | C171: =K171+L171+Z171 -> 7753272.92 | J171: 2 | K171: =3673173*J171 -> 7346346 | L171: =K171*0.02 -> 146926.92 | Z171: =J171*130000 -> 260000
A172: =A171+1 -> 114 | B172: Г. Тихвин, ул. Советская, д. 1 | C172: =K172+L172+Z172 -> 7753272.92 | J172: 2 | K172: =3673173*J172 -> 7346346 | L172: =K172*0.02 -> 146926.92 | Z172: =J172*130000 -> 260000
A173: Итого по муниципальному образованию | C173: =SUM(C171:C172) -> 15506545.84 | J173: =SUM(J171:J172) -> 4 | K173: =SUM(K171:K172) -> 14692692 | L173: =SUM(L171:L172) -> 293853.84 | Z173: =SUM(Z171:Z172) -> 520000
A174: Итого по Тихвинскому муниципальному району | C174: =C173 -> 15506545.84 | J174: =J173 -> 4 | K174: =K173 -> 14692692 | L174: =L173 -> 293853.84 | Z174: =J174*130000 -> 520000
A175: Тосненский район
A176: Муниципальное образование Тосненское городское поселение
A177: =A172+1 -> 115 | B177: Г. Тосно, ул. М. Горького, д. 4 | C177: =K177+L177+Z177 -> 7753272.92 | J177: 2 | K177: =3673173*J177 -> 7346346 | L177: =K177*0.02 -> 146926.92 | Z177: =J177*130000 -> 260000
A178: =A177+1 -> 116 | B178: Г. Тосно, ул. Победы, д. 19А | C178: =K178+L178+Z178 -> 7753272.92 | J178: 2 | K178: =3673173*J178 -> 7346346 | L178: =K178*0.02 -> 146926.92 | Z178: =J178*130000 -> 260000
A179: Итого по муниципальному образованию | C179: =SUM(C177:C178) -> 15506545.84 | J179: =SUM(J177:J178) -> 4 | K179: =SUM(K177:K178) -> 14692692 | L179: =SUM(L177:L178) -> 293853.84 | Z179: =SUM(Z177:Z178) -> 520000
A180: Итого по Тосненскому району | C180: =C179 -> 15506545.84 | J180: =J179 -> 4 | K180: =K179 -> 14692692 | L180: =L179 -> 293853.84 | Z180: =J180*130000 -> 520000
